Workbook

Sheet PLANILHA ORÇAMENTARIA
F1: COMPANHIA DE DESENVOLVIMENTO DOS VALES DO SÃO FRANCISCO E DO PARNAÍBA 3ª Superintendência Regional
B2: COMPLEMENTAÇÃO DAS OBRAS E DOS SERVIÇOS NECESSÁRIOS A IMPLANTAÇÃO DO SISTEMA DE ESGOTAMENTO SANITÁRIO DO MUNICÍPIO DE FLORESTA, NO ESTADO DE PERNAMBUCO, NA ÁREA DE ATUAÇÃO DA 3ª SUPERINTENDÊNCIA REGIONAL DA CODEVASF.
B3: PETROLINA-PE | J3: DATA: 06/06/2019
B4: PLANILHA ORÇAMENTÁRIA DE SERVIÇOS E MATERIAIS
B5: TABELAS DE REFERÊNCIA (SEM DESONERAÇÃO): | H5: CODEVASF | I5: FEV/2018 | J5: ORSE | K5: JUN/2018
H6: SEINFRA: | I6: ABR/2017 | J6: SINAPI: | K6: JUN/2018
B7: ITEM | C7: TIPO | D7: FONTE | E7: CÓDIGO | F7: DISCRIMINAÇÃO DOS SERVIÇOS | G7: BDI: | H7: SERVIÇOS: | I7: 0.245 | J7: MATERIAIS: | K7: 0.13
G8: UNID. | H8: QUANT. | I8: PREÇO (R$)
I9: SEM BDI | J9: COM BDI | K9: TOTAL
B10: 1 | C10: INSTALAÇÕES PRELIMINARES E CANTEIRO DE OBRAS | H10: Custo Total dos Serviços (R$) | K10: =SUM(K11:K16) -> 540412.33
B11: 1.1 | C11: SERVIÇO | D11: SINAPI | E11: 74209/1 | F11: FORNECIMENTO, MONTAGEM, MANUTENÇÃO E INSTALAÇÃO DE PLACA DE IDENTIFICAÇÃO DE OBRA COM 2MX3M, CONFORME MODELO APRESENTADO PELA FISCALIZAÇÃO. | G11: M² | H11: 6 | I11: 262.1 | J11: =I11+(I11*$I$7) -> 326.31 | K11: =H11*J11 -> 1957.86 | L11: 1.245
B12: 1.2 | C12: SERVIÇO | D12: CODEVASF | E12: COMPOSIÇÃO | F12: MOBILIZAÇÃO DE EQUIPAMENTOS, MATERIAIS E PESSOAL. | G12: UN | H12: 1 | I12: 5543.37 | J12: =I12+(I12*$I$7) -> 6901.5 | K12: 6901.5 | L12: 1.245
B13: 1.3 | C13: SERVIÇO | D13: CODEVASF | E13: COMPOSIÇÃO | F13: DESMOBILIZAÇÃO DE EQUIPAMENTOS, MATERIAIS E PESSOAL. | G13: UN | H13: 1 | I13: 5543.37 | J13: 6901.5 | K13: 6901.5 | L13: 1.245
B14: 1.4 | C14: SERVIÇO | D14: CODEVASF | E14: COMPOSIÇÃO | F14: INSTALAÇÃO DE CANTEIRO DE OBRAS. | G14: UN | H14: 1 | I14: 32951.63 | J14: 41024.78 | K14: 41024.78 | L14: 1.245
B15: 1.5 | C15: SERVIÇO | D15: CODEVASF | E15: COMPOSIÇÃO | F15: ADMINISTRAÇÃO LOCAL E MANUTENÇÃO DE CANTEIRO DE OBRAS. | G15: UN | H15: 1 | I15: 289841.58 | J15: 360852.77 | K15: 360852.77 | L15: 1.245
B16: 1.6 | C16: INSUMO | D16: CODEVASF | E16: COMPOSIÇÃO | F16: VEÍCULO PICK-UP CABINE DUPLA 4X4 (163 CV). | G16: MÊS | H16: 24 | I16: 4527.06 | J16: =I16+(I16*$K$7) -> 5115.58 | K16: 122773.92 | L16: 1.13
B17: 2 | C17: REDE COLETORA; LINHA DE RECALQUE (EEE-01, EEE-02 e EEE-04); EMISSÁRIO FINAL (ETE-01, ETE-02) | H17: Custo Total dos Serviços (R$) | K17: =SUM(K18,K20,K23,K34,K40,K47,K54,K59,K67,K75,K79,K81,K85) -> 2108106.53
B18: 2.1 | C18: LOCAÇÃO | K18: =SUM(K19) -> 9452.04
B19: 2.1.1 | C19: SERVIÇO | D19: SINAPI | E19: 85323 | F19: LOCACAO E NIVELAMENTO DE EMISSARIO/REDE COLETORA COM AUXILIO DE EQUIPAMENTO TOPOGRAFICO | G19: M | H19: 6474 | I19: 1.17 | J19: =I19+(I19*$I$7) -> 1.46 | K19: =H19*J19 -> 9452.04 | L19: 1.2466
B20: 2.2 | C20: CADASTRO | K20: =SUM(K21:K22) -> 20716.8
B21: 2.2.1 | C21: SERVIÇO | D21: ORSE | E21: 11676 | F21: CADASTRO DE REDES DE ESGOTO | G21: M | H21: 6474 | I21: 1.11 | J21: =I21+(I21*$I$7) -> 1.38 | K21: =H21*J21 -> 8934.12 | L21: 1.2464
B22: 2.2.2 | C22: SERVIÇO | D22: ORSE | E22: 2830 | F22: LIMPEZA E TESTE DE REDES DE ESGOTOS SANITÁRIOS | G22: M | H22: 6474 | I22: 1.46 | J22: 1.82 | K22: =H22*J22 -> 11782.68 | L22: 1.2473
B23: 2.3 | C23: ESCAVAÇÃO EM VALAS | K23: =SUM(K24:K33) -> 674883.51
B24: 2.3.1 | C24: SERVIÇO | D24: SINAPI | E24: 93358 | F24: ESCAVAÇÃO MANUAL DE VALA COM PROFUNDIDADE MENOR OU IGUAL A 1,30 M. AF_03/2016 | G24: M³ | H24: 394.6 | I24: 50.41 | J24: =I24+(I24*$I$7) -> 62.76 | K24: =H24*J24 -> 24765.1 | L24: 1.245
B25: 2.3.2 | C25: SERVIÇO | D25: SINAPI | E25: 90105 | F25: ESCAVAÇÃO MECANIZADA DE VALA COM PROFUNDIDADE ATÉ 1,5 M (MÉDIA ENTRE MONTANTE E JUSANTE/UMA COMPOSIÇÃO POR TRECHO) COM RETROESCAVADEIRA (CAPACIDADE DA CAÇAMBA DA RETRO: 0,26 M3 / POTÊNCIA: 88 HP), LARGURA MENOR QUE 0,8 M, EM SOLO DE 1A CATEGORIA, LOCAISCOM BAIXO NÍVEL DE INTERFERÊNCIA. AF_01/2015 | G25: M³ | H25: 3946.01 | I25: 6.18 | J25: 7.69 | K25: 30344.82 | L25: 1.2445
B26: 2.3.3 | C26: SERVIÇO | D26: SINAPI | E26: 90092 | F26: ESCAVAÇÃO MECANIZADA DE VALA COM PROF. MAIOR QUE 1,5 M E ATÉ 3,0 M(MÉDIA ENTRE MONTANTE E JUSANTE/UMA COMPOSIÇÃO POR TRECHO), COM ESCAVADEIRA HIDRÁULICA (0,8 M3/111 HP), LARG. MENOR QUE 1,5 M, EM SOLO DE 1A CATEGORIA, LOCAIS COM BAIXO NÍVEL DE INTERFERÊNCIA. AF_01/2015 | G26: M³ | H26: 618.13 | I26: 4.17 | J26: 5.19 | K26: 3208.09 | L26: 1.2452
B27: 2.3.4 | C27: SERVIÇO | D27: SINAPI | E27: 72915 | F27: ESCAVACAO MECANICA DE VALA EM MATERIAL DE 2A. CATEGORIA ATE 2 M DE PROFUNDIDADE COM UTILIZACAO DE ESCAVADEIRA HIDRAULICA | G27: M³ | H27: 2610.57 | I27: 8.8 | J27: 10.96 | K27: 28611.85 | L27: 1.245
B28: 2.3.5 | C28: SERVIÇO | D28: SINAPI | E28: 72917 | F28: ESCAVACAO MECANICA DE VALA EM MATERIAL 2A. CATEGORIA DE 2,01 ATE 4,00 M DE PROFUNDIDADE COM UTILIZACAO DE ESCAVADEIRA HIDRAULICA | G28: M³ | H28: 133 | I28: 10.05 | J28: 12.51 | K28: 1663.83 | L28: 1.2448
B29: 2.3.6 | C29: SERVIÇO | D29: ORSE | E29: 4357 | F29: ESCAVAÇÃO COM PERFURATRIZ EM MATERIAL DE 2ª CATEGORIA | G29: M³ | H29: 453.08 | I29: 62.97 | J29: 78.4 | K29: 35521.47 | L29: 1.2451
B30: 2.3.7 | C30: SERVIÇO | D30: ORSE | E30: 4503 | F30: ESCAVAÇÃO MANUAL DE VALA OU CAVA EM MATERIAL DE 3ª CATEGORIA, PROFUNDIDADE AT É 4,00 M, COM USO DE EXPLOSIVOS E PERFURAÇÃO MECÂNICA | G30: M³ | H30: 906.16 | I30: 191.28 | J30: 238.14 | K30: 215792.94 | L30: 1.245
B31: 2.3.8 | C31: SERVIÇO | D31: SINAPI | E31: 94111 | F31: LASTRO DE VALA COM PREPARO DE FUNDO, LARGURA MENOR QUE 1,5 M, COM CAMADA DE AREIA, LANÇAMENTO MECANIZADO, EM LOCAL COM NÍVEL BAIXO DE INTERFERÊNCIA. AF_06/2016 | G31: M³ | H31: 1812.72 | I31: 112.45 | J31: 140 | K31: 253780.8 | L31: 1.245
B32: 2.3.9 | C32: SERVIÇO | D32: ORSE | E32: 2508 | F32: CARGA MECÂNICA DE MATERIAL DE 3ª CATEGORIA | G32: M³ | H32: 4102.81 | I32: 2.56 | J32: 3.19 | K32: 13087.96 | L32: 1.2453
B33: 2.3.10 | C33: SERVIÇO | D33: SINAPI | E33: 97914 | F33: TRANSPORTE COM CAMINHÃO BASCULANTE DE 6 M3, EM VIA URBANA PAVIMENTADA, DMT ATÉ 30 KM (UNIDADE: M3XKM). AF_01/2018 | G33: M³XKM | H33: 41028.1 | I33: 1.33 | J33: 1.66 | K33: 68106.65 | L33: 1.2424
B34: 2.4 | C34: ATERRO/REATERRO COMPACTADOS | K34: =SUM(K35:K39) -> 212977.12
B35: 2.4.1 | C35: SERVIÇO | D35: SINAPI | E35: 93378 | F35: REATERRO MECANIZADO DE VALA COM RETROESCAVADEIRA (CAPACIDADE DA CAÇAMBA DA RETRO: 0,26 M³ / POTÊNCIA: 88 HP), LARGURA ATÉ 0,8 M, PROFUNDIDADE ATÉ 1,5 M, COM SOLO (SEM SUBSTITUIÇÃO) DE 1ª CATEGORIA EM LOCAIS COM BAIXO NÍVEL DE INTERFERÊNCIA. AF_04/2016 | G35: M³ | H35: 4340.61 | I35: 19.19 | J35: =I35+(I35*$I$7) -> 23.89 | K35: =H35*J35 -> 103697.17 | L35: 1.2452
B36: 2.4.2 | C36: SERVIÇO | D36: SINAPI | E36: 93368 | F36: REATERRO MECANIZADO DE VALA COM ESCAVADEIRA HIDRÁULICA (CAPACIDADE DA CAÇAMBA: 0,8 M³ / POTÊNCIA: 111 HP), LARGURA ATÉ 1,5 M, PROFUNDIDADE DE 1,5 A 3,0 M, COM SOLO (SEM SUBSTITUIÇÃO) DE 1ª CATEGORIA EM LOCAIS COM BAIXO NÍVEL DE INTERFERÊNCIA. AF_04/2016 | G36: M³ | H36: 618.13 | I36: 11.1 | J36: 13.82 | K36: =H36*J36 -> 8542.56 | L36: 1.2448
B37: 2.4.3 | C37: SERVIÇO | D37: SINAPI | E37: 94315 | F37: ATERRO MECANIZADO DE VALA COM RETROESCAVADEIRA (CAPACIDADE DA CAÇAMBA DA RETRO: 0,26 M³ / POTÊNCIA: 88 HP), LARGURA ATÉ 0,8 M, PROFUNDIDADE ATÉ 1,5 M, COM SOLO ARGILO-ARENOSO. AF_05/2016 | G37: M³ | H37: 2284.23 | I37: 35.36 | J37: 44.02 | K37: =H37*J37 -> 100551.8 | L37: 1.2451
B38: 2.4.4 | C38: SERVIÇO | D38: SINAPI | E38: 94305 | F38: ATERRO MECANIZADO DE VALA COM ESCAVADEIRA HIDRÁULICA (CAPACIDADE DA CAÇAMBA: 0,8 M³ / POTÊNCIA: 111 HP), LARGURA ATÉ 1,5 M, PROFUNDIDADE DE 1,5 A 3,0 M, COM SOLO ARGILO-ARENOSO. AF_05/2016 | G38: M³ | H38: 0 | I38: 23.41 | J38: 29.15 | K38: =H38*J38 -> 0 | L38: 1.2448
B39: 2.4.5 | C39: SERVIÇO | D39: SINAPI | E39: 94307 | F39: ATERRO MECANIZADO DE VALA COM ESCAVADEIRA HIDRÁULICA (CAPACIDADE DA CAÇAMBA: 0,8 M³ / POTÊNCIA: 111 HP), LARGURA ATÉ 1,5 M, PROFUNDIDADE DE 3,0 A 4,5 M, COM SOLO ARGILO-ARENOSO. AF_05/2016 | G39: M³ | H39: 5.86 | I39: 20.46 | J39: 25.47 | K39: 185.59 | L39: 1.2449
B40: 2.5 | C40: POÇOS (INCLUSIVE ASSENTAMENTO DE TAMPÃO) | K40: =SUM(K41:K46) -> 141899.93
B41: 2.5.1 | C41: SERVIÇO | D41: SINAPI | E41: 98420 | F41: (COMPOSIÇÃO REPRESENTATIVA) POÇO DE VISITA CIRCULAR PARA ESGOTO, EM CONCRETO PRÉ-MOLDADO, DIÂMETRO INTERNO = 1,0 M, PROFUNDIDADE ATÉ 1,50 M, INCLUINDO TAMPÃO DE FERRO FUNDIDO, DIÂMETRO DE 60 CM. AF_04/2018 | G41: UN | H41: 35 | I41: 1058.95 | J41: =I41+(I41*$I$7) -> 1318.39 | K41: =H41*J41 -> 46143.65 | L41: 1.245
B42: 2.5.2 | C42: SERVIÇO | D42: SINAPI | E42: 98421 | F42: (COMPOSIÇÃO REPRESENTATIVA) POÇO DE VISITA CIRCULAR PARA ESGOTO, EM CONCRETO PRÉ-MOLDADO, DIÂMETRO INTERNO = 1,0 M, PROFUNDIDADE DE 1,50 A 2,00 M, INCLUINDO TAMPÃO DE FERRO FUNDIDO, DIÂMETRO DE 60 CM. AF_04/2018 | G42: UN | H42: 20 | I42: 1179.14 | J42: 1468.03 | K42: 29360.6 | L42: 1.245
B43: 2.5.3 | C43: SERVIÇO | D43: SINAPI | E43: 98422 | F43: (COMPOSIÇÃO REPRESENTATIVA) POÇO DE VISITA CIRCULAR PARA ESGOTO, EM CONCRETO PRÉ-MOLDADO, DIÂMETRO INTERNO = 1,0 M, PROFUNDIDADE DE 2,00 A 2,50 M, INCLUINDO TAMPÃO DE FERRO FUNDIDO, DIÂMETRO DE 60 CM. AF_04/2018 | G43: UN | H43: 4 | I43: 1299.34 | J43: 1617.68 | K43: 6470.72 | L43: 1.245
B44: 2.5.4 | C44: SERVIÇO | D44: SINAPI | E44: 98423 | F44: (COMPOSIÇÃO REPRESENTATIVA) POÇO DE VISITA CIRCULAR PARA ESGOTO, EM CONCRETO PRÉ-MOLDADO, DIÂMETRO INTERNO = 1,0 M, PROFUNDIDADE DE 2,50 A 3,00 M, INCLUINDO TAMPÃO DE FERRO FUNDIDO, DIÂMETRO DE 60 CM. AF_04/2018 | G44: UN | H44: 5 | I44: 1363.13 | J44: 1697.1 | K44: 8485.5 | L44: 1.245
B45: 2.5.5 | C45: SERVIÇO | D45: SINAPI | E45: 98424 | F45: (COMPOSIÇÃO REPRESENTATIVA) POÇO DE VISITA CIRCULAR PARA ESGOTO, EM CONCRETO PRÉ-MOLDADO, DIÂMETRO INTERNO = 1,0 M, PROFUNDIDADE DE 3,00 A 3,50 M, INCLUINDO TAMPÃO DE FERRO FUNDIDO, DIÂMETRO DE 60 CM. AF_04/2018 | G45: UN | H45: 2 | I45: 1426.93 | J45: 1776.53 | K45: 3553.06 | L45: 1.245
B46: 2.5.6 | C46: SERVIÇO | D46: SINAPI | E46: 97983 | F46: ACRÉSCIMO PARA POÇO DE VISITA CIRCULAR PARA ESGOTO, EM CONCRETO PRÉ-MOLDADO, DIÂMETRO INTERNO = 1 M. AF_05/2018 | G46: M | H46: 160 | I46: 240.39 | J46: 299.29 | K46: 47886.4 | L46: 1.245
B47: 2.6 | C47: ASSENTAMENTO DE TUBOS E CONEXÕES EM PVC, JUNTA ELÁSTICA | K47: =SUM(K48:K53) -> 94816
B48: 2.6.1 | C48: SERVIÇO | D48: SINAPI | E48: 90734 | F48: ASSENTAMENTO DE TUBO DE PVC PARA REDE COLETORA DE ESGOTO DE PAREDE MACIÇA, DN 150 MM, JUNTA ELÁSTICA, INSTALADO EM LOCAL COM NÍVEL BAIXO DE INTERFERÊNCIAS (NÃO INCLUI FORNECIMENTO). AF_06/2015 | G48: M | H48: 4584 | I48: 2.71 | J48: =I48+(I48*$I$7) -> 3.37 | K48: =H48*J48 -> 15448.08 | L48: 1.2463
B49: 2.6.2 | C49: SERVIÇO | D49: SINAPI | E49: 90735 | F49: ASSENTAMENTO DE TUBO DE PVC PARA REDE COLETORA DE ESGOTO DE PAREDE MACIÇA, DN 200 MM, JUNTA ELÁSTICA, INSTALADO EM LOCAL COM NÍVEL BAIXO DE INTERFERÊNCIAS (NÃO INCLUI FORNECIMENTO). AF_06/2015 | G49: M | H49: 1410 | I49: 3.22 | J49: 4.01 | K49: 5654.1 | L49: 1.2444
B50: 2.6.3 | C50: SERVIÇO | D50: SINAPI | E50: 90736 | F50: ASSENTAMENTO DE TUBO DE PVC PARA REDE COLETORA DE ESGOTO DE PAREDE MACIÇA, DN 250 MM, JUNTA ELÁSTICA, INSTALADO EM LOCAL COM NÍVEL BAIXO DE INTERFERÊNCIAS (NÃO INCLUI FORNECIMENTO). AF_06/2015 | G50: M | H50: 204 | I50: 3.71 | J50: 4.62 | K50: 942.48 | L50: 1.2446
B51: 2.6.4 | C51: SERVIÇO | D51: SINAPI | E51: 90737 | F51: ASSENTAMENTO DE TUBO DE PVC PARA REDE COLETORA DE ESGOTO DE PAREDE MACIÇA, DN 300 MM, JUNTA ELÁSTICA, INSTALADO EM LOCAL COM NÍVEL BAIXO DE INTERFERÊNCIAS (NÃO INCLUI FORNECIMENTO). AF_06/2015 | G51: M | H51: 276 | I51: 4.21 | J51: 5.24 | K51: 1446.24 | L51: 1.2443
B52: 2.6.5 | C52: SERVIÇO | D52: SEINFRA | E52: C3475 | F52: TRAVESSIA MÉTODO NÃO DESTRUTIVO P/ TUBO 100<DN<=200 (COMPLETO) | G52: M | H52: 45 | I52: 1264.24 | J52: 1573.98 | K52: 70829.1 | L52: 1.245
B53: 2.6.6 | C53: SERVIÇO | D53: SINAPI | E53: 83724 | F53: ASSENTAMENTO DE PECAS, CONEXOES, APARELHOS E ACESSORIOS DE FERRO FUNDIDO DUCTIL, JUNTA ELASTICA, MECANICA OU FLANGEADA, COM DIAMETROS DE 50 A 300 MM. | G53: KG | H53: 200 | I53: 1.99 | J53: 2.48 | K53: 496 | L53: 1.247
B54: 2.7 | C54: RETIRADA DE PAVIMENTAÇÃO | K54: =SUM(K55:K58) -> 43017.97
B55: 2.7.1 | C55: SERVIÇO | D55: SINAPI | E55: 92970 | F55: DEMOLIÇÃO DE PAVIMENTAÇÃO ASFÁLTICA COM UTILIZAÇÃO DE MARTELO PERFURADOR, ESPESSURA ATÉ 15 CM, EXCLUSIVE CARGA E TRANSPORTE | G55: M² | H55: 1085 | I55: 12.67 | J55: =I55+(I55*$I$7) -> 15.77 | K55: =H55*J55 -> 17110.45 | L55: 1.2449
B56: 2.7.2 | C56: SERVIÇO | D56: ORSE | E56: 20 | F56: DEMOLIÇÃO DE PAVIMENTAÇÃO EM PARALELEPÍPEDO OU PRÉ-MOLDADOS DE CONCRETO C/ RE APROVEITAMENTO | G56: M² | H56: 3406 | I56: 5.72 | J56: 7.12 | K56: =H56*J56 -> 24250.72 | L56: 1.2447
B57: 2.7.3 | C57: SERVIÇO | D57: SINAPI | E57: 72898 | F57: CARGA E DESCARGA MECANIZADAS DE ENTULHO EM CAMINHAO BASCULANTE 6 M3 | G57: M³ | H57: 162.75 | I57: 3.25 | J57: 4.05 | K57: =H57*J57 -> 659.14 | L57: 1.245
B58: 2.7.4 | C58: SERVIÇO | D58: SINAPI | E58: 72900 | F58: TRANSPORTE DE ENTULHO COM CAMINHAO BASCULANTE 6 M3, RODOVIA PAVIMENTADA, DMT 0,5 A 1,0 KM | G58: M³ | H58: 162.75 | I58: 4.92 | J58: 6.13 | K58: =H58*J58 -> 997.66 | L58: 1.2451
B59: 2.8 | C59: RECOMPOSIÇÃO DE PAVIMENTAÇÃO | K59: =SUM(K60:K66) -> 278384.91
B60: 2.8.1 | C60: SERVIÇO | D60: SINAPI | E60: 73790/4 | F60: REASSENTAMENTO DE PARALELEPIPEDO SOBRE COLCHAO DE PO DE PEDRA ESPESSURA 10CM, REJUNTADO COM ARGAMASSA TRACO 1:3 (CIMENTO E AREIA), CONSIDERANDO APROVEITAMENTO DO PARALELEPIPEDO | G60: M² | H60: 3406 | I60: 33.06 | J60: =I60+(I60*$I$7) -> 41.16 | K60: =H60*J60 -> 140190.96 | L60: 1.2449
B61: 2.8.2 | C61: SERVIÇO | D61: ORSE | E61: 2600 | F61: REPOSIÇÃO DE PAVIMENTAÇÃO ASFÁLTICA, INCLUINDO PINTURA DE LIGAÇÃO, FORNECIMEN TO E APLICAÇÃO DE CBUQ | G61: M² | H61: 1085 | I61: 31.91 | J61: 39.73 | K61: 43107.05 | L61: 1.245
B62: 2.8.3 | C62: SERVIÇO | D62: SINAPI | E62: 96396 | F62: EXECUÇÃO E COMPACTAÇÃO DE BASE E OU SUB BASE COM BRITA GRADUADA SIMPLES - EXCLUSIVE CARGA E TRANSPORTE. AF_09/2017 | G62: M³ | H62: 21.7 | I62: 80.16 | J62: 99.8 | K62: 2165.66 | L62: 1.245
B63: 2.8.4 | C63: SERVIÇO | D63: SINAPI | E63: 74253/1 | F63: RAMAL PREDIAL EM TUBO PEAD 20MM - FORNECIMENTO, INSTALAÇÃO, ESCAVAÇÃO E REATERRO | G63: M | H63: 600 | I63: 18.33 | J63: 22.82 | K63: 13692 | L63: 1.2452
B64: 2.8.5 | C64: SERVIÇO | D64: SEINFRA | E64: C2918 | F64: RAMAL PREDIAL DE ESGOTO EM PVC 100mm, S/ PAVIMENTO | G64: M | H64: 300 | I64: 34.57 | J64: 43.04 | K64: 12912 | L64: 1.2449
B65: 2.8.6 | C65: SERVIÇO | D65: SINAPI | E65: 83675 | F65: TUBO CONCRETO SIMPLES DN 200 MM PARA DRENAGEM - FORNECIMENTO E INSTALACAO, INCLUSIVE ESCAVACAO MANUAL 1M3/M. | G65: M | H65: 220 | I65: 70.52 | J65: 87.8 | K65: 19316 | L65: 1.245
B66: 2.8.7 | C66: SERVIÇO | D66: SINAPI | E66: 9537 | F66: LIMPEZA FINAL DA OBRA | G66: M² | H66: 19422 | I66: 1.94 | J66: 2.42 | K66: 47001.24 | L66: 1.2448
B67: 2.9 | C67: SINALIZAÇÃO E TRAFEGABILIDADE | K67: =SUM(K68:K74) -> 100115.58
B68: 2.9.1 | C68: SERVIÇO | D68: SINAPI | E68: 74219/2 | F68: PASSADICOS COM TABUAS DE MADEIRA PARA VEICULOS | G68: M² | H68: 35 | I68: 38.8 | J68: =I68+(I68*$I$7) -> 48.31 | K68: =H68*J68 -> 1690.85 | L68: 1.245
B69: 2.9.2 | C69: SERVIÇO | D69: SINAPI | E69: 74219/1 | F69: PASSADICOS COM TABUAS DE MADEIRA PARA PEDESTRES | G69: M² | H69: 24 | I69: 48.12 | J69: 59.91 | K69: 1437.84 | L69: 1.2449
B70: 2.9.3 | C70: SERVIÇO | D70: CODEVASF | E70: COMPOSIÇÃO | F70: CONES DE SINALIZAÇÃO - FORNECIMENTO E MOVIMENTAÇÃO | G70: UN/DIA | H70: 900 | I70: 0.68 | J70: 0.85 | K70: 765 | L70: 1.25
B71: 2.9.4 | C71: SERVIÇO | D71: SINAPI | E71: 74209/1 | F71: PLACA DE OBRA EM CHAPA DE ACO GALVANIZADO | G71: M² | H71: 6 | I71: 262.1 | J71: 326.31 | K71: 1957.86 | L71: 1.245
B72: 2.9.5 | C72: SERVIÇO | D72: ORSE | E72: 59 | F72: INTERDIÇÃO DE OBRA COM FITA DE SINALIZAÇÃO | G72: M | H72: 5179.2 | I72: 5.44 | J72: 6.77 | K72: 35063.18 | L72: 1.2456
B73: 2.9.6 | C73: SERVIÇO | D73: ORSE | E73: 4518 | F73: TELA DE NYLON PARA PROTEÇÃO DE FACHADA | G73: M² | H73: 1294.8 | I73: 16.64 | J73: 20.72 | K73: 26828.26 | L73: 1.2449
B74: 2.9.7 | C74: SERVIÇO | D74: SINAPI | E74: 74220/1 | F74: TAPUME DE CHAPA DE MADEIRA COMPENSADA, E= 6MM, COM PINTURA A CAL E REAPROVEITAMENTO DE 2X | G74: M² | H74: 582.66 | I74: 44.63 | J74: 55.56 | K74: 32372.59 | L74: 1.245
B75: 2.10 | C75: ESCORAMENTO | K75: =SUM(K76:K78) -> 95284.13
B76: 2.10.1 | C76: SERVIÇO | D76: SINAPI | E76: 94057 | F76: ESCORAMENTO DE VALA, TIPO DESCONTÍNUO, COM PROFUNDIDADE DE 1,5 M A 3,0 M, LARGURA MENOR QUE 1,5 M, EM LOCAL COM NÍVEL BAIXO DE INTERFERÊNCIA. AF_06/2016 | G76: M² | H76: 994.2 | I76: 15.77 | J76: =I76+(I76*$I$7) -> 19.63 | K76: =H76*J76 -> 19516.15 | L76: 1.2448
B77: 2.10.2 | C77: SERVIÇO | D77: SINAPI | E77: 73877/2 | F77: ESCORAMENTO DE VALAS COM PRANCHOES METALICOS - AREA NAO CRAVADA | G77: M² | H77: 994.2 | I77: 34.9 | J77: 43.45 | K77: =H77*J77 -> 43197.99 | L77: 1.2451
B78: 2.10.3 | C78: SERVIÇO | D78: SINAPI | E78: 94045 | F78: ESCORAMENTO DE VALA, TIPO PONTALETEAMENTO, COM PROFUNDIDADE DE 1,5 A 3,0 M, LARGURA MENOR QUE 1,5 M, EM LOCAL COM NÍVEL BAIXO DE INTERFERÊNCIA. AF_06/2016 | G78: M² | H78: 2982.6 | I78: 8.77 | J78: 10.92 | K78: =H78*J78 -> 32569.99 | L78: 1.2447
B79: 2.11 | C79: ESGOTAMENTO | K79: =SUM(K80) -> 1397.5
B80: 2.11.1 | C80: SERVIÇO | D80: SINAPI | E80: 73891/1 | F80: ESGOTAMENTO COM MOTO-BOMBA AUTOESCOVANTE | G80: H | H80: 250 | I80: 4.49 | J80: =I80+(I80*$I$7) -> 5.59 | K80: =H80*J80 -> 1397.5 | L80: 1.2455
B81: 2.12 | C81: LIMPEZA E DESOBSTRUÇÃO DE REDE EXISTENTE | K81: =SUM(K82:K84) -> 33264.5
B82: 2.12.1 | C82: SERVIÇO | D82: ORSE | E82: 2830 | F82: LIMPEZA E TESTE DE REDES DE ESGOTOS SANITÁRIOS | G82: M | H82: 6500 | I82: 1.46 | J82: =I82+(I82*$I$7) -> 1.82 | K82: =H82*J82 -> 11830 | L82: 1.2473
B83: 2.12.2 | C83: SERVIÇO | D83: CODEVASF | E83: COMPOSIÇÃO | F83: DESOBSTRUÇÃO E LIMPEZA MANUAL DE POÇO DE VISITA DN - 1,2M E PROFUNDIDADE ATÉ 4,0M | G83: UN | H83: 50 | I83: 53.94 | J83: 67.16 | K83: =H83*J83 -> 3358 | L83: 1.245
B84: 2.12.3 | C84: SERVIÇO | D84: CODEVASF | E84: COMPOSIÇÃO | F84: DESOBSTRUÇÃO E LIMPEZA MANUAL DO COLETOR DE ESGOTOS ATÉ 200MM | G84: M | H84: 1950 | I84: 8.2 | J84: =I84+(I84*$K$7) -> 9.27 | K84: =H84*J84 -> 18076.5
B85: 2.13 | C85: RELAÇÃO DE MATERIAIS PARA REDE COLETORA, LINHAS DE RECALQUE E EMISSÁRIOS FINAL | K85: =SUM(K86:K97) -> 401896.54
B86: 2.13.1 | C86: INSUMO | D86: SINAPI | E86: 41936 | F86: TUBO COLETOR DE ESGOTO, PVC, JEI, DN 150 MM (NBR 7362) | G86: M | H86: 3492 | I86: 30.26 | J86: =I86+(I86*$K$7) -> 34.19 | K86: =H86*J86 -> 119391.48 | L86: 1.1299
B87: 2.13.2 | C87: INSUMO | D87: SINAPI | E87: 41930 | F87: TUBO COLETOR DE ESGOTO PVC, JEI, DN 200 MM (NBR 7362) | G87: M | H87: 144 | I87: 47.23 | J87: 53.37 | K87: 7685.28 | L87: 1.1301
B88: 2.13.3 | C88: INSUMO | D88: SINAPI | E88: 41931 | F88: TUBO COLETOR DE ESGOTO PVC, JEI, DN 250 MM (NBR 7362) | G88: M | H88: 204 | I88: 80.06 | J88: 90.47 | K88: 18455.88 | L88: 1.13
B89: 2.13.4 | C89: INSUMO | D89: SINAPI | E89: 41932 | F89: TUBO COLETOR DE ESGOTO PVC, JEI, DN 300 MM (NBR 7362) | G89: M | H89: 276 | I89: 129.74 | J89: 146.61 | K89: 40464.36 | L89: 1.13
B90: 2.13.5 | C90: INSUMO | D90: SINAPI | E90: 9828 | F90: TUBO PVC DEFOFO, JEI, 1 MPA, DN 150 MM, PARA REDE DE AGUA (NBR 7665) | G90: M | H90: 1092 | I90: 54.43 | J90: 61.51 | K90: 67168.92 | L90: 1.13
B91: 2.13.6 | C91: INSUMO | D91: SINAPI | E91: 9829 | F91: TUBO PVC DEFOFO, JEI, 1 MPA, DN 200 MM, PARA REDE DE AGUA (NBR 7665) | G91: M | H91: 1266 | I91: 96.9 | J91: 109.5 | K91: 138627 | L91: 1.13
B92: 2.13.7 | C92: INSUMO | D92: SINAPI | E92: 305 | F92: ANEL BORRACHA, PARA TUBO PVC, REDE COLETOR ESGOTO, DN 150 MM (NBR 7362) | G92: UN | H92: 582 | I92: 5.06 | J92: 5.72 | K92: 3329.04 | L92: 1.1304
B93: 2.13.8 | C93: INSUMO | D93: SINAPI | E93: 306 | F93: ANEL BORRACHA, PARA TUBO PVC, REDE COLETOR ESGOTO, DN 200 MM (NBR 7362) | G93: UN | H93: 24 | I93: 6.08 | J93: 6.87 | K93: 164.88 | L93: 1.1296
B94: 2.13.9 | C94: INSUMO | D94: SINAPI | E94: 307 | F94: ANEL BORRACHA, PARA TUBO PVC, REDE COLETOR ESGOTO, DN 250 MM (NBR 7362) | G94: UN | H94: 34 | I94: 12 | J94: 13.56 | K94: 461.04 | L94: 1.13
B95: 2.13.10 | C95: INSUMO | D95: SINAPI | E95: 308 | F95: ANEL BORRACHA, PARA TUBO, PVC REDE COLETOR ESGOTO, DN 300 MM (NBR 7362) | G95: UN | H95: 46 | I95: 16.03 | J95: 18.11 | K95: 833.06 | L95: 1.13
B96: 2.13.11 | C96: INSUMO | D96: SINAPI | E96: 318 | F96: ANEL BORRACHA, PARA TUBO PVC DEFOFO, DN 150 MM (NBR 7665) | G96: UN | H96: 182 | I96: 8.1 | J96: 9.15 | K96: 1665.3 | L96: 1.13
B97: 2.13.12 | C97: INSUMO | D97: SINAPI | E97: 319 | F97: ANEL BORRACHA, PARA TUBO PVC DEFOFO, DN 200 MM (NBR 7665) | G97: UN | H97: 211 | I97: 15.31 | J97: 17.3 | K97: 3650.3 | L97: 1.1303
B98: 3 | C98: REDE CONDOMINIAL | H98: Custo Total dos Serviços (R$) | K98: =SUM(K99,K101,K104,K111,K114,K116,K118,K127,K137,K142) -> 2350774.27
B99: 3.1 | C99: LOCAÇÃO | K99: =SUM(K100) -> 22789.14
B100: 3.1.1 | C100: SERVIÇO | D100: SINAPI | E100: 85323 | F100: LOCACAO E NIVELAMENTO DE EMISSARIO/REDE COLETORA COM AUXILIO DE EQUIPAMENTO TOPOGRAFICO | G100: M | H100: 15609 | I100: 1.17 | J100: =I100+(I100*$I$7) -> 1.46 | K100: =H100*J100 -> 22789.14 | L100: 1.2466
B101: 3.2 | C101: CADASTRO | K101: =SUM(K102:K103) -> 49948.8
B102: 3.2.1 | C102: SERVIÇO | D102: ORSE | E102: 11676 | F102: CADASTRO DE REDES DE ESGOTO | G102: M | H102: 15609 | I102: 1.11 | J102: =I102+(I102*$I$7) -> 1.38 | K102: =H102*J102 -> 21540.42 | L102: 1.2464
B103: 3.2.2 | C103: SERVIÇO | D103: ORSE | E103: 2830 | F103: LIMPEZA E TESTE DE REDES DE ESGOTOS SANITÁRIOS | G103: M | H103: 15609 | I103: 1.46 | J103: 1.82 | K103: =H103*J103 -> 28408.38 | L103: 1.2473
B104: 3.3 | C104: ESCAVAÇÃO EM VALAS | K104: =SUM(K105:K110) -> 559751.22
B105: 3.3.1 | C105: SERVIÇO | D105: SINAPI | E105: 93358 | F105: ESCAVAÇÃO MANUAL DE VALA COM PROFUNDIDADE MENOR OU IGUAL A 1,30 M. AF_03/2016 | G105: M³ | H105: 1873.08 | I105: 50.41 | J105: =I105+(I105*$I$7) -> 62.76 | K105: =H105*J105 -> 117554.5 | L105: 1.245
B106: 3.3.2 | C106: SERVIÇO | D106: SINAPI | E106: 90105 | F106: ESCAVAÇÃO MECANIZADA DE VALA COM PROFUNDIDADE ATÉ 1,5 M (MÉDIA ENTRE MONTANTE E JUSANTE/UMA COMPOSIÇÃO POR TRECHO) COM RETROESCAVADEIRA (CAPACIDADE DA CAÇAMBA DA RETRO: 0,26 M3 / POTÊNCIA: 88 HP), LARGURA MENOR QUE 0,8 M, EM SOLO DE 1A CATEGORIA, LOCAISCOM BAIXO NÍVEL DE INTERFERÊNCIA. AF_01/2015 | G106: M³ | H106: 6087.51 | I106: 6.18 | J106: 7.69 | K106: 46812.95 | L106: 1.2445
B107: 3.3.3 | C107: SERVIÇO | D107: ORSE | E107: 4357 | F107: ESCAVAÇÃO COM PERFURATRIZ EM MATERIAL DE 2ª CATEGORIA | G107: M³ | H107: 1404.81 | I107: 62.97 | J107: 78.4 | K107: 110137.1 | L107: 1.2451
B108: 3.3.4 | C108: SERVIÇO | D108: SINAPI | E108: 94342 | F108: ATERRO MANUAL DE VALAS COM AREIA PARA ATERRO E COMPACTAÇÃO MECANIZADA. AF_05/2016 | G108: M³ | H108: 2809.62 | I108: 73.6 | J108: 91.63 | K108: 257445.48 | L108: 1.2449
B109: 3.3.5 | C109: SERVIÇO | D109: ORSE | E109: 2508 | F109: CARGA MECÂNICA DE MATERIAL DE 3ª CATEGORIA | G109: M³ | H109: 1404.81 | I109: 2.56 | J109: 3.19 | K109: 4481.34 | L109: 1.2453
B110: 3.3.6 | C110: SERVIÇO | D110: SINAPI | E110: 97914 | F110: TRANSPORTE COM CAMINHÃO BASCULANTE DE 6 M3, EM VIA URBANA PAVIMENTADA, DMT ATÉ 30 KM (UNIDADE: M3XKM). AF_01/2018 | G110: M³XKM | H110: 14048.1 | I110: 1.33 | J110: 1.66 | K110: 23319.85 | L110: 1.2424
B111: 3.4 | C111: ATERRO/REATERRO COMPACTADOS | K111: =SUM(K112:K113) -> 156617.58
B112: 3.4.1 | C112: SERVIÇO | D112: SINAPI | E112: 93378 | F112: REATERRO MECANIZADO DE VALA COM RETROESCAVADEIRA (CAPACIDADE DA CAÇAMBA DA RETRO: 0,26 M³ / POTÊNCIA: 88 HP), LARGURA ATÉ 0,8 M, PROFUNDIDADE ATÉ 1,5 M, COM SOLO (SEM SUBSTITUIÇÃO) DE 1ª CATEGORIA EM LOCAIS COM BAIXO NÍVEL DE INTERFERÊNCIA. AF_04/2016 | G112: M³ | H112: 6555.78 | I112: 19.19 | J112: =I112+(I112*$I$7) -> 23.89 | K112: =H112*J112 -> 156617.58 | L112: 1.2452
B113: 3.4.2 | C113: SERVIÇO | D113: SINAPI | E113: 94315 | F113: ATERRO MECANIZADO DE VALA COM RETROESCAVADEIRA (CAPACIDADE DA CAÇAMBA DA RETRO: 0,26 M³ / POTÊNCIA: 88 HP), LARGURA ATÉ 0,8 M, PROFUNDIDADE ATÉ 1,5 M, COM SOLO ARGILO-ARENOSO. AF_05/2016 | G113: M³ | H113: 0 | I113: 35.36 | J113: 44.02 | K113: =H113*J113 -> 0 | L113: 1.2451
B114: 3.5 | C114: CAIXAS | K114: =SUM(K115) -> 442950
B115: 3.5.1 | C115: SERVIÇO | D115: CODEVASF | E115: COMPOSIÇÃO | F115: CAIXA DE PASSAGEM EM ANEL CONCRETO ARMADO PRÉ-MOLD. DN = 0,60 PROF. H = 0,60 MC/TAMPA EM CONCRETO ARMADO | G115: UN | H115: 2500 | I115: 142.31 | J115: =I115+(I115*$I$7) -> 177.18 | K115: =H115*J115 -> 442950 | L115: 1.245
B116: 3.6 | C116: ASSENTAMENTO DE TUBOS E CONEXÕES EM PVC E FOFO, JUNTA ELÁSTICA | K116: =SUM(K117) -> 43393.02
B117: 3.6.1 | C117: SERVIÇO | D117: SINAPI | E117: 90733 | F117: ASSENTAMENTO DE TUBO DE PVC PARA REDE COLETORA DE ESGOTO DE PAREDE MACIÇA, DN 100 MM, JUNTA ELÁSTICA, INSTALADO EM LOCAL COM NÍVEL BAIXO DE INTERFERÊNCIAS (NÃO INCLUI FORNECIMENTO). AF_06/2015 | G117: M | H117: 15609 | I117: 2.23 | J117: =I117+(I117*$I$7) -> 2.78 | K117: =H117*J117 -> 43393.02 | L117: 1.2455
B118: 3.7 | C118: RETIRADA DE PAVIMENTAÇÃO | K118: =SUM(K119:K126) -> 139204.53
B119: 3.7.1 | C119: SERVIÇO | D119: ORSE | E119: 16 | F119: DEMOLIÇÃO MANUAL DE PISO EM CONCRETO SIMPLES E/OU CIMENTADO | G119: M² | H119: 3902.25 | I119: 14.1 | J119: =I119+(I119*$I$7) -> 17.55 | K119: =H119*J119 -> 68484.49 | L119: 1.2452
B120: 3.7.2 | C120: SERVIÇO | D120: ORSE | E120: 18 | F120: DEMOLIÇÃO DE PISO CERÂMICO OU LADRILHO | G120: M² | H120: 2341.35 | I120: 7.56 | J120: 9.41 | K120: 22032.1 | L120: 1.2447
B121: 3.7.3 | C121: SERVIÇO | D121: ORSE | E121: 3258 | F121: DEMOLIÇÃO DE PISO EM LAJOTA HEXAGONAL | G121: M² | H121: 1560.9 | I121: 6.96 | J121: 8.67 | K121: 13533 | L121: 1.2448
B122: 3.7.4 | C122: SERVIÇO | D122: ORSE | E122: 21 | F122: DEMOLIÇÃO DE MEIO-FIO GRANÍTICO OU PRE-MOLDADO | G122: M | H122: 118 | I122: 5.4 | J122: 6.72 | K122: 792.96 | L122: 1.2455
B123: 3.7.5 | C123: SERVIÇO | D123: ORSE | E123: 20 | F123: DEMOLIÇÃO DE PAVIMENTAÇÃO EM PARALELEPÍPEDO OU PRÉ-MOLDADOS DE CONCRETO C/ RE APROVEITAMENTO | G123: M² | H123: 1000.8 | I123: 5.72 | J123: 7.12 | K123: 7125.7 | L123: 1.2447
B124: 3.7.6 | C124: SERVIÇO | D124: SINAPI | E124: 92970 | F124: DEMOLIÇÃO DE PAVIMENTAÇÃO ASFÁLTICA COM UTILIZAÇÃO DE MARTELO PERFURADOR, ESPESSURA ATÉ 15 CM, EXCLUSIVE CARGA E TRANSPORTE | G124: M² | H124: 550.4 | I124: 12.67 | J124: 15.77 | K124: 8679.81 | L124: 1.2449
B125: 3.7.7 | C125: SERVIÇO | D125: SINAPI | E125: 72897 | F125: CARGA MANUAL DE ENTULHO EM CAMINHAO BASCULANTE 6 M3 | G125: M³ | H125: 477.03 | I125: 17.91 | J125: 22.3 | K125: 10637.77 | L125: 1.2452
B126: 3.7.8 | C126: SERVIÇO | D126: SINAPI | E126: 97914 | F126: TRANSPORTE COM CAMINHÃO BASCULANTE DE 6 M3, EM VIA URBANA PAVIMENTADA, DMT ATÉ 30 KM (UNIDADE: M3XKM). AF_01/2018 | G126: M³XKM | H126: 4770.3 | I126: 1.33 | J126: 1.66 | K126: 7918.7 | L126: 1.2424
B127: 3.8 | C127: RECOMPOSIÇÃO DE PAVIMENTAÇÃO | K127: =SUM(K128:K136) -> 649982.05
B128: 3.8.1 | C128: SERVIÇO | D128: SINAPI | E128: 93389 | F128: REVESTIMENTO CERÂMICO PARA PISO COM PLACAS TIPO ESMALTADA PADRÃO POPULAR DE DIMENSÕES 35X35 CM APLICADA EM AMBIENTES DE ÁREA MENOR QUE 5 M2. AF_06/2014 | G128: M² | H128: 2341.35 | I128: 29.34 | J128: =I128+(I128*$I$7) -> 36.53 | K128: =H128*J128 -> 85529.52 | L128: 1.245
B129: 3.8.2 | C129: SERVIÇO | D129: SINAPI | E129: 98681 | F129: PISO CIMENTADO, TRAÇO 1:3 (CIMENTO E AREIA), ACABAMENTO RÚSTICO, ESPESSURA 2,0 CM, PREPARO MECÂNICO DA ARGAMASSA. AF_06/2018 | G129: M² | H129: 5463.15 | I129: 19.29 | J129: 24.02 | K129: 131224.86 | L129: 1.2451
B130: 3.8.3 | C130: SERVIÇO | D130: SINAPI | E130: 87702 | F130: CONTRAPISO EM ARGAMASSA TRAÇO 1:4 (CIMENTO E AREIA), PREPARO MANUAL, APLICADO EM ÁREAS SECAS SOBRE LAJE, NÃO ADERIDO, ESPESSURA 6CM. AF_06/2014 | G130: M² | H130: 7804.5 | I130: 32.21 | J130: 40.1 | K130: 312960.45 | L130: 1.2449
B131: 3.8.4 | C131: SERVIÇO | D131: CODEVASF | E131: COMPOSIÇÃO | F131: RECUPERAÇÃO EM CONTENÇÃO DE DESNÍVEL DE CALÇADA EM ALVENARIA DE BLOCOS CERÂMICOS 8 FUROS ESP. 10CM, REVESTIDA EM CIMENTADO 1:3 ESPESSURA 2CM | G131: M² | H131: 72 | I131: 76.31 | J131: 95.01 | K131: 6840.72 | L131: 1.245
B132: 3.8.5 | C132: SERVIÇO | D132: SINAPI | E132: 73790/4 | F132: REASSENTAMENTO DE PARALELEPIPEDO SOBRE COLCHAO DE PO DE PEDRA ESPESSURA 10CM, REJUNTADO COM ARGAMASSA TRACO 1:3 (CIMENTO E AREIA), CONSIDERANDO APROVEITAMENTO DO PARALELEPIPEDO | G132: M² | H132: 1000.8 | I132: 33.06 | J132: 41.16 | K132: 41192.93 | L132: 1.2449
B133: 3.8.6 | C133: SERVIÇO | D133: SINAPI | E133: 94273 | F133: ASSENTAMENTO DE GUIA (MEIO-FIO) EM TRECHO RETO, CONFECCIONADA EM CONCRETO PRÉ-FABRICADO, DIMENSÕES 100X15X13X30 CM (COMPRIMENTO X BASE INFERIOR X BASE SUPERIOR X ALTURA), PARA VIAS URBANAS (USO VIÁRIO). AF_06/2016 | G133: M | H133: 118 | I133: 26.81 | J133: 33.38 | K133: 3938.84 | L133: 1.2451
B134: 3.8.7 | C134: SERVIÇO | D134: ORSE | E134: 2600 | F134: REPOSIÇÃO DE PAVIMENTAÇÃO ASFÁLTICA, INCLUINDO PINTURA DE LIGAÇÃO, FORNECIMEN TO E APLICAÇÃO DE CBUQ | G134: M² | H134: 550.4 | I134: 31.91 | J134: 39.73 | K134: 21867.39 | L134: 1.245
B135: 3.8.8 | C135: SERVIÇO | D135: SINAPI | E135: 96396 | F135: EXECUÇÃO E COMPACTAÇÃO DE BASE E OU SUB BASE COM BRITA GRADUADA SIMPLES - EXCLUSIVE CARGA E TRANSPORTE. AF_09/2017 | G135: M³ | H135: 11.01 | I135: 80.16 | J135: 99.8 | K135: 1098.8 | L135: 1.245
B136: 3.8.9 | C136: SERVIÇO | D136: SINAPI | E136: 9537 | F136: LIMPEZA FINAL DA OBRA | G136: M² | H136: 18730.8 | I136: 1.94 | J136: 2.42 | K136: 45328.54 | L136: 1.2448
B137: 3.9 | C137: SINALIZAÇÃO E TRAFEGABILIDADE | K137: =SUM(K138:K141) -> 32364.87
B138: 3.9.1 | C138: SERVIÇO | D138: SINAPI | E138: 74219/1 | F138: PASSADICOS COM TABUAS DE MADEIRA PARA PEDESTRES | G138: M² | H138: 3 | I138: 48.12 | J138: =I138+(I138*$I$7) -> 59.91 | K138: =H138*J138 -> 179.73 | L138: 1.2449
B139: 3.9.2 | C139: SERVIÇO | D139: CODEVASF | E139: COMPOSIÇÃO | F139: CONES DE SINALIZAÇÃO - FORNECIMENTO E MOVIMENTAÇÃO | G139: UN/DIA | H139: 200 | I139: 0.68 | J139: 0.85 | K139: =H139*J139 -> 170 | L139: 1.25
B140: 3.9.3 | C140: SERVIÇO | D140: ORSE | E140: 59 | F140: INTERDIÇÃO DE OBRA COM FITA DE SINALIZAÇÃO | G140: M | H140: 4682.7 | I140: 5.44 | J140: 6.77 | K140: =H140*J140 -> 31701.88 | L140: 1.2456
B141: 3.9.4 | C141: SERVIÇO | D141: SINAPI | E141: 74209/1 | F141: PLACA DE OBRA EM CHAPA DE ACO GALVANIZADO | G141: M² | H141: 0.96 | I141: 262.1 | J141: 326.31 | K141: =H141*J141 -> 313.26 | L141: 1.245
B142: 3.10 | C142: RELAÇÃO DE MATERIAIS PARA REDE CONDOMINIAL | K142: =SUM(K143:K144) -> 253773.06
B143: 3.10.1 | C143: INSUMO | D143: SINAPI | E143: 36365 | F143: TUBO COLETOR DE ESGOTO PVC, JEI, DN 100 MM (NBR 7362) | G143: M | H143: 15612 | I143: 14.06 | J143: =I143+(I143*$K$7) -> 15.89 | K143: =H143*J143 -> 248074.68 | L143: 1.1298
B144: 3.10.2 | C144: INSUMO | D144: SINAPI | E144: 303 | F144: ANEL BORRACHA, PARA TUBO PVC, REDE COLETOR ESGOTO, DN 100 MM (NBR 7362) | G144: UN | H144: 2602 | I144: 1.94 | J144: 2.19 | K144: =H144*J144 -> 5698.38 | L144: 1.1286
B145: 4 | C145: ESTAÇÃO ELEVATÓRIA DE ESGOTO - EEE-01 | H145: Custo Total dos Serviços (R$) | K145: =SUM(K146,K169,K189,K197) -> 209628.36
B146: 4.1 | C146: SERVIÇOS PRELIMINARES, POÇO DE SUCÇÃO E CAIXAS DE AREIA E REGISTROS | K146: =SUM(K147:K168) -> 62642.88
B147: 4.1.1 | C147: SERVIÇO | D147: SINAPI | E147: 73859/2 | F147: CAPINA E LIMPEZA MANUAL DE TERRENO | G147: M² | H147: 250 | I147: 1.01 | J147: =I147+(I147*$I$7) -> 1.26 | K147: =H147*J147 -> 315 | L147: 1.246
B148: 4.1.2 | C148: SERVIÇO | D148: SEINFRA | E148: C1630 | F148: LOCAÇÃO DA OBRA - EXECUÇÃO DE GABARITO | G148: M² | H148: 64.83 | I148: 3.68 | J148: 4.58 | K148: 296.92 | L148: 1.2445
B149: 4.1.3 | C149: SERVIÇO | D149: SINAPI | E149: 93358 | F149: ESCAVAÇÃO MANUAL DE VALA COM PROFUNDIDADE MENOR OU IGUAL A 1,30 M. AF_03/2016 | G149: M³ | H149: 19.34 | I149: 50.41 | J149: 62.76 | K149: 1213.78 | L149: 1.245
B150: 4.1.4 | C150: SERVIÇO | D150: SINAPI | E150: 83338 | F150: ESCAVACAO MECANICA, A CEU ABERTO, EM MATERIAL DE 1A CATEGORIA, COM ESCAVADEIRA HIDRAULICA, CAPACIDADE DE 0,78 M3 | G150: M³ | H150: 109.91 | I150: 2.08 | J150: 2.59 | K150: 284.67 | L150: 1.2432
B151: 4.1.5 | C151: SERVIÇO | D151: ORSE | E151: 4357 | F151: ESCAVAÇÃO COM PERFURATRIZ EM MATERIAL DE 2ª CATEGORIA | G151: M³ | H151: 15.71 | I151: 62.97 | J151: 78.4 | K151: 1231.66 | L151: 1.2451
B152: 4.1.6 | C152: SERVIÇO | D152: ORSE | E152: 4503 | F152: ESCAVAÇÃO MANUAL DE VALA OU CAVA EM MATERIAL DE 3ª CATEGORIA, PROFUNDIDADE AT É 4,00 M, COM USO DE EXPLOSIVOS E PERFURAÇÃO MECÂNICA | G152: M³ | H152: 15.71 | I152: 191.28 | J152: 238.14 | K152: 3741.18 | L152: 1.245
B153: 4.1.7 | C153: SERVIÇO | D153: SINAPI | E153: 93382 | F153: REATERRO MANUAL DE VALAS COM COMPACTAÇÃO MECANIZADA. AF_04/2016 | G153: M³ | H153: 54.66 | I153: 24.6 | J153: 30.63 | K153: 1674.24 | L153: 1.2451
B154: 4.1.8 | C154: SERVIÇO | D154: ORSE | E154: 4986 | F154: CARGA MECÂNICA DE MATERIAL DE 1ª CATEGORIA | G154: M³ | H154: 74.59 | I154: 0.58 | J154: 0.72 | K154: 53.7 | L154: 1.25
B155: 4.1.9 | C155: SERVIÇO | D155: ORSE | E155: 2507 | F155: CARGA MECÂNICA DE MATERIAL DE 2ª CATEGORIA | G155: M³ | H155: 15.71 | I155: 1.79 | J155: 2.23 | K155: 35.03 | L155: 1.2466
B156: 4.1.10 | C156: SERVIÇO | D156: ORSE | E156: 2508 | F156: CARGA MECÂNICA DE MATERIAL DE 3ª CATEGORIA | G156: M³ | H156: 15.71 | I156: 2.56 | J156: 3.19 | K156: 50.11 | L156: 1.2453
B157: 4.1.11 | C157: SERVIÇO | D157: SINAPI | E157: 97914 | F157: TRANSPORTE COM CAMINHÃO BASCULANTE DE 6 M3, EM VIA URBANA PAVIMENTADA, DMT ATÉ 30 KM (UNIDADE: M3XKM). AF_01/2018 | G157: M³XKM | H157: 106.01 | I157: 1.33 | J157: 1.66 | K157: 175.98 | L157: 1.2424
B158: 4.1.12 | C158: SERVIÇO | D158: SINAPI | E158: 94967 | F158: CONCRETO FCK = 40MPA, TRAÇO 1:1,6:1,9 (CIMENTO/ AREIA MÉDIA/ BRITA 1) - PREPARO MECÂNICO COM BETONEIRA 400 L. AF_07/2016 | G158: M³ | H158: 38.28 | I158: 291.46 | J158: 362.87 | K158: 13890.66 | L158: 1.245
B159: 4.1.13 | C159: SERVIÇO | D159: SINAPI | E159: 92873 | F159: LANÇAMENTO COM USO DE BALDES, ADENSAMENTO E ACABAMENTO DE CONCRETO EM ESTRUTURAS. AF_12/2015 | G159: M³ | H159: 38.28 | I159: 129.37 | J159: 161.07 | K159: 6165.76 | L159: 1.245
B160: 4.1.14 | C160: SERVIÇO | D160: ORSE | E160: 3366 | F160: FORMA PLANA PARA ESTRUTURAS, EM COMPENSADO PLASTIFICADO DE 12MM, 07 USOS, INC LUSIVE ESCORAMENTO - REVISADA 07.2015 | G160: M² | H160: 281.31 | I160: 30.39 | J160: 37.84 | K160: 10644.77 | L160: 1.245
B161: 4.1.15 | C161: SERVIÇO | D161: SINAPI | E161: 92791 | F161: CORTE E DOBRA DE AÇO CA-60, DIÂMETRO DE 5,0 MM, UTILIZADO EM ESTRUTURAS DIVERSAS, EXCETO LAJES. AF_12/2015 | G161: KG | H161: 652 | I161: 5.19 | J161: 6.46 | K161: 4211.92 | L161: 1.2446
B162: 4.1.16 | C162: SERVIÇO | D162: SINAPI | E162: 92794 | F162: CORTE E DOBRA DE AÇO CA-50, DIÂMETRO DE 10,0 MM, UTILIZADO EM ESTRUTURAS DIVERSAS, EXCETO LAJES. AF_12/2015 | G162: KG | H162: 1956 | I162: 4.25 | J162: 5.29 | K162: 10347.24 | L162: 1.2457
B163: 4.1.17 | C163: SERVIÇO | D163: SINAPI | E163: 94962 | F163: CONCRETO MAGRO PARA LASTRO, TRAÇO 1:4,5:4,5 (CIMENTO/ AREIA MÉDIA/ BRITA 1) - PREPARO MECÂNICO COM BETONEIRA 400 L. AF_07/2016 | G163: M³ | H163: 5.16 | I163: 204.67 | J163: 254.81 | K163: 1314.82 | L163: 1.245
B164: 4.1.18 | C164: SERVIÇO | D164: SEINFRA | E164: C0823 | F164: COMPORTA EM FIBRA, CALHA EM ALUMÍNIO | G164: M² | H164: 0.48 | I164: 332.27 | J164: 413.68 | K164: 198.57 | L164: 1.245
B165: 4.1.19 | C165: SERVIÇO | D165: SINAPI | E165: 73932/1 | F165: GRADE DE FERRO EM BARRA CHATA 3/16" | G165: M² | H165: 18.65 | I165: 228.03 | J165: 283.9 | K165: 5294.74 | L165: 1.245
B166: 4.1.20 | C166: SERVIÇO | D166: SINAPI | E166: 73665 | F166: ESCADA TIPO MARINHEIRO EM ACO CA-50 9,52MM INCLUSO PINTURA COM FUNDO ANTICORROSIVO TIPO ZARCAO | G166: M | H166: 11.19 | I166: 49 | J166: 61.01 | K166: 682.7 | L166: 1.245
B167: 4.1.21 | C167: SERVIÇO | D167: SINAPI | E167: 95468 | F167: PINTURA ESMALTE BRILHANTE (2 DEMAOS) SOBRE SUPERFICIE METALICA, INCLUSIVE PROTECAO COM ZARCAO (1 DEMAO) | G167: M² | H167: 18.93 | I167: 29.08 | J167: 36.2 | K167: 685.27 | L167: 1.245
B168: 4.1.22 | C168: SERVIÇO | D168: SINAPI | E168: 73891/1 | F168: ESGOTAMENTO COM MOTO-BOMBA AUTOESCOVANTE | G168: H | H168: 24 | I168: 4.49 | J168: 5.59 | K168: 134.16 | L168: 1.2455
B169: 4.3 | C169: CASA DE COMANDO | K169: =SUM(K170:K188) -> 35678.23
B170: 4.3.1 | C170: SERVIÇO | D170: SINAPI | E170: 93358 | F170: ESCAVAÇÃO MANUAL DE VALA COM PROFUNDIDADE MENOR OU IGUAL A 1,30 M. AF_03/2016 | G170: M³ | H170: 5.49 | I170: 50.41 | J170: =I170+(I170*$I$7) -> 62.76 | K170: =H170*J170 -> 344.55 | L170: 1.245
B171: 4.3.2 | C171: SERVIÇO | D171: SINAPI | E171: 94964 | F171: CONCRETO FCK = 20MPA, TRAÇO 1:2,7:3 (CIMENTO/ AREIA MÉDIA/ BRITA 1) - PREPARO MECÂNICO COM BETONEIRA 400 L. AF_07/2016 | G171: M³ | H171: 3.23 | I171: 242.25 | J171: 301.6 | K171: 974.17 | L171: 1.245
B172: 4.3.3 | C172: SERVIÇO | D172: SINAPI | E172: 92873 | F172: LANÇAMENTO COM USO DE BALDES, ADENSAMENTO E ACABAMENTO DE CONCRETO EM ESTRUTURAS. AF_12/2015 | G172: M³ | H172: 3.23 | I172: 129.37 | J172: 161.07 | K172: 520.26 | L172: 1.245
B173: 4.3.4 | C173: SERVIÇO | D173: ORSE | E173: 3366 | F173: FORMA PLANA PARA ESTRUTURAS, EM COMPENSADO PLASTIFICADO DE 12MM, 07 USOS, INC LUSIVE ESCORAMENTO - REVISADA 07.2015 | G173: M² | H173: 49.21 | I173: 30.39 | J173: 37.84 | K173: 1862.11 | L173: 1.245
B174: 4.3.5 | C174: SERVIÇO | D174: SINAPI | E174: 92791 | F174: CORTE E DOBRA DE AÇO CA-60, DIÂMETRO DE 5,0 MM, UTILIZADO EM ESTRUTURAS DIVERSAS, EXCETO LAJES. AF_12/2015 | G174: KG | H174: 64.6 | I174: 5.19 | J174: 6.46 | K174: 417.32 | L174: 1.2446
B175: 4.3.6 | C175: SERVIÇO | D175: SINAPI | E175: 92794 | F175: CORTE E DOBRA DE AÇO CA-50, DIÂMETRO DE 10,0 MM, UTILIZADO EM ESTRUTURAS DIVERSAS, EXCETO LAJES. AF_12/2015 | G175: KG | H175: 193.8 | I175: 4.25 | J175: 5.29 | K175: 1025.2 | L175: 1.2457
B176: 4.3.7 | C176: SERVIÇO | D176: SINAPI | E176: 87503 | F176: ALVENARIA DE VEDAÇÃO DE BLOCOS CERÂMICOS FURADOS NA HORIZONTAL DE 9X19X19CM (ESPESSURA 9CM) DE PAREDES COM ÁREA LÍQUIDA MAIOR OU IGUAL A 6M² SEM VÃOS E ARGAMASSA DE ASSENTAMENTO COM PREPARO EM BETONEIRA. AF_06/2014 | G176: M² | H176: 70.77 | I176: 44.41 | J176: 55.29 | K176: 3912.87 | L176: 1.245
B177: 4.3.8 | C177: SERVIÇO | D177: SINAPI | E177: 87529 | F177: MASSA ÚNICA, PARA RECEBIMENTO DE PINTURA, EM ARGAMASSA TRAÇO 1:2:8, PREPARO MECÂNICO COM BETONEIRA 400L, APLICADA MANUALMENTE EM FACES INTERNAS DE PAREDES, ESPESSURA DE 20MM, COM EXECUÇÃO DE TALISCAS. AF_06/2014 | G177: M² | H177: 141.52 | I177: 22.96 | J177: 28.59 | K177: 4046.06 | L177: 1.2448
B178: 4.3.9 | C178: SERVIÇO | D178: SINAPI | E178: 88489 | F178: APLICAÇÃO MANUAL DE PINTURA COM TINTA LÁTEX ACRÍLICA EM PAREDES, DUAS DEMÃOS. AF_06/2014 | G178: M² | H178: 141.52 | I178: 8.26 | J178: 10.28 | K178: 1454.83 | L178: 1.2454
B179: 4.3.10 | C179: SERVIÇO | D179: SINAPI | E179: 88488 | F179: APLICAÇÃO MANUAL DE PINTURA COM TINTA LÁTEX ACRÍLICA EM TETO, DUAS DEMÃOS. AF_06/2014 | G179: M² | H179: 44.79 | I179: 9.41 | J179: 11.72 | K179: 524.94 | L179: 1.2453
B180: 4.3.11 | C180: SERVIÇO | D180: SINAPI | E180: 68054 | F180: PORTAO DE FERRO EM CHAPA GALVANIZADA PLANA 14 GSG | G180: M² | H180: 6.68 | I180: 187 | J180: 232.82 | K180: 1555.24 | L180: 1.245
B181: 4.3.12 | C181: SERVIÇO | D181: ORSE | E181: 6320 | F181: LASTRO DE CONCRETO, FCK=15 MPA, LANÇADO E ADENSADO | G181: M³ | H181: 2.6 | I181: 312.85 | J181: 389.5 | K181: 1012.7 | L181: 1.245
B182: 4.3.13 | C182: SERVIÇO | D182: SINAPI | E182: 98679 | F182: PISO CIMENTADO, TRAÇO 1:3 (CIMENTO E AREIA), ACABAMENTO LISO, ESPESSURA 2,0 CM, PREPARO MECÂNICO DA ARGAMASSA. AF_06/2018 | G182: M² | H182: 26 | I182: 20.69 | J182: 25.76 | K182: 669.76 | L182: 1.2449
B183: 4.3.14 | C183: SERVIÇO | D183: SINAPI | E183: 94998 | F183: EXECUÇÃO DE PASSEIO (CALÇADA) OU PISO DE CONCRETO COM CONCRETO MOLDADO IN LOCO, FEITO EM OBRA, ACABAMENTO CONVENCIONAL, ESPESSURA 12 CM, ARMADO. AF_07/2016 | G183: M² | H183: 13.25 | I183: 68.91 | J183: 85.79 | K183: 1136.72 | L183: 1.245
B184: 4.3.15 | C184: SERVIÇO | D184: SINAPI | E184: 95465 | F184: COBOGO CERAMICO (ELEMENTO VAZADO), 9X20X20CM, ASSENTADO COM ARGAMASSA TRACO 1:4 DE CIMENTO E AREIA | G184: M² | H184: 3.84 | I184: 92.74 | J184: 115.46 | K184: 443.37 | L184: 1.245
B185: 4.3.16 | C185: SERVIÇO | D185: SINAPI | E185: 74202/1 | F185: LAJE PRE-MOLDADA P/FORRO, SOBRECARGA 100KG/M2, VAOS ATE 3,50M/E=8CM, C/LAJOTAS E CAP.C/CONC FCK=20MPA, 3CM, INTER-EIXO 38CM, C/ESCORAMENTO (REAPR.3X) E FERRAGEM NEGATIVA | G185: M² | H185: 154 | I185: 54.48 | J185: 67.83 | K185: 10445.82 | L185: 1.245
B186: 4.3.17 | C186: SERVIÇO | D186: SINAPI | E186: 73661 | F186: FORNECIMENTO E INSTALACAO DE TALHA E TROLEY MANUAL DE 1 TONELADA | G186: UN | H186: 1 | I186: 1703.65 | J186: 2121.04 | K186: 2121.04 | L186: 1.245
B187: 4.3.18 | C187: SERVIÇO | D187: SINAPI | E187: 83514 | F187: FORNECIMENTO DE PERFIL SIMPLES "I" OU "H" 8 A 12" INCLUSIVE PERDAS | G187: KG | H187: 163.5 | I187: 5.45 | J187: 6.79 | K187: 1110.17 | L187: 1.2448
B188: 4.3.19 | C188: SERVIÇO | D188: SEINFRA | E188: C3497 | F188: MONTAGEM DE TUBOS, CONEXÕES E PÇS, ELEVATÓRIA C/ VAZÃO DE 5,01 À 10 l/s | G188: UN | H188: 1 | I188: 1687.63 | J188: 2101.1 | K188: 2101.1 | L188: 1.245
B189: 4.4 | C189: URBANIZAÇÃO | K189: =SUM(K190:K196) -> 42214.53
B190: 4.4.1 | C190: SERVIÇO | D190: ORSE | E190: 11146 | F190: MURO EM ALVENARIA BLOCO CERÂMICO, E= 0,09M, C/ ALV DE PEDRA GRANÍTICA, 0,35 X 0,60M, COLUNAS (9X20CM) E CINTAMENTO (9X15CM) SUPERIOR E INFERIOR CONCRETO AR MADO FCK = 15,0 MPA CADA 3,00M, CHAPISCO E REBOCO | G190: M² | H190: 154 | I190: 110.68 | J190: =I190+(I190*$I$7) -> 137.8 | K190: =H190*J190 -> 21221.2 | L190: 1.245
B191: 4.4.2 | C191: SERVIÇO | D191: ORSE | E191: 4713 | F191: CONCERTINA EM AÇO GALVANIZADO, ESPIRAL DE Ø = 450MM, 3 CLIPES P/ ESPIRAL, LÂM INA DE 30MM E FIO INTERNO DE 2,50MM, INCLUISIVE INSTALAÇÃO | G191: M | H191: 70 | I191: 25.73 | J191: 32.03 | K191: 2242.1 | L191: 1.245
B192: 4.4.3 | C192: SERVIÇO | D192: SINAPI | E192: 88489 | F192: APLICAÇÃO MANUAL DE PINTURA COM TINTA LÁTEX ACRÍLICA EM PAREDES, DUAS DEMÃOS. AF_06/2014 | G192: M² | H192: 308 | I192: 8.26 | J192: 10.28 | K192: 3166.24 | L192: 1.2454
B193: 4.4.4 | C193: SERVIÇO | D193: SINAPI | E193: 72799 | F193: PAVIMENTO EM PARALELEPIPEDO SOBRE COLCHAO DE AREIA REJUNTADO COM ARGAMASSA DE CIMENTO E AREIA NO TRAÇO 1:3 (PEDRAS PEQUENAS 30 A 35 PECAS POR M2) | G193: M² | H193: 157.23 | I193: 62.81 | J193: 78.2 | K193: 12295.39 | L193: 1.245
B194: 4.4.5 | C194: SERVIÇO | D194: SINAPI | E194: 94998 | F194: EXECUÇÃO DE PASSEIO (CALÇADA) OU PISO DE CONCRETO COM CONCRETO MOLDADO IN LOCO, FEITO EM OBRA, ACABAMENTO CONVENCIONAL, ESPESSURA 12 CM, ARMADO. AF_07/2016 | G194: M² | H194: 12 | I194: 68.91 | J194: 85.79 | K194: 1029.48 | L194: 1.245
B195: 4.4.6 | C195: SERVIÇO | D195: SINAPI | E195: 94263 | F195: GUIA (MEIO-FIO) CONCRETO, MOLDADA IN LOCO EM TRECHO RETO COM EXTRUSORA, 11,5 CM BASE X 22 CM ALTURA. AF_06/2016 | G195: M | H195: 10 | I195: 16.97 | J195: 21.13 | K195: 211.3 | L195: 1.2449
B196: 4.4.7 | C196: SERVIÇO | D196: SINAPI | E196: 68054 | F196: PORTAO DE FERRO EM CHAPA GALVANIZADA PLANA 14 GSG | G196: M² | H196: 8.8 | I196: 187 | J196: 232.82 | K196: 2048.82 | L196: 1.245
B197: 4.5 | C197: RELAÇÃO DE MATERIAIS E EQUIPAMENTOS PARA EEE-01 | K197: =SUM(K198:K224) -> 69092.72
B198: 4.5.1 | C198: INSUMO | D198: SIGMMA ESCO | E198: COTAÇÃO | F198: CONJUNTO MOTO BOMBA RE-AUTOESCORVANTE ESCO (CÓDIGO LP031004P) OU SIMILAR COM AS SEGUINTES CARACTERÍSTICAS: Q = 36,00 M³/H (10,00 L/S) , H = 17,02 MCA, POTÊNCIA CALCULADA = 5,67 CV, POTÊNCIA COMERCIAL = 10 CV, 380 V. ESCOPO DE FORNECIMENTO: BOMBA + BASE + CORREIA/POLIAS + VÁLVULA DE ALÍVIO DE AR + MOTOR, CONFORME PROPOSTA FINANCEIRA APRESENTADA. | G198: UN | H198: 2 | I198: 18654.35 | J198: =I198+(I198*$K$7) -> 21079.42 | K198: =H198*J198 -> 42158.84 | L198: 1.13
B199: 4.5.2 | C199: INSUMO | D199: SEINFRA | E199: I7266 | F199: TUBO FoFo PB JE K-9 P/ ESGOTO DN 150 | G199: M | H199: 2 | I199: 231.28 | J199: 261.35 | K199: 522.7 | L199: 1.13
B200: 4.5.3 | C200: INSUMO | D200: SEINFRA | E200: I3893 | F200: JUNTA GIBAULT DN 150 | G200: UN | H200: 3 | I200: 234.56 | J200: 265.05 | K200: 795.15 | L200: 1.13
... 310 more rows

Sheet CPU COMPLETA (hidden)
A1: IDEAL SAN | B1: COTAÇÃO | C1: DIGESTOR E FILTRO ANAERÓBIOS EM FIBRA DE VIDRO, DE FORMA CILÍNDRICA CONSTITUÍDO POR CILÍNDRO INTERNO (DIGESTOR) E ANEL EXTERNO(FILTRO) COM 5,20M DE ALTURA E DIÂMETRO TOTAL DE 7,00M, SENDO 5,00M O DIÂMETRO DO DIGESTOR E 1,00M A LARGURA DA FAIXA QUE CONSTITUÍ O FILTRO, TOTALIZANDO UMA ÁREA EM CHAPAS DE FIBRA DE VIDRO DE 390,00M². FORNECIMENTO, TRANSPORTE, MONTAGEM NO LOCAL E TESTE (MOTAGEM E INTERLIGAÇÃO DE TODAS AS UNIDADES, INCLUINDO COLOCAÇÃO DO MEIO SUPORTE NOS FILTROS) | D1: UN | E1: 11
A3: CODEVASF | B3: COMPOSIÇÃO | C3: CAIXA DE PASSAGEM EM ANEL CONCRETO ARMADO PRÉ-MOLD. DN = 0,60 PROF. H = 0,60 MC/TAMPA EM CONCRETO ARMADO | D3: UN | E3: 2500
C4: ANEL DE CONCRETO ARMADO, D = 0,60 M, H = 0,30 M | D4: UN | E4: 1 | F4: 38,49 | G4: 38.49
C5: ANEL DE CONCRETO ARMADO, D = 0,60 M, H = 0,10 M | D5: UN | E5: 3 | F5: 25,95 | G5: 77.85
C6: ARGAMASSA TRAÇO 1:4 (CIMENTO E AREIA MÉDIA), PREPARO MECÂNICO COM BETONEIRA 400 L. AF_08/2014 | D6: M³ | E6: 0.006 | F6: 317,41 | G6: 1.9
C7: CONCRETO USINADO FCK=10 MPA | D7: M³ | E7: 0.013 | F7: 236 | G7: 3.07
C8: CONCRETO USINADO FCK=15 MPA | D8: M³ | E8: 0.013 | F8: 242 | G8: 3.15
C9: ARAME RECOZIDO 18 BWG, 1,25 MM (0,01 KG/M) | D9: KG | E9: 0.05 | F9: 9,65 | G9: 0.48
C10: ACO CA-25, 6,3 MM, VERGALHAO | D10: KG | E10: 1.2 | F10: 4,47 | G10: 5.36
C11: PREGO DE ACO POLIDO COM CABECA 18 X 30 (2 3/4 X 10) | D11: KG | E11: 0.05 | F11: 11,39 | G11: 0.57
C12: TABUA MADEIRA 2A QUALIDADE 2,5 X 30,0CM (1 X 12") NAO APARELHADA | D12: M | E12: 0.4 | F12: 7,93 | G12: 3.17
C13: ESCAVAÇÃO MANUAL DE VALA COM PROFUNDIDADE MENOR OU IGUAL A 1,30 M. AF_03/2016 | D13: M³ | E13: 0.17 | F13: 62,70 | G13: 10.66
C14: PEDREIRO | D14: H | E14: 1.25 | F14: 14,74 | G14: 18.43
C15: SERVENTE DE OBRAS | D15: H | E15: 1.25 | F15: 11,09 | G15: 13.86
A17: CODEVASF | B17: COMPOSIÇÃO | C17: ADMINISTRAÇÃO LOCAL E MANUTENÇÃO DE CANTEIRO DE OBRAS | D17: UN | E17: 1
C18: ENGENHEIRO CIVIL DE OBRA JUNIOR (MENSALISTA) | D18: MES | E18: 0.25 | F18: 14.018,98 | G18: 3504.75
C19: ENCARREGADO GERAL DE OBRAS (MENSALISTA) | D19: MES | E19: 1 | F19: 5.999,47 | G19: 5999.47
C20: TÉCNICO DE SEGURANÇA | D20: MÊS | E20: 0.5 | F20: 3215.04 | G20: 1607.52
C21: VIGIA NOTURNO, HORA EFETIVAMENTE TRABALHADA DE 22 H AS 5 H (COM ADICIONAL NOTURNO) | D21: H | E21: 154 | F21: 14,24 | G21: 2192.96
C22: VIGIA DIURNO | D22: H | E22: 88 | F22: 11,55 | G22: 1016.4
C23: MEDICAMENTOS PRIMEIROS SOCORROS | D23: MÊS | E23: 1 | F23: 29.75 | G23: 29.75
C24: MATERIAL DE LIMPEZA | D24: MÊS | E24: 1 | F24: 75.31 | G24: 75.31
C25: KIT BÁSICO DE EPI - FARDAMENTO, BOTA DE COURO, CAPACETE, LUVA RASPA, ÓCULOS, MÁSCARA FILTRO PAPEL, FILTRO SOLAR FPS30 (CUSTO MENSAL) | D25: UN | E25: 2 | F25: 128.87 | G25: 257.74
C26: ENERGIA ELETRICA COMERCIAL, BAIXA TENSAO, RELATIVA AO CONSUMO DE ATE 100 KWH, INCLUINDO ICMS, PIS/PASEP E COFINS | D26: KW/H | E26: 300 | F26: 0,52 | G26: 156
C27: TARIFA "A" ENTRE 0 E 20M3 FORNECIMENTO D'AGUA | D27: M³ | E27: 2 | F27: 9,83 | G27: 19.66
C28: MATERIAL DE ESCRITÓRIO | D28: MÊS | E28: 1 | F28: 30 | G28: 30
C29: INTERNET | D29: UNxMÊS | E29: 1 | F29: 130 | G29: 130
A31: IDEAL SAN | B31: COTAÇÃO | C31: BARRILETE DE INTERLIGAÇÃO DOS REATORES HÍBRIDOS E TUBULAÇÕES DE LANÇAMENTO NOS LEITOS DE SECAGEM E LAGOA DE MATURAÇÃO, CONSTITUÍDOS POR TUBOS E CONEXÕES EM RPVC, FLANGES E VÁLVULAS. | D31: UN | E31: 2
A33: SINAPI | B33: 87702 | C33: CONTRAPISO EM ARGAMASSA TRAÇO 1:4 (CIMENTO E AREIA), PREPARO MANUAL, APLICADO EM ÁREAS SECAS SOBRE LAJE, NÃO ADERIDO, ESPESSURA 6CM. AF_06/2014 | D33: M² | E33: 7804.5
C34: ARGAMASSA TRAÇO 1:4 (CIMENTO E AREIA MÉDIA) PARA CONTRAPISO, PREPARO MANUAL. AF_06/2014 | D34: M3 | E34: 0,0661000 | F34: 452,22 | G34: 29,89
C35: PEDREIRO COM ENCARGOS COMPLEMENTARES | D35: H | E35: 0,3700000 | F35: 19,57 | G35: 7,24
C36: SERVENTE COM ENCARGOS COMPLEMENTARES | D36: H | E36: 0,1850000 | F36: 15,85 | G36: 2,93
A38: ORSE | B38: 4503 | C38: ESCAVAÇÃO MANUAL DE VALA OU CAVA EM MATERIAL DE 3ª CATEGORIA, PROFUNDIDADE AT É 4,00 M, COM USO DE EXPLOSIVOS E PERFURAÇÃO MECÂNICA | D38: M³ | E38: 1157.21
A40: SINAPI | B40: 93378 | C40: REATERRO MECANIZADO DE VALA COM RETROESCAVADEIRA (CAPACIDADE DA CAÇAMBA DA RETRO: 0,26 M³ / POTÊNCIA: 88 HP), LARGURA ATÉ 0,8 M, PROFUNDIDADE ATÉ 1,5 M, COM SOLO (SEM SUBSTITUIÇÃO) DE 1ª CATEGORIA EM LOCAIS COM BAIXO NÍVEL DE INTERFERÊNCIA. AF_04/2016 | D40: M³ | E40: 10896.39
C41: RETROESCAVADEIRA SOBRE RODAS COM CARREGADEIRA, TRAÇÃO 4X4, POTÊNCIA LÍQ. 88 HP, CAÇAMBA CARREG. CAP. MÍN. 1 M3, CAÇAMBA RETRO CAP. 0,26 M3, PESO OPERACIONAL MÍN. 6.674 KG, PROFUNDIDADE ESCAVAÇÃO MÁX. 4,37 M - CHP DIURNO. AF_06/2014 | D41: CHP | E41: 0,0410000 | F41: 114,98 | G41: 4,71
C42: RETROESCAVADEIRA SOBRE RODAS COM CARREGADEIRA, TRAÇÃO 4X4, POTÊNCIA LÍQ. 88 HP, CAÇAMBA CARREG. CAP. MÍN. 1 M3, CAÇAMBA RETRO CAP. 0,26 M3, PESO OPERACIONAL MÍN. 6.674 KG, PROFUNDIDADE ESCAVAÇÃO MÁX. 4,37 M - CHI DIURNO. AF_06/2014 | D42: CHI | E42: 0,0540000 | F42: 55,33 | G42: 2,98
C43: SERVENTE COM ENCARGOS COMPLEMENTARES | D43: H | E43: 0,0420000 | F43: 15,85 | G43: 0,66
C44: COMPACTADOR DE SOLOS DE PERCUSSÃO (SOQUETE) COM MOTOR A GASOLINA 4 TEMPOS, POTÊNCIA 4 CV - CHP DIURNO. AF_08/2015 | D44: CHP | E44: 0,2050000 | F44: 37,70 | G44: 7,72
C45: COMPACTADOR DE SOLOS DE PERCUSSÃO (SOQUETE) COM MOTOR A GASOLINA 4 TEMPOS, POTÊNCIA 4 CV - CHI DIURNO. AF_08/2015 | D45: CHI | E45: 0,1900000 | F45: 34,23 | G45: 6,50
C46: UMIDIFICAÇÃO DE MATERIAL PARA VALAS COM CAMINHÃO PIPA 10000L. AF_11/2016 | D46: M3 | E46: 1,0000000 | F46: 1,29 | G46: 1,29
A48: SINAPI | B48: 94342 | C48: ATERRO MANUAL DE VALAS COM AREIA PARA ATERRO E COMPACTAÇÃO MECANIZADA. AF_05/2016 | D48: M³ | E48: 2809.62
C49: AREIA PARA ATERRO - POSTO JAZIDA/FORNECEDOR (RETIRADO NA JAZIDA, SEM TRANSPORTE) | D49: M3 | E49: 1,2500000 | F49: 48,75 | G49: 60,93
C50: CAMINHÃO PIPA 10.000 L TRUCADO, PESO BRUTO TOTAL 23.000 KG, CARGA ÚTIL MÁXIMA 15.935 KG, DISTÂNCIA ENTRE EIXOS 4,8 M, POTÊNCIA 230 CV, INCLUSIVE TANQUE DE AÇO PARA TRANSPORTE DE ÁGUA - CHP DIURNO. AF_06/2014 | D50: CHP | E50: 0,0060000 | F50: 171,23 | G50: 1,02
C51: CAMINHÃO PIPA 10.000 L TRUCADO, PESO BRUTO TOTAL 23.000 KG, CARGA ÚTIL MÁXIMA 15.935 KG, DISTÂNCIA ENTRE EIXOS 4,8 M, POTÊNCIA 230 CV, INCLUSIVE TANQUE DE AÇO PARA TRANSPORTE DE ÁGUA - CHI DIURNO. AF_06/2014 | D51: CHI | E51: 0,0030000 | F51: 46,48 | G51: 0,13
C52: SERVENTE COM ENCARGOS COMPLEMENTARES | D52: H | E52: 0,6590000 | F52: 15,85 | G52: 10,44
C53: COMPACTADOR DE SOLOS DE PERCUSSÃO (SOQUETE) COM MOTOR A GASOLINA 4 TEMPOS, POTÊNCIA 4 CV - CHP DIURNO. AF_08/2015 | D53: CHP | E53: 0,2740000 | F53: 37,70 | G53: 10,32
C54: COMPACTADOR DE SOLOS DE PERCUSSÃO (SOQUETE) COM MOTOR A GASOLINA 4 TEMPOS, POTÊNCIA 4 CV - CHI DIURNO. AF_08/2015 | D54: CHI | E54: 0,2540000 | F54: 34,23 | G54: 8,69
A56: SINAPI | B56: 94111 | C56: LASTRO DE VALA COM PREPARO DE FUNDO, LARGURA MENOR QUE 1,5 M, COM CAMADA DE AREIA, LANÇAMENTO MECANIZADO, EM LOCAL COM NÍVEL BAIXO DE INTERFERÊNCIA. AF_06/2016 | D56: M³ | E56: 1812.72
C57: AREIA MEDIA - POSTO JAZIDA/FORNECEDOR (RETIRADO NA JAZIDA, SEM TRANSPORTE) | D57: M3 | E57: 1,1000000 | F57: 55,00 | G57: 60,50
C58: RETROESCAVADEIRA SOBRE RODAS COM CARREGADEIRA, TRAÇÃO 4X4, POTÊNCIA LÍQ. 88 HP, CAÇAMBA CARREG. CAP. MÍN. 1 M3, CAÇAMBA RETRO CAP. 0,26 M3, PESO OPERACIONAL MÍN. 6.674 KG, PROFUNDIDADE ESCAVAÇÃO MÁX. 4,37 M - CHP DIURNO. AF_06/2014 | D58: CHP | E58: 0,1060000 | F58: 114,98 | G58: 12,18
C59: RETROESCAVADEIRA SOBRE RODAS COM CARREGADEIRA, TRAÇÃO 4X4, POTÊNCIA LÍQ. 88 HP, CAÇAMBA CARREG. CAP. MÍN. 1 M3, CAÇAMBA RETRO CAP. 0,26 M3, PESO OPERACIONAL MÍN. 6.674 KG, PROFUNDIDADE ESCAVAÇÃO MÁX. 4,37 M - CHI DIURNO. AF_06/2014 | D59: CHI | E59: 0,5300000 | F59: 55,33 | G59: 29,32
C60: PEDREIRO COM ENCARGOS COMPLEMENTARES | D60: H | E60: 0,7630000 | F60: 19,57 | G60: 14,93
C61: SERVENTE COM ENCARGOS COMPLEMENTARES | D61: H | E61: 1,1440000 | F61: 15,85 | G61: 18,13
C62: COMPACTADOR DE SOLOS DE PERCUSSÃO (SOQUETE) COM MOTOR A GASOLINA 4 TEMPOS, POTÊNCIA 4 CV - CHP DIURNO. AF_08/2015 | D62: CHP | E62: 0,0690000 | F62: 37,70 | G62: 2,60
C63: COMPACTADOR DE SOLOS DE PERCUSSÃO (SOQUETE) COM MOTOR A GASOLINA 4 TEMPOS, POTÊNCIA 4 CV - CHI DIURNO. AF_08/2015 | D63: CHI | E63: 0,0640000 | F63: 34,23 | G63: 2,19
A65: SINAPI | B65: 36365 | C65: TUBO COLETOR DE ESGOTO PVC, JEI, DN 100 MM (NBR 7362) | D65: M | E65: 15612
A67: SINAPI | B67: 73790/4 | C67: REASSENTAMENTO DE PARALELEPIPEDO SOBRE COLCHAO DE PO DE PEDRA ESPESSURA 10CM, REJUNTADO COM ARGAMASSA TRACO 1:3 (CIMENTO E AREIA), CONSIDERANDO APROVEITAMENTO DO PARALELEPIPEDO | D67: M² | E67: 4406.8
C68: PO DE PEDRA (POSTO PEDREIRA/FORNECEDOR, SEM FRETE) | D68: M3 | E68: 0,1000000 | F68: 52,86 | G68: 5,28
C69: CALCETEIRO COM ENCARGOS COMPLEMENTARES | D69: H | E69: 0,4000000 | F69: 19,45 | G69: 7,78
C70: SERVENTE COM ENCARGOS COMPLEMENTARES | D70: H | E70: 1,3000000 | F70: 15,85 | G70: 20,60
C71: ARGAMASSA TRAÇO 1:0,5:4,5 (CIMENTO, CAL E AREIA MÉDIA), PREPARO MECÂNICO COM BETONEIRA 400 L. AF_08/2014 | D71: M3 | E71: 0,0200000 | F71: 373,11 | G71: 7,46
A73: ORSE | B73: 3345 | C73: CONCRETO SIMPLES USINADO FCK=40MPA, BOMBEADO, LANÇADO E ADENSADO EM SUPERESTR UTURA | D73: M³ | E73: 521.8
A75: ORSE | B75: 4357 | C75: ESCAVAÇÃO COM PERFURATRIZ EM MATERIAL DE 2ª CATEGORIA | D75: M³ | E75: 2108.94
A77: SINAPI | B77: 93358 | C77: ESCAVAÇÃO MANUAL DE VALA COM PROFUNDIDADE MENOR OU IGUAL A 1,30 M. AF_03/2016 | D77: M³ | E77: 2456.2
C78: SERVENTE COM ENCARGOS COMPLEMENTARES | D78: H | E78: 3,9560000 | F78: 15,85 | G78: 62,70
A80: SINAPI | B80: 9829 | C80: TUBO PVC DEFOFO, JEI, 1 MPA, DN 200 MM, PARA REDE DE AGUA (NBR 7665) | D80: M | E80: 1266
A82: ORSE | B82: 10605 | C82: KIT SOLAR P/ ILUMINAÇÃO HT-012 US35.115.160-6 COM POSTE DE AÇO GALV.DE 6M, PA INEL SOLAR MONOCRISTALINO 135W/24V, 2 BATERIAS 80AH/12V SELADAS DE CHUMBO-ÁCI DO, LÂMPADA LED 40W/24V/3360LM, CONTROLE INTELIGENTE 10A/12V/24V | D82: UN | E82: 23
A84: SINAPI | B84: 98681 | C84: PISO CIMENTADO, TRAÇO 1:3 (CIMENTO E AREIA), ACABAMENTO RÚSTICO, ESPESSURA 2,0 CM, PREPARO MECÂNICO DA ARGAMASSA. AF_06/2018 | D84: M² | E84: 5463.15
C85: JUNTA PLASTICA DE DILATACAO PARA PISOS, COR CINZA, 17 X 3 MM (ALTURA X ESPESSURA) | D85: M | E85: 1,6700000 | F85: 0,87 | G85: 1,45
C86: ARGAMASSA TRAÇO 1:3 (CIMENTO E AREIA MÉDIA) PARA CONTRAPISO, PREPARO MECÂNICO COM BETONEIRA 400 L. AF_06/2014 | D86: M3 | E86: 0,0310000 | F86: 463,07 | G86: 14,35
C87: PEDREIRO COM ENCARGOS COMPLEMENTARES | D87: H | E87: 0,2980000 | F87: 19,57 | G87: 5,83
C88: SERVENTE COM ENCARGOS COMPLEMENTARES | D88: H | E88: 0,1490000 | F88: 15,85 | G88: 2,36
A90: IDEAL SAN | B90: COTAÇÃO | C90: BARRILETE DE INTERLIGAÇÃO DOS REATORES HÍBRIDOS E TUBULAÇÕES DE LANÇAMENTO NOS LEITOS DE SECAGEM E LAGOA DE MATURAÇÃO, CONSTITUÍDOS POR TUBOS E CONEXÕES EM RPVC, FLANGES E VÁLVULAS. | D90: UN | E90: 1
A92: SINAPI | B92: 92791 | C92: CORTE E DOBRA DE AÇO CA-60, DIÂMETRO DE 5,0 MM, UTILIZADO EM ESTRUTURAS DIVERSAS, EXCETO LAJES. AF_12/2015 | D92: KG | E92: 19620.5
C93: ACO CA-60, 5,0 MM, VERGALHAO | D93: KG | E93: 1,0700000 | F93: 4,50 | G93: 4,81
C94: AJUDANTE DE ARMADOR COM ENCARGOS COMPLEMENTARES | D94: H | E94: 0,0108000 | F94: 14,94 | G94: 0,16
C95: ARMADOR COM ENCARGOS COMPLEMENTARES | D95: H | E95: 0,0769000 | F95: 19,45 | G95: 1,49
A97: CODEVASF | B97: COMPOSIÇÃO | C97: VEÍCULO PICK-UP CABINE DUPLA 4X4 (163 CV) | D97: MÊS | E97: 24
A99: CODEVASF | B99: ELE01 | C99: FORNECIMENTO DOS MATERIAIS PARA O SISTEMA ELÉTRICO DE UMA EEE | D99: UN | E99: 2
A101: SINAPI | B101: 41936 | C101: TUBO COLETOR DE ESGOTO, PVC, JEI, DN 150 MM (NBR 7362) | D101: M | E101: 3492
A103: ORSE | B103: 2341 | C103: IMPERMEABILIZAÇAO FLEXÍVEL, BASE ACRÍLICA, TIPO IGOLFLEX BRANCO SIKA OU SIMIL AR, P/LAJES, CALHAS, VARANDAS, TERRAÇOS E COBERTURAS DE RESERVATORIOS | D103: M² | E103: 2278.37
A105: SINAPI | B105: 94315 | C105: ATERRO MECANIZADO DE VALA COM RETROESCAVADEIRA (CAPACIDADE DA CAÇAMBA DA RETRO: 0,26 M³ / POTÊNCIA: 88 HP), LARGURA ATÉ 0,8 M, PROFUNDIDADE ATÉ 1,5 M, COM SOLO ARGILO-ARENOSO. AF_05/2016 | D105: M³ | E105: 2284.23
C106: RETROESCAVADEIRA SOBRE RODAS COM CARREGADEIRA, TRAÇÃO 4X4, POTÊNCIA LÍQ. 88 HP, CAÇAMBA CARREG. CAP. MÍN. 1 M3, CAÇAMBA RETRO CAP. 0,26 M3, PESO OPERACIONAL MÍN. 6.674 KG, PROFUNDIDADE ESCAVAÇÃO MÁX. 4,37 M - CHP DIURNO. AF_06/2014 | D106: CHP | E106: 0,0410000 | F106: 114,98 | G106: 4,71
C107: RETROESCAVADEIRA SOBRE RODAS COM CARREGADEIRA, TRAÇÃO 4X4, POTÊNCIA LÍQ. 88 HP, CAÇAMBA CARREG. CAP. MÍN. 1 M3, CAÇAMBA RETRO CAP. 0,26 M3, PESO OPERACIONAL MÍN. 6.674 KG, PROFUNDIDADE ESCAVAÇÃO MÁX. 4,37 M - CHI DIURNO. AF_06/2014 | D107: CHI | E107: 0,0540000 | F107: 55,33 | G107: 2,98
C108: CAMINHÃO PIPA 10.000 L TRUCADO, PESO BRUTO TOTAL 23.000 KG, CARGA ÚTIL MÁXIMA 15.935 KG, DISTÂNCIA ENTRE EIXOS 4,8 M, POTÊNCIA 230 CV, INCLUSIVE TANQUE DE AÇO PARA TRANSPORTE DE ÁGUA - CHP DIURNO. AF_06/2014 | D108: CHP | E108: 0,0060000 | F108: 171,23 | G108: 1,02
C109: CAMINHÃO PIPA 10.000 L TRUCADO, PESO BRUTO TOTAL 23.000 KG, CARGA ÚTIL MÁXIMA 15.935 KG, DISTÂNCIA ENTRE EIXOS 4,8 M, POTÊNCIA 230 CV, INCLUSIVE TANQUE DE AÇO PARA TRANSPORTE DE ÁGUA - CHI DIURNO. AF_06/2014 | D109: CHI | E109: 0,0030000 | F109: 46,48 | G109: 0,13
C110: ARGILA, ARGILA VERMELHA OU ARGILA ARENOSA (RETIRADA NA JAZIDA, SEM TRANSPORTE) | D110: M3 | E110: 1,2500000 | F110: 12,25 | G110: 15,31
C111: SERVENTE COM ENCARGOS COMPLEMENTARES | D111: H | E111: 0,0520000 | F111: 15,85 | G111: 0,82
C112: COMPACTADOR DE SOLOS DE PERCUSSÃO (SOQUETE) COM MOTOR A GASOLINA 4 TEMPOS, POTÊNCIA 4 CV - CHP DIURNO. AF_08/2015 | D112: CHP | E112: 0,2740000 | F112: 37,70 | G112: 10,32
C113: COMPACTADOR DE SOLOS DE PERCUSSÃO (SOQUETE) COM MOTOR A GASOLINA 4 TEMPOS, POTÊNCIA 4 CV - CHI DIURNO. AF_08/2015 | D113: CHI | E113: 0,2540000 | F113: 34,23 | G113: 8,69
A115: SINAPI | B115: 97914 | C115: TRANSPORTE COM CAMINHÃO BASCULANTE DE 6 M3, EM VIA URBANA PAVIMENTADA, DMT ATÉ 30 KM (UNIDADE: M3XKM). AF_01/2018 | D115: M³XKM | E115: 60364.7
C116: CAMINHÃO BASCULANTE 6 M3 TOCO, PESO BRUTO TOTAL 16.000 KG, CARGA ÚTIL MÁXIMA 11.130 KG, DISTÂNCIA ENTRE EIXOS 5,36 M, POTÊNCIA 185 CV, INCLUSIVE CAÇAMBA METÁLICA - CHP DIURNO. AF_06/2014 | D116: CHP | E116: 0,0104200 | F116: 147,90 | G116: 1,54
C117: CAMINHÃO BASCULANTE 6 M3 TOCO, PESO BRUTO TOTAL 16.000 KG, CARGA ÚTIL MÁXIMA 11.130 KG, DISTÂNCIA ENTRE EIXOS 5,36 M, POTÊNCIA 185 CV, INCLUSIVE CAÇAMBA METÁLICA - CHI DIURNO. AF_06/2014 | D117: CHI | E117: 0,0026000 | F117: 44,04 | G117: 0,11
A119: SINAPI | B119: 9537 | C119: LIMPEZA FINAL DA OBRA | D119: M² | E119: 38152.8
C120: ACIDO MURIATICO, DILUICAO 10% A 12% PARA USO EM LIMPEZA | D120: L | E120: 0,0500000 | F120: 4,05 | G120: 0,20
C121: SERVENTE COM ENCARGOS COMPLEMENTARES | D121: H | E121: 0,1400000 | F121: 15,85 | G121: 2,21
A123: ORSE | B123: 3366 | C123: FORMA PLANA PARA ESTRUTURAS, EM COMPENSADO PLASTIFICADO DE 12MM, 07 USOS, INC LUSIVE ESCORAMENTO - REVISADA 07.2015 | D123: M² | E123: 2404.21
A125: SINAPI | B125: 93389 | C125: REVESTIMENTO CERÂMICO PARA PISO COM PLACAS TIPO ESMALTADA PADRÃO POPULAR DE DIMENSÕES 35X35 CM APLICADA EM AMBIENTES DE ÁREA MENOR QUE 5 M2. AF_06/2014 | D125: M² | E125: 2341.35
C126: PISO EM CERAMICA ESMALTADA, COMERCIAL (PADRAO POPULAR), PEI MAIOR OU IGUAL A 3, FORMATO MENOR OU IGUAL A 2025 CM2 | D126: M2 | E126: 1,0800000 | F126: 13,19 | G126: 14,24
C127: ARGAMASSA COLANTE AC I PARA CERAMICAS | D127: KG | E127: 4,8600000 | F127: 0,60 | G127: 2,91
C128: REJUNTE COLORIDO, CIMENTICIO | D128: KG | E128: 0,2400000 | F128: 3,82 | G128: 0,91
C129: AZULEJISTA OU LADRILHISTA COM ENCARGOS COMPLEMENTARES | D129: H | E129: 0,6400000 | F129: 22,37 | G129: 14,31
C130: SERVENTE COM ENCARGOS COMPLEMENTARES | D130: H | E130: 0,2600000 | F130: 15,85 | G130: 4,12
A132: SIGMMA ESCO | B132: COTAÇÃO | C132: CONJUNTO MOTO BOMBA RE-AUTOESCORVANTE ESCO (CÓDIGOHP061504P) OU SIMILAR COM AS SEGUINTES CARACTERÍSTICAS: CONJUNTO MOTOBOMBA RE-AUTOESCORVANTE ESCO: Q = 90,00 M³/H (25 L/S) , H = 21,06 MCA, POTÊNCIA CALCULADA = 10,80 CV, POTÊNCIA COMERCIAL = 15 CV, 380 V. ESCOPO DE FORNECIMENTO: BOMBA + BASE + CORREIA/POLIAS + VÁLVULA DE ALÍVIO DE AR + MOTOR, CONFORME PROPOSTA FINANCEIRA APRESENTADA. | D132: UN | E132: 2
A134: SINAPI | B134: 74142/4 | C134: CERCA COM MOUROES DE CONCRETO, SECAO "T" PONTA INCLINADA, 10X10CM, ESPACAMENTO DE 3M, CRAVADOS 0,5M, COM 11 FIOS DE ARAME FARPADO Nº 16 | D134: M | E134: 1500
C135: ARAME FARPADO GALVANIZADO, 16 BWG (1,65 MM), CLASSE 250 | D135: M | E135: 12,1000000 | F135: 0,76 | G135: 9,19
C136: ARAME GALVANIZADO 18 BWG, 1,24MM (0,009 KG/M) | D136: KG | E136: 0,1100000 | F136: 14,54 | G136: 1,59
C137: ESCORA PRE-MOLDADA EM CONCRETO, *10 X 10* CM, H = 2,30M | D137: UN | E137: 0,0800000 | F137: 33,05 | G137: 2,64
C138: MOURAO CONCRETO CURVO, SECAO "T", H = 2,80 M + CURVA COM 0,45 M, COM FUROS PARA FIOS | D138: UN | E138: 0,4000000 | F138: 41,70 | G138: 16,68
C139: PEDREIRO COM ENCARGOS COMPLEMENTARES | D139: H | E139: 0,3000000 | F139: 19,57 | G139: 5,87
C140: SERVENTE COM ENCARGOS COMPLEMENTARES | D140: H | E140: 0,6000000 | F140: 15,85 | G140: 9,51
C141: CONCRETO MAGRO PARA LASTRO, TRAÇO 1:4,5:4,5 (CIMENTO/ AREIA MÉDIA/ BRITA 1) - PREPARO MECÂNICO COM BETONEIRA 400 L. AF_07/2016 | D141: M3 | E141: 0,0288000 | F141: 254,54 | G141: 7,33
A143: SINAPI | B143: 90105 | C143: ESCAVAÇÃO MECANIZADA DE VALA COM PROFUNDIDADE ATÉ 1,5 M (MÉDIA ENTRE MONTANTE E JUSANTE/UMA COMPOSIÇÃO POR TRECHO) COM RETROESCAVADEIRA (CAPACIDADE DA CAÇAMBA DA RETRO: 0,26 M3 / POTÊNCIA: 88 HP), LARGURA MENOR QUE 0,8 M, EM SOLO DE 1A CATEGORIA, LOCAISCOM BAIXO NÍVEL DE INTERFERÊNCIA. AF_01/2015 | D143: M³ | E143: 10033.52
C144: RETROESCAVADEIRA SOBRE RODAS COM CARREGADEIRA, TRAÇÃO 4X4, POTÊNCIA LÍQ. 88 HP, CAÇAMBA CARREG. CAP. MÍN. 1 M3, CAÇAMBA RETRO CAP. 0,26 M3, PESO OPERACIONAL MÍN. 6.674 KG, PROFUNDIDADE ESCAVAÇÃO MÁX. 4,37 M - CHP DIURNO. AF_06/2014 | D144: CHP | E144: 0,0355000 | F144: 114,98 | G144: 4,08
C145: RETROESCAVADEIRA SOBRE RODAS COM CARREGADEIRA, TRAÇÃO 4X4, POTÊNCIA LÍQ. 88 HP, CAÇAMBA CARREG. CAP. MÍN. 1 M3, CAÇAMBA RETRO CAP. 0,26 M3, PESO OPERACIONAL MÍN. 6.674 KG, PROFUNDIDADE ESCAVAÇÃO MÁX. 4,37 M - CHI DIURNO. AF_06/2014 | D145: CHI | E145: 0,0429000 | F145: 55,33 | G145: 2,37
C146: SERVENTE COM ENCARGOS COMPLEMENTARES | D146: H | E146: 0,0784000 | F146: 15,85 | G146: 1,24
A148: SEINFRA | B148: C3475 | C148: TRAVESSIA MÉTODO NÃO DESTRUTIVO P/ TUBO 100<DN<=200 (COMPLETO) | D148: M | E148: 45
A150: ORSE | B150: 16 | C150: DEMOLIÇÃO MANUAL DE PISO EM CONCRETO SIMPLES E/OU CIMENTADO | D150: M² | E150: 3902.25
A152: SINAPI | B152: 9828 | C152: TUBO PVC DEFOFO, JEI, 1 MPA, DN 150 MM, PARA REDE DE AGUA (NBR 7665) | D152: M | E152: 1092
A154: ORSE | B154: 59 | C154: INTERDIÇÃO DE OBRA COM FITA DE SINALIZAÇÃO | D154: M | E154: 9861.9
A156: ORSE | B156: 2600 | C156: REPOSIÇÃO DE PAVIMENTAÇÃO ASFÁLTICA, INCLUINDO PINTURA DE LIGAÇÃO, FORNECIMEN TO E APLICAÇÃO DE CBUQ | D156: M² | E156: 1635.4
A158: ORSE | B158: 11146 | C158: MURO EM ALVENARIA BLOCO CERÂMICO, E= 0,09M, C/ ALV DE PEDRA GRANÍTICA, 0,35 X 0,60M, COLUNAS (9X20CM) E CINTAMENTO (9X15CM) SUPERIOR E INFERIOR CONCRETO AR MADO FCK = 15,0 MPA CADA 3,00M, CHAPISCO E REBOCO | D158: M² | E158: 462
A160: CODEVASF | B160: ELE04 | C160: FORNECIMENTO DOS MATERIAIS PARA O SISTEMA ELÉTRICO DA EEE-02 | D160: UN | E160: 1
A162: SINAPI | B162: 92794 | C162: CORTE E DOBRA DE AÇO CA-50, DIÂMETRO DE 10,0 MM, UTILIZADO EM ESTRUTURAS DIVERSAS, EXCETO LAJES. AF_12/2015 | D162: KG | E162: 10728.2
C163: ACO CA-50, 10,0 MM, VERGALHAO | D163: KG | E163: 1,1100000 | F163: 4,54 | G163: 5,03
C164: AJUDANTE DE ARMADOR COM ENCARGOS COMPLEMENTARES | D164: H | E164: 0,0018000 | F164: 14,94 | G164: 0,02
C165: ARMADOR COM ENCARGOS COMPLEMENTARES | D165: H | E165: 0,0125000 | F165: 19,45 | G165: 0,24
A167: SINAPI | B167: 94962 | C167: CONCRETO MAGRO PARA LASTRO, TRAÇO 1:4,5:4,5 (CIMENTO/ AREIA MÉDIA/ BRITA 1) - PREPARO MECÂNICO COM BETONEIRA 400 L. AF_07/2016 | D167: M³ | E167: 210.44
C168: AREIA MEDIA - POSTO JAZIDA/FORNECEDOR (RETIRADO NA JAZIDA, SEM TRANSPORTE) | D168: M3 | E168: 0,8590000 | F168: 55,00 | G168: 47,24
C169: CIMENTO PORTLAND COMPOSTO CP II-32 | D169: KG | E169: 212,2100000 | F169: 0,43 | G169: 91,25
C170: PEDRA BRITADA N. 1 (9,5 a 19 MM) POSTO PEDREIRA/FORNECEDOR, SEM FRETE | D170: M3 | E170: 0,5790000 | F170: 55,38 | G170: 32,06
C171: SERVENTE COM ENCARGOS COMPLEMENTARES | D171: H | E171: 2,4500000 | F171: 15,85 | G171: 38,83
C172: OPERADOR DE BETONEIRA ESTACIONÁRIA/MISTURADOR COM ENCARGOS COMPLEMENTARES | D172: H | E172: 1,5500000 | F172: 28,44 | G172: 44,08
C173: BETONEIRA CAPACIDADE NOMINAL DE 400 L, CAPACIDADE DE MISTURA 280 L, MOTOR ELÉTRICO TRIFÁSICO POTÊNCIA DE 2 CV, SEM CARREGADOR - CHP DIURNO. AF_10/2014 | D173: CHP | E173: 0,8000000 | F173: 1,11 | G173: 0,88
C174: BETONEIRA CAPACIDADE NOMINAL DE 400 L, CAPACIDADE DE MISTURA 280 L, MOTOR ELÉTRICO TRIFÁSICO POTÊNCIA DE 2 CV, SEM CARREGADOR - CHI DIURNO. AF_10/2014 | D174: CHI | E174: 0,7500000 | F174: 0,27 | G174: 0,20
A176: SINAPI | B176: 94967 | C176: CONCRETO FCK = 40MPA, TRAÇO 1:1,6:1,9 (CIMENTO/ AREIA MÉDIA/ BRITA 1) - PREPARO MECÂNICO COM BETONEIRA 400 L. AF_07/2016 | D176: M³ | E176: 145.36
C177: AREIA MEDIA - POSTO JAZIDA/FORNECEDOR (RETIRADO NA JAZIDA, SEM TRANSPORTE) | D177: M3 | E177: 0,7010000 | F177: 55,00 | G177: 38,55
C178: CIMENTO PORTLAND COMPOSTO CP II-32 | D178: KG | E178: 486,8500000 | F178: 0,43 | G178: 209,34
C179: PEDRA BRITADA N. 1 (9,5 a 19 MM) POSTO PEDREIRA/FORNECEDOR, SEM FRETE | D179: M3 | E179: 0,5610000 | F179: 55,38 | G179: 31,06
C180: SERVENTE COM ENCARGOS COMPLEMENTARES | D180: H | E180: 2,4400000 | F180: 15,85 | G180: 38,67
C181: OPERADOR DE BETONEIRA ESTACIONÁRIA/MISTURADOR COM ENCARGOS COMPLEMENTARES | D181: H | E181: 1,5400000 | F181: 28,44 | G181: 43,79
C182: BETONEIRA CAPACIDADE NOMINAL DE 400 L, CAPACIDADE DE MISTURA 280 L, MOTOR ELÉTRICO TRIFÁSICO POTÊNCIA DE 2 CV, SEM CARREGADOR - CHP DIURNO. AF_10/2014 | D182: CHP | E182: 0,7900000 | F182: 1,11 | G182: 0,87
C183: BETONEIRA CAPACIDADE NOMINAL DE 400 L, CAPACIDADE DE MISTURA 280 L, MOTOR ELÉTRICO TRIFÁSICO POTÊNCIA DE 2 CV, SEM CARREGADOR - CHI DIURNO. AF_10/2014 | D183: CHI | E183: 0,7500000 | F183: 0,27 | G183: 0,20
A185: ORSE | B185: 2830 | C185: LIMPEZA E TESTE DE REDES DE ESGOTOS SANITÁRIOS | D185: M | E185: 28583
A187: SINAPI | B187: 97983 | C187: ACRÉSCIMO PARA POÇO DE VISITA CIRCULAR PARA ESGOTO, EM CONCRETO PRÉ-MOLDADO, DIÂMETRO INTERNO = 1 M. AF_05/2018 | D187: M | E187: 160
C188: RETROESCAVADEIRA SOBRE RODAS COM CARREGADEIRA, TRAÇÃO 4X4, POTÊNCIA LÍQ. 88 HP, CAÇAMBA CARREG. CAP. MÍN. 1 M3, CAÇAMBA RETRO CAP. 0,26 M3, PESO OPERACIONAL MÍN. 6.674 KG, PROFUNDIDADE ESCAVAÇÃO MÁX. 4,37 M - CHP DIURNO. AF_06/2014 | D188: CHP | E188: 0,1523000 | F188: 114,98 | G188: 17,51
C189: RETROESCAVADEIRA SOBRE RODAS COM CARREGADEIRA, TRAÇÃO 4X4, POTÊNCIA LÍQ. 88 HP, CAÇAMBA CARREG. CAP. MÍN. 1 M3, CAÇAMBA RETRO CAP. 0,26 M3, PESO OPERACIONAL MÍN. 6.674 KG, PROFUNDIDADE ESCAVAÇÃO MÁX. 4,37 M - CHI DIURNO. AF_06/2014 | D189: CHI | E189: 0,5122000 | F189: 55,33 | G189: 28,34
C190: ANEL DE CONCRETO ARMADO, D = 1,00 M, H = 0,50 M | D190: UN | E190: 2,0000000 | F190: 92,37 | G190: 184,74
C191: PEDREIRO COM ENCARGOS COMPLEMENTARES | D191: H | E191: 0,9936000 | F191: 19,57 | G191: 19,44
C192: SERVENTE COM ENCARGOS COMPLEMENTARES | D192: H | E192: 0,9936000 | F192: 15,85 | G192: 15,74
C193: ARGAMASSA TRAÇO 1:3 (CIMENTO E AREIA), PREPARO MECANICO , INCLUSO ADITIVO IMPERMEABILIZANTE | D193: M3 | E193: 0,0723000 | F193: 459,28 | G193: 33,20
A195: SINAPI | B195: 97983 | C195: ACRÉSCIMO PARA POÇO DE VISITA CIRCULAR PARA ESGOTO, EM CONCRETO PRÉ-MOLDADO, DIÂMETRO INTERNO = 1 M. AF_05/2018 | D195: M | E195: 160
C196: RETROESCAVADEIRA SOBRE RODAS COM CARREGADEIRA, TRAÇÃO 4X4, POTÊNCIA LÍQ. 88 HP, CAÇAMBA CARREG. CAP. MÍN. 1 M3, CAÇAMBA RETRO CAP. 0,26 M3, PESO OPERACIONAL MÍN. 6.674 KG, PROFUNDIDADE ESCAVAÇÃO MÁX. 4,37 M - CHP DIURNO. AF_06/2014 | D196: CHP | E196: 0,1523000 | F196: 114,98 | G196: 17,51
C197: RETROESCAVADEIRA SOBRE RODAS COM CARREGADEIRA, TRAÇÃO 4X4, POTÊNCIA LÍQ. 88 HP, CAÇAMBA CARREG. CAP. MÍN. 1 M3, CAÇAMBA RETRO CAP. 0,26 M3, PESO OPERACIONAL MÍN. 6.674 KG, PROFUNDIDADE ESCAVAÇÃO MÁX. 4,37 M - CHI DIURNO. AF_06/2014 | D197: CHI | E197: 0,5122000 | F197: 55,33 | G197: 28,34
C198: ANEL DE CONCRETO ARMADO, D = 1,00 M, H = 0,50 M | D198: UN | E198: 2,0000000 | F198: 92,37 | G198: 184,74
C199: PEDREIRO COM ENCARGOS COMPLEMENTARES | D199: H | E199: 0,9936000 | F199: 19,57 | G199: 19,44
C200: SERVENTE COM ENCARGOS COMPLEMENTARES | D200: H | E200: 0,9936000 | F200: 15,85 | G200: 15,74
C201: ARGAMASSA TRAÇO 1:3 (CIMENTO E AREIA), PREPARO MECANICO , INCLUSO ADITIVO IMPERMEABILIZANTE | D201: M3 | E201: 0,0723000 | F201: 459,28 | G201: 33,20
A203: SINAPI | B203: 98420 | C203: (COMPOSIÇÃO REPRESENTATIVA) POÇO DE VISITA CIRCULAR PARA ESGOTO, EM CONCRETO PRÉ-MOLDADO, DIÂMETRO INTERNO = 1,0 M, PROFUNDIDADE ATÉ 1,50 M, INCLUINDO TAMPÃO DE FERRO FUNDIDO, DIÂMETRO DE 60 CM. AF_04/2018 | D203: UN | E203: 35
C204: TAMPA CIRCULAR PARA ESGOTO E DRENAGEM, EM FERRO FUNDIDO, DIÂMETRO INTERNO = 0,6 M. AF_05/2018 | D204: UN | E204: 1,0000000 | F204: 455,66 | G204: 455,66
C205: BASE PARA POÇO DE VISITA CIRCULAR PARA ESGOTO, EM CONCRETO PRÉ-MOLDADO, DIÂMETRO INTERNO = 1 M, PROFUNDIDADE = 1,45 M, EXCLUINDO TAMPÃO. AF_05/2018_P | D205: UN | E205: 1,0000000 | F205: 861,33 | G205: 861,33
A207: SINAPI | B207: 90733 | C207: ASSENTAMENTO DE TUBO DE PVC PARA REDE COLETORA DE ESGOTO DE PAREDE MACIÇA, DN 100 MM, JUNTA ELÁSTICA, INSTALADO EM LOCAL COM NÍVEL BAIXO DE INTERFERÊNCIAS (NÃO INCLUI FORNECIMENTO). AF_06/2015 | D207: M | E207: 15609
C208: ASSENTADOR DE TUBOS COM ENCARGOS COMPLEMENTARES | D208: H | E208: 0,0600000 | F208: 30,48 | G208: 1,82
C209: SERVENTE COM ENCARGOS COMPLEMENTARES | D209: H | E209: 0,0600000 | F209: 15,85 | G209: 0,95
A211: SINAPI | B211: 73877/2 | C211: ESCORAMENTO DE VALAS COM PRANCHOES METALICOS - AREA NAO CRAVADA | D211: M² | E211: 994.2
C212: VIGA DE MADEIRA NAO APARELHADA 6 X 12 CM, MACARANDUBA, ANGELIM OU EQUIVALENTE DA REGIAO | D212: M | E212: 0,1900000 | F212: 20,00 | G212: 3,80
C213: PECA DE MADEIRA NAO APARELHADA *7,5 X 7,5* CM (3 X 3 ") MACARANDUBA, ANGELIM OU EQUIVALENTE DA REGIAO | D213: M | E213: 0,0800000 | F213: 12,50 | G213: 1,00
C214: PREGO DE ACO POLIDO COM CABECA 18 X 27 (2 1/2 X 10) | D214: KG | E214: 0,1200000 | F214: 11,20 | G214: 1,34
C215: PERFIL "U" CHAPA ACO DOBRADA, E = 3,04 MM , H = 20 CM, ABAS = 5 CM (4,47 KG/M) | D215: M | E215: 0,0400000 | F215: 25,03 | G215: 1,00
C216: CARPINTEIRO DE FORMAS COM ENCARGOS COMPLEMENTARES | D216: H | E216: 0,7000000 | F216: 19,45 | G216: 13,61
C217: SERVENTE COM ENCARGOS COMPLEMENTARES | D217: H | E217: 1,4300000 | F217: 15,85 | G217: 22,66
A219: SIGMMA ESCO | B219: COTAÇÃO | C219: CONJUNTO MOTO BOMBA RE-AUTOESCORVANTE ESCO (CÓDIGO LP031004P) OU SIMILAR COM AS SEGUINTES CARACTERÍSTICAS: Q = 36,00 M³/H (10,00 L/S) , H = 17,02 MCA, POTÊNCIA CALCULADA = 5,67 CV, POTÊNCIA COMERCIAL = 10 CV, 380 V. ESCOPO DE FORNECIMENTO: BOMBA + BASE + CORREIA/POLIAS + VÁLVULA DE ALÍVIO DE AR + MOTOR, CONFORME PROPOSTA FINANCEIRA APRESENTADA. | D219: UN | E219: 2
A221: SIGMMA ESCO | B221: COTAÇÃO | C221: CONJUNTO MOTO BOMBA RE-AUTOESCORVANTE ESCO (CÓDIGOLP031004P) OU SIMILAR COM AS SEGUINTES CARACTERÍSTICAS: Q = 60,00 M³/H (16,67 L/S) , H = 15,23 MCA, POTÊNCIA CALCULADA = 6,77 CV, POTÊNCIA COMERCIAL = 10 CV, 380 V. ESCOPO DE FORNECIMENTO: BOMBA + BASE + CORREIA/POLIAS + VÁLVULA DE ALÍVIO DE AR + MOTOR, CONFORME PROPOSTA FINANCEIRA APRESENTADA. | D221: UN | E221: 2
A223: CODEVASF | B223: COMPOSIÇÃO | C223: INSTALAÇÃO DE CANTEIRO DE OBRAS | D223: UN | E223: 1
C224: EXECUÇÃO DE ESCRITÓRIO EM CANTEIRO DE OBRA EM ALVENARIA, NÃO INCLUSO MOBILIÁRIO E EQUIPAMENTOS. AF_02/2016 | D224: M² | E224: 24 | F224: 800,66 | G224: 19215.84
C225: EXECUÇÃO DE ALMOXARIFADO EM CANTEIRO DE OBRA EM CHAPA DE MADEIRA COMPENSADA, INCLUSO PRATELEIRAS. AF_02/2016 | D225: M² | E225: 12 | F225: 556,00 | G225: 6672
C226: EXECUÇÃO DE REFEITÓRIO EM CANTEIRO DE OBRA EM ALVENARIA, NÃO INCLUSO MOBILIÁRIO E EQUIPAMENTOS. AF_02/2016 | D226: M² | E226: 18 | F226: 410,23 | G226: 7384.14
C227: EXECUÇÃO DE SANITÁRIO E VESTIÁRIO EM CANTEIRO DE OBRA EM ALVENARIA, NÃO INCLUSO MOBILIÁRIO. AF_02/2016 | D227: M² | E227: 6 | F227: 732,82 | G227: 4396.92
C228: EXECUÇÃO DE RESERVATÓRIO ELEVADO DE ÁGUA (1000 LITROS) EM CANTEIRO DE OBRA, APOIADO EM ESTRUTURA DE MADEIRA. AF_02/2016 | D228: UN | E228: 1 | F228: 3.312,30 | G228: 3312.3
A230: SINAPI | B230: 41932 | C230: TUBO COLETOR DE ESGOTO PVC, JEI, DN 300 MM (NBR 7362) | D230: M | E230: 276
A232: SINAPI | B232: 72799 | C232: PAVIMENTO EM PARALELEPIPEDO SOBRE COLCHAO DE AREIA REJUNTADO COM ARGAMASSA DE CIMENTO E AREIA NO TRAÇO 1:3 (PEDRAS PEQUENAS 30 A 35 PECAS POR M2) | D232: M² | E232: 471.69
C233: AREIA FINA - POSTO JAZIDA/FORNECEDOR (RETIRADO NA JAZIDA, SEM TRANSPORTE) | D233: M3 | E233: 0,0230000 | F233: 70,00 | G233: 1,61
C234: AREIA GROSSA - POSTO JAZIDA/FORNECEDOR (RETIRADO NA JAZIDA, SEM TRANSPORTE) | D234: M3 | E234: 0,1000000 | F234: 65,00 | G234: 6,50
C235: CIMENTO PORTLAND COMPOSTO CP II-32 | D235: KG | E235: 9,1100000 | F235: 0,43 | G235: 3,91
C236: PARALELEPIPEDO GRANITICO OU BASALTICO, PARA PAVIMENTACAO, SEM FRETE, *30 A 35* PECAS POR M2 | D236: MIL | E236: 0,0350000 | F236: 1.254,00 | G236: 43,89
C237: CALCETEIRO COM ENCARGOS COMPLEMENTARES | D237: H | E237: 0,4000000 | F237: 19,45 | G237: 7,78
C238: SERVENTE COM ENCARGOS COMPLEMENTARES | D238: H | E238: 0,9100000 | F238: 15,85 | G238: 14,42
A240: SINAPI | B240: 87481 | C240: ALVENARIA DE VEDAÇÃO DE BLOCOS CERÂMICOS FURADOS NA VERTICAL DE 19X19X39CM (ESPESSURA 19CM) DE PAREDES COM ÁREA LÍQUIDA MAIOR OU IGUAL A 6M² SEM VÃOS E ARGAMASSA DE ASSENTAMENTO COM PREPARO EM BETONEIRA. AF_06/2014 | D240: M² | E240: 648
C241: TELA DE ACO SOLDADA GALVANIZADA/ZINCADA PARA ALVENARIA, FIO D = *1,20 A 1,70* MM, MALHA 15 X 15 MM, (C X L) *50 X 17,5* CM | D241: M | E241: 0,4200000 | F241: 1,84 | G241: 0,77
C242: PINO DE ACO COM FURO, HASTE = 27 MM (ACAO DIRETA) | D242: CENTO | E242: 0,0100000 | F242: 38,74 | G242: 0,38
C243: BLOCO CERAMICO DE VEDACAO COM FUROS NA VERTICAL, 19 X 19 X 39 CM - 4,5 MPA (NBR 15270) | D243: UN | E243: 13,3500000 | F243: 1,80 | G243: 24,03
C244: ARGAMASSA TRAÇO 1:2:8 (CIMENTO, CAL E AREIA MÉDIA) PARA EMBOÇO/MASSA ÚNICA/ASSENTAMENTO DE ALVENARIA DE VEDAÇÃO, PREPARO MECÂNICO COM BETONEIRA 400 L. AF_06/2014 | D244: M3 | E244: 0,0138000 | F244: 443,03 | G244: 6,11
C245: PEDREIRO COM ENCARGOS COMPLEMENTARES | D245: H | E245: 0,8800000 | F245: 19,57 | G245: 17,22
C246: SERVENTE COM ENCARGOS COMPLEMENTARES | D246: H | E246: 0,4400000 | F246: 15,85 | G246: 6,97
A248: SINAPI | B248: 94045 | C248: ESCORAMENTO DE VALA, TIPO PONTALETEAMENTO, COM PROFUNDIDADE DE 1,5 A 3,0 M, LARGURA MENOR QUE 1,5 M, EM LOCAL COM NÍVEL BAIXO DE INTERFERÊNCIA. AF_06/2016 | D248: M² | E248: 2982.6
C249: MADEIRA ROLICA SEM TRATAMENTO, EUCALIPTO OU EQUIVALENTE DA REGIAO, H = 3 M, D = 20 A 24 CM (PARA ESCORAMENTO) | D249: M | E249: 0,0540000 | F249: 8,32 | G249: 0,44
C250: PREGO DE ACO POLIDO COM CABECA 18 X 27 (2 1/2 X 10) | D250: KG | E250: 0,0100000 | F250: 11,20 | G250: 0,11
C251: TABUA MADEIRA 2A QUALIDADE 2,5 X 30,0CM (1 X 12") NAO APARELHADA | D251: M | E251: 0,1900000 | F251: 7,93 | G251: 1,50
C252: CARPINTEIRO DE FORMAS COM ENCARGOS COMPLEMENTARES | D252: H | E252: 0,3380000 | F252: 19,45 | G252: 6,57
C253: SERVENTE COM ENCARGOS COMPLEMENTARES | D253: H | E253: 0,1450000 | F253: 15,85 | G253: 2,29
... 406 more rows

Sheet CURVA (hidden)
F6: COMPANHIA DE DESENVOLVIMENTO DOS VALES DO SÃO FRANCISCO E DO PARNAÍBA 3ª Superintendência Regional
B7: COMPLEMENTAÇÃO DAS OBRAS E DOS SERVIÇOS NECESSÁRIOS A IMPLANTAÇÃO DO SISTEMA DE ESGOTAMENTO SANITÁRIO DO MUNICÍPIO DE FLORESTA, NO ESTADO DE PERNAMBUCO, NA ÁREA DE ATUAÇÃO DA 3ª SUPERINTENDÊNCIA REGIONAL DA CODEVASF.
F8: PETROLINA-PE | J8: AGOSTO DE 2018
F9: PLANILHA ORÇAMENTÁRIA DE SERVIÇOS E MATERIAIS
B10: TABELAS DE REFERÊNCIA (SEM DESONERAÇÃO): | H10: CODEVASF | I10: FEV/2018 | J10: ORSE | K10: JUN/2018
H11: SEINFRA: | I11: ABR/2017 | J11: SINAPI: | K11: JUN/2018
G12: BDI: | H12: SERVIÇOS: | I12: 0.245 | J12: MATERIAIS: | K12: 0.13
B13: ITEM | C13: TIPO | D13: FONTE | E13: CÓDIGO | F13: DISCRIMINAÇÃO DOS SERVIÇOS | G13: UNID. | H13: QUANT. | I13: PREÇO (R$) | L13: % | M13: % ACUM | N13: CUSTO VENÂNCIO
I14: SEM BDI | J14: COM BDI | K14: TOTAL
B15: 7.6.1 | C15: INSUMO | D15: IDEAL SAN | E15: COTAÇÃO | F15: DIGESTOR E FILTRO ANAERÓBIOS EM FIBRA DE VIDRO, DE FORMA CILÍNDRICA CONSTITUÍDO POR CILÍNDRO INTERNO (DIGESTOR) E ANEL EXTERNO(FILTRO) COM 5,20M DE ALTURA E DIÂMETRO TOTAL DE 7,00M, SENDO 5,00M O DIÂMETRO DO DIGESTOR E 1,00M A LARGURA DA FAIXA QUE CONSTITUÍ O FILTRO, TOTALIZANDO UMA ÁREA EM CHAPAS DE FIBRA DE VIDRO DE 390,00M². FORNECIMENTO, TRANSPORTE, MONTAGEM NO LOCAL E TESTE (MOTAGEM E INTERLIGAÇÃO DE TODAS AS UNIDADES, INCLUINDO COLOCAÇÃO DO MEIO SUPORTE NOS FILTROS) | G15: UN | H15: 11 | I15: 534850 | J15: 604380.5 | K15: =J15*H15 -> 6648185.5 | L15: =K15/K$236 -> 0.4161 | M15: =L15 -> 0.42
B16: 3.5.1 | C16: SERVIÇO | D16: CODEVASF | E16: COMPOSIÇÃO | F16: CAIXA DE PASSAGEM EM ANEL CONCRETO ARMADO PRÉ-MOLD. DN = 0,60 PROF. H = 0,60 MC/TAMPA EM CONCRETO ARMADO | G16: UN | H16: 2500 | I16: 176.99 | J16: 220.35 | K16: 550875 | L16: =K16/K$236 -> 0.0345 | M16: =L16+M15 -> 0.45
B17: 1.5 | C17: SERVIÇO | D17: CODEVASF | E17: COMPOSIÇÃO | F17: ADMINISTRAÇÃO LOCAL E MANUTENÇÃO DE CANTEIRO DE OBRAS | G17: UN | H17: 1 | I17: 360469.44 | J17: 448784.45 | K17: 448784.45 | L17: =K17/K$236 -> 0.0281 | M17: =L17+M16 -> 0.48
B18: 8.5.4 | C18: INSUMO | D18: IDEAL SAN | E18: COTAÇÃO | F18: BARRILETE DE INTERLIGAÇÃO DOS REATORES HÍBRIDOS E TUBULAÇÕES DE LANÇAMENTO NOS LEITOS DE SECAGEM E LAGOA DE MATURAÇÃO, CONSTITUÍDOS POR TUBOS E CONEXÕES EM RPVC, FLANGES E VÁLVULAS. | G18: UN | H18: 2 | I18: 190400 | J18: 215152 | K18: 430304 | L18: 0.0269 | M18: =L18+M17 -> 0.51
B19: 3.8.3 | C19: SERVIÇO | D19: SINAPI | E19: 87702 | F19: CONTRAPISO EM ARGAMASSA TRAÇO 1:4 (CIMENTO E AREIA), PREPARO MANUAL, APLICADO EM ÁREAS SECAS SOBRE LAJE, NÃO ADERIDO, ESPESSURA 6CM. AF_06/2014 | G19: M² | H19: 7804.5 | I19: 40,06 | J19: 49.87 | K19: 389210.42 | L19: 0.0244 | M19: =L19+M18 -> 0.53
B20: 2.3.7 | C20: SERVIÇO | D20: ORSE | E20: 4503 | F20: ESCAVAÇÃO MANUAL DE VALA OU CAVA EM MATERIAL DE 3ª CATEGORIA, PROFUNDIDADE AT É 4,00 M, COM USO DE EXPLOSIVOS E PERFURAÇÃO MECÂNICA | G20: M³ | H20: 1157.21 | I20: 237.89 | J20: 296.17 | K20: 342730.89 | L20: 0.0214 | M20: 0.55 | N20: 240.42
B21: 2.4.1 | C21: SERVIÇO | D21: SINAPI | E21: 93378 | F21: REATERRO MECANIZADO DE VALA COM RETROESCAVADEIRA (CAPACIDADE DA CAÇAMBA DA RETRO: 0,26 M³ / POTÊNCIA: 88 HP), LARGURA ATÉ 0,8 M, PROFUNDIDADE ATÉ 1,5 M, COM SOLO (SEM SUBSTITUIÇÃO) DE 1ª CATEGORIA EM LOCAIS COM BAIXO NÍVEL DE INTERFERÊNCIA. AF_04/2016 | G21: M³ | H21: 10896.39 | I21: 23,86 | J21: 29.71 | K21: 323731.75 | L21: 0.0203 | M21: 0.57
B22: 3.3.4 | C22: SERVIÇO | D22: SINAPI | E22: 94342 | F22: ATERRO MANUAL DE VALAS COM AREIA PARA ATERRO E COMPACTAÇÃO MECANIZADA. AF_05/2016 | G22: M³ | H22: 2809.62 | I22: 91,53 | J22: 113.95 | K22: 320156.2 | L22: 0.02 | M22: 0.59
B23: 2.3.8 | C23: SERVIÇO | D23: SINAPI | E23: 94111 | F23: LASTRO DE VALA COM PREPARO DE FUNDO, LARGURA MENOR QUE 1,5 M, COM CAMADA DE AREIA, LANÇAMENTO MECANIZADO, EM LOCAL COM NÍVEL BAIXO DE INTERFERÊNCIA. AF_06/2016 | G23: M³ | H23: 1812.72 | I23: 139,85 | J23: 174.11 | K23: 315612.68 | L23: 0.0198 | M23: 0.61
B24: 3.10.1 | C24: INSUMO | D24: SINAPI | E24: 36365 | F24: TUBO COLETOR DE ESGOTO PVC, JEI, DN 100 MM (NBR 7362) | G24: M | H24: 15612 | I24: 17,49 | J24: 19.76 | K24: 308493.12 | L24: 0.0193 | M24: 0.63
B25: 2.8.1 | C25: SERVIÇO | D25: SINAPI | E25: 73790/4 | F25: REASSENTAMENTO DE PARALELEPIPEDO SOBRE COLCHAO DE PO DE PEDRA ESPESSURA 10CM, REJUNTADO COM ARGAMASSA TRACO 1:3 (CIMENTO E AREIA), CONSIDERANDO APROVEITAMENTO DO PARALELEPIPEDO | G25: M² | H25: 4406.8 | I25: 41,12 | J25: 51.19 | K25: 225584.09 | L25: 0.0141 | M25: 0.64
B26: 7.2.12 | C26: SERVIÇO | D26: ORSE | E26: 3345 | F26: CONCRETO SIMPLES USINADO FCK=40MPA, BOMBEADO, LANÇADO E ADENSADO EM SUPERESTR UTURA | G26: M³ | H26: 521.8 | I26: 317.47 | J26: 395.25 | K26: 206241.45 | L26: 0.0129 | M26: 0.65
B27: 2.3.6 | C27: SERVIÇO | D27: ORSE | E27: 4357 | F27: ESCAVAÇÃO COM PERFURATRIZ EM MATERIAL DE 2ª CATEGORIA | G27: M³ | H27: 2108.94 | I27: 78.31 | J27: 97.5 | K27: 205621.65 | L27: 0.0129 | M27: 0.66 | N27: 69.43
B28: 2.3.1 | C28: SERVIÇO | D28: SINAPI | E28: 93358 | F28: ESCAVAÇÃO MANUAL DE VALA COM PROFUNDIDADE MENOR OU IGUAL A 1,30 M. AF_03/2016 | G28: M³ | H28: 2456.2 | I28: 62,70 | J28: 78.06 | K28: 191730.97 | L28: 0.012 | M28: 0.67
B29: 2.13.6 | C29: INSUMO | D29: SINAPI | E29: 9829 | F29: TUBO PVC DEFOFO, JEI, 1 MPA, DN 200 MM, PARA REDE DE AGUA (NBR 7665) | G29: M | H29: 1266 | I29: 120,51 | J29: 136.18 | K29: 172403.88 | L29: 0.0108 | M29: 0.68
B30: 9.3.1 | C30: INSUMO | D30: ORSE | E30: 10605 | F30: KIT SOLAR P/ ILUMINAÇÃO HT-012 US35.115.160-6 COM POSTE DE AÇO GALV.DE 6M, PA INEL SOLAR MONOCRISTALINO 135W/24V, 2 BATERIAS 80AH/12V SELADAS DE CHUMBO-ÁCI DO, LÂMPADA LED 40W/24V/3360LM, CONTROLE INTELIGENTE 10A/12V/24V | G30: UN | H30: 23 | I30: 6479.15 | J30: 7321.44 | K30: 168393.12 | L30: 0.0105 | M30: 0.69
B31: 3.8.2 | C31: SERVIÇO | D31: SINAPI | E31: 98681 | F31: PISO CIMENTADO, TRAÇO 1:3 (CIMENTO E AREIA), ACABAMENTO RÚSTICO, ESPESSURA 2,0 CM, PREPARO MECÂNICO DA ARGAMASSA. AF_06/2018 | G31: M² | H31: 5463.15 | I31: 23,99 | J31: 29.87 | K31: 163184.29 | L31: 0.0102 | M31: 0.7 | N31: 34.75
B32: 7.6.4 | C32: INSUMO | D32: IDEAL SAN | E32: COTAÇÃO | F32: BARRILETE DE INTERLIGAÇÃO DOS REATORES HÍBRIDOS E TUBULAÇÕES DE LANÇAMENTO NOS LEITOS DE SECAGEM E LAGOA DE MATURAÇÃO, CONSTITUÍDOS POR TUBOS E CONEXÕES EM RPVC, FLANGES E VÁLVULAS. | G32: UN | H32: 1 | I32: 142800 | J32: 161364 | K32: 161364 | L32: 0.0101 | M32: 0.71
B33: 4.1.15 | C33: SERVIÇO | D33: SINAPI | E33: 92791 | F33: CORTE E DOBRA DE AÇO CA-60, DIÂMETRO DE 5,0 MM, UTILIZADO EM ESTRUTURAS DIVERSAS, EXCETO LAJES. AF_12/2015 | G33: KG | H33: 19620.5 | I33: 6,46 | J33: 8.04 | K33: 157748.82 | L33: 0.0099 | M33: 0.72
B34: 1.6 | C34: INSUMO | D34: CODEVASF | E34: COMPOSIÇÃO | F34: VEÍCULO PICK-UP CABINE DUPLA 4X4 (163 CV) | G34: MÊS | H34: 24 | I34: 5630.2 | J34: 6362.13 | K34: 152691.12 | L34: 0.0096 | M34: 0.73
B35: 9.1.1 | C35: INSUMO | D35: CODEVASF | E35: ELE01 | F35: FORNECIMENTO DOS MATERIAIS PARA O SISTEMA ELÉTRICO DE UMA EEE | G35: UN | H35: 2 | I35: 66604.04 | J35: 75262.57 | K35: 150525.14 | L35: 0.0094 | M35: 0.74
B36: 2.13.1 | C36: INSUMO | D36: SINAPI | E36: 41936 | F36: TUBO COLETOR DE ESGOTO, PVC, JEI, DN 150 MM (NBR 7362) | G36: M | H36: 3492 | I36: 37,63 | J36: 42.52 | K36: 148479.84 | L36: 0.0093 | M36: 0.75
B37: 7.2.21 | C37: SERVIÇO | D37: ORSE | E37: 2341 | F37: IMPERMEABILIZAÇAO FLEXÍVEL, BASE ACRÍLICA, TIPO IGOLFLEX BRANCO SIKA OU SIMIL AR, P/LAJES, CALHAS, VARANDAS, TERRAÇOS E COBERTURAS DE RESERVATORIOS | G37: M² | H37: 2278.37 | I37: 45.97 | J37: 57.23 | K37: 130391.12 | L37: 0.0082 | M37: 0.76
B38: 2.4.3 | C38: SERVIÇO | D38: SINAPI | E38: 94315 | F38: ATERRO MECANIZADO DE VALA COM RETROESCAVADEIRA (CAPACIDADE DA CAÇAMBA DA RETRO: 0,26 M³ / POTÊNCIA: 88 HP), LARGURA ATÉ 0,8 M, PROFUNDIDADE ATÉ 1,5 M, COM SOLO ARGILO-ARENOSO. AF_05/2016 | G38: M³ | H38: 2284.23 | I38: 43,98 | J38: 54.76 | K38: 125084.43 | L38: 0.0078 | M38: 0.77
B39: 2.3.10 | C39: SERVIÇO | D39: SINAPI | E39: 97914 | F39: TRANSPORTE COM CAMINHÃO BASCULANTE DE 6 M3, EM VIA URBANA PAVIMENTADA, DMT ATÉ 30 KM (UNIDADE: M3XKM). AF_01/2018 | G39: M³XKM | H39: 60364.7 | I39: 1,65 | J39: 2.05 | K39: 123747.64 | L39: 0.0077 | M39: 0.78
B40: 2.8.7 | C40: SERVIÇO | D40: SINAPI | E40: 9537 | F40: LIMPEZA FINAL DA OBRA | G40: M² | H40: 38152.8 | I40: 2,41 | J40: 3 | K40: 114458.4 | L40: 0.0072 | M40: 0.79 | N40: 1.81
B41: 4.1.14 | C41: SERVIÇO | D41: ORSE | E41: 3366 | F41: FORMA PLANA PARA ESTRUTURAS, EM COMPENSADO PLASTIFICADO DE 12MM, 07 USOS, INC LUSIVE ESCORAMENTO - REVISADA 07.2015 | G41: M² | H41: 2404.21 | I41: 37.79 | J41: 47.05 | K41: 113118.08 | L41: 0.0071 | M41: 0.8
B42: 3.8.1 | C42: SERVIÇO | D42: SINAPI | E42: 93389 | F42: REVESTIMENTO CERÂMICO PARA PISO COM PLACAS TIPO ESMALTADA PADRÃO POPULAR DE DIMENSÕES 35X35 CM APLICADA EM AMBIENTES DE ÁREA MENOR QUE 5 M2. AF_06/2014 | G42: M² | H42: 2341.35 | I42: 36,49 | J42: 45.43 | K42: 106367.53 | L42: 0.0067 | M42: 0.81 | N42: 40.76
B43: 5.5.1 | C43: INSUMO | D43: SIGMMA ESCO | E43: COTAÇÃO | F43: CONJUNTO MOTO BOMBA RE-AUTOESCORVANTE ESCO (CÓDIGOHP061504P) OU SIMILAR COM AS SEGUINTES CARACTERÍSTICAS: CONJUNTO MOTOBOMBA RE-AUTOESCORVANTE ESCO: Q = 90,00 M³/H (25 L/S) , H = 21,06 MCA, POTÊNCIA CALCULADA = 10,80 CV, POTÊNCIA COMERCIAL = 15 CV, 380 V. ESCOPO DE FORNECIMENTO: BOMBA + BASE + CORREIA/POLIAS + VÁLVULA DE ALÍVIO DE AR + MOTOR, CONFORME PROPOSTA FINANCEIRA APRESENTADA. | G43: UN | H43: 2 | I43: 46500 | J43: 52545 | K43: 105090 | L43: 0.0066 | M43: 0.82
B44: 7.5.1 | C44: SERVIÇO | D44: SINAPI | E44: 74142/4 | F44: CERCA COM MOUROES DE CONCRETO, SECAO "T" PONTA INCLINADA, 10X10CM, ESPACAMENTO DE 3M, CRAVADOS 0,5M, COM 11 FIOS DE ARAME FARPADO Nº 16 | G44: M | H44: 1500 | I44: 52,81 | J44: 65.75 | K44: 98625 | L44: 0.0062 | M44: 0.83
B45: 2.3.2 | C45: SERVIÇO | D45: SINAPI | E45: 90105 | F45: ESCAVAÇÃO MECANIZADA DE VALA COM PROFUNDIDADE ATÉ 1,5 M (MÉDIA ENTRE MONTANTE E JUSANTE/UMA COMPOSIÇÃO POR TRECHO) COM RETROESCAVADEIRA (CAPACIDADE DA CAÇAMBA DA RETRO: 0,26 M3 / POTÊNCIA: 88 HP), LARGURA MENOR QUE 0,8 M, EM SOLO DE 1A CATEGORIA, LOCAISCOM BAIXO NÍVEL DE INTERFERÊNCIA. AF_01/2015 | G45: M³ | H45: 10033.52 | I45: 7,69 | J45: 9.57 | K45: 96020.79 | L45: 0.006 | M45: 0.84
B46: 2.6.5 | C46: SERVIÇO | D46: SEINFRA | E46: C3475 | F46: TRAVESSIA MÉTODO NÃO DESTRUTIVO P/ TUBO 100<DN<=200 (COMPLETO) | G46: M | H46: 45 | I46: 1572.31 | J46: 1957.53 | K46: 88088.85 | L46: 0.0055 | M46: 0.85
B47: 3.7.1 | C47: SERVIÇO | D47: ORSE | E47: 16 | F47: DEMOLIÇÃO MANUAL DE PISO EM CONCRETO SIMPLES E/OU CIMENTADO | G47: M² | H47: 3902.25 | I47: 17.54 | J47: 21.84 | K47: 85225.14 | L47: 0.0053 | M47: 0.86
B48: 2.13.5 | C48: INSUMO | D48: SINAPI | E48: 9828 | F48: TUBO PVC DEFOFO, JEI, 1 MPA, DN 150 MM, PARA REDE DE AGUA (NBR 7665) | G48: M | H48: 1092 | I48: 67,69 | J48: 76.49 | K48: 83527.08 | L48: 0.0052 | M48: 0.87
B49: 2.9.5 | C49: SERVIÇO | D49: ORSE | E49: 59 | F49: INTERDIÇÃO DE OBRA COM FITA DE SINALIZAÇÃO | G49: M | H49: 9861.9 | I49: 6.76 | J49: 8.42 | K49: 83037.2 | L49: 0.0052 | M49: 0.88
B50: 2.8.2 | C50: SERVIÇO | D50: ORSE | E50: 2600 | F50: REPOSIÇÃO DE PAVIMENTAÇÃO ASFÁLTICA, INCLUINDO PINTURA DE LIGAÇÃO, FORNECIMEN TO E APLICAÇÃO DE CBUQ | G50: M² | H50: 1635.4 | I50: 39.68 | J50: 49.4 | K50: 80788.76 | L50: 0.0051 | M50: 0.89
B51: 4.4.1 | C51: SERVIÇO | D51: ORSE | E51: 11146 | F51: MURO EM ALVENARIA BLOCO CERÂMICO, E= 0,09M, C/ ALV DE PEDRA GRANÍTICA, 0,35 X 0,60M, COLUNAS (9X20CM) E CINTAMENTO (9X15CM) SUPERIOR E INFERIOR CONCRETO AR MADO FCK = 15,0 MPA CADA 3,00M, CHAPISCO E REBOCO | G51: M² | H51: 462 | I51: 137.65 | J51: 171.37 | K51: 79172.94 | L51: 0.005 | M51: 0.9
B52: 9.2.1 | C52: INSUMO | D52: CODEVASF | E52: ELE04 | F52: FORNECIMENTO DOS MATERIAIS PARA O SISTEMA ELÉTRICO DA EEE-02 | G52: UN | H52: 1 | I52: 66742.05 | J52: 75418.52 | K52: 75418.52 | L52: 0.0047 | M52: 0.9
B53: 4.1.16 | C53: SERVIÇO | D53: SINAPI | E53: 92794 | F53: CORTE E DOBRA DE AÇO CA-50, DIÂMETRO DE 10,0 MM, UTILIZADO EM ESTRUTURAS DIVERSAS, EXCETO LAJES. AF_12/2015 | G53: KG | H53: 10728.2 | I53: 5,29 | J53: 6.59 | K53: 70698.84 | L53: 0.0044 | M53: 0.9
B54: 4.1.17 | C54: SERVIÇO | D54: SINAPI | E54: 94962 | F54: CONCRETO MAGRO PARA LASTRO, TRAÇO 1:4,5:4,5 (CIMENTO/ AREIA MÉDIA/ BRITA 1) - PREPARO MECÂNICO COM BETONEIRA 400 L. AF_07/2016 | G54: M³ | H54: 210.44 | I54: 254,54 | J54: 316.9 | K54: 66688.44 | L54: 0.0042 | M54: 0.9
B55: 4.1.12 | C55: SERVIÇO | D55: SINAPI | E55: 94967 | F55: CONCRETO FCK = 40MPA, TRAÇO 1:1,6:1,9 (CIMENTO/ AREIA MÉDIA/ BRITA 1) - PREPARO MECÂNICO COM BETONEIRA 400 L. AF_07/2016 | G55: M³ | H55: 145.36 | I55: 362,48 | J55: 451.29 | K55: 65599.51 | L55: 0.0041 | M55: 0.9
B56: 2.2.2 | C56: SERVIÇO | D56: ORSE | E56: 2830 | F56: LIMPEZA E TESTE DE REDES DE ESGOTOS SANITÁRIOS | G56: M | H56: 28583 | I56: 1.82 | J56: 2.27 | K56: 64883.41 | L56: 0.0041 | M56: 0.9
B57: 2.5.6 | C57: SERVIÇO | D57: SINAPI | E57: 97983 | F57: ACRÉSCIMO PARA POÇO DE VISITA CIRCULAR PARA ESGOTO, EM CONCRETO PRÉ-MOLDADO, DIÂMETRO INTERNO = 1 M. AF_05/2018 | G57: M | H57: 160 | I57: 298,97 | J57: 372.22 | K57: 59555.2 | L57: 0.0037 | M57: 0.9
B58: 2.5.1 | C58: SERVIÇO | D58: SINAPI | E58: 98420 | F58: (COMPOSIÇÃO REPRESENTATIVA) POÇO DE VISITA CIRCULAR PARA ESGOTO, EM CONCRETO PRÉ-MOLDADO, DIÂMETRO INTERNO = 1,0 M, PROFUNDIDADE ATÉ 1,50 M, INCLUINDO TAMPÃO DE FERRO FUNDIDO, DIÂMETRO DE 60 CM. AF_04/2018 | G58: UN | H58: 35 | I58: 1.316,99 | J58: 1639.65 | K58: 57387.75 | L58: 0.0036 | M58: 0.9
B59: 3.6.1 | C59: SERVIÇO | D59: SINAPI | E59: 90733 | F59: ASSENTAMENTO DE TUBO DE PVC PARA REDE COLETORA DE ESGOTO DE PAREDE MACIÇA, DN 100 MM, JUNTA ELÁSTICA, INSTALADO EM LOCAL COM NÍVEL BAIXO DE INTERFERÊNCIAS (NÃO INCLUI FORNECIMENTO). AF_06/2015 | G59: M | H59: 15609 | I59: 2,77 | J59: 3.45 | K59: 53851.05 | L59: 0.0034 | M59: 0.9
B60: 2.10.2 | C60: SERVIÇO | D60: SINAPI | E60: 73877/2 | F60: ESCORAMENTO DE VALAS COM PRANCHOES METALICOS - AREA NAO CRAVADA | G60: M² | H60: 994.2 | I60: 43,41 | J60: 54.05 | K60: 53736.51 | L60: 0.0034 | M60: 0.9
B61: 4.5.1 | C61: INSUMO | D61: SIGMMA ESCO | E61: COTAÇÃO | F61: CONJUNTO MOTO BOMBA RE-AUTOESCORVANTE ESCO (CÓDIGO LP031004P) OU SIMILAR COM AS SEGUINTES CARACTERÍSTICAS: Q = 36,00 M³/H (10,00 L/S) , H = 17,02 MCA, POTÊNCIA CALCULADA = 5,67 CV, POTÊNCIA COMERCIAL = 10 CV, 380 V. ESCOPO DE FORNECIMENTO: BOMBA + BASE + CORREIA/POLIAS + VÁLVULA DE ALÍVIO DE AR + MOTOR, CONFORME PROPOSTA FINANCEIRA APRESENTADA. | G61: UN | H61: 2 | I61: 23200 | J61: 26216 | K61: 52432 | L61: 0.0033 | M61: 0.9
B62: 6.4.1 | C62: INSUMO | D62: SIGMMA ESCO | E62: COTAÇÃO | F62: CONJUNTO MOTO BOMBA RE-AUTOESCORVANTE ESCO (CÓDIGOLP031004P) OU SIMILAR COM AS SEGUINTES CARACTERÍSTICAS: Q = 60,00 M³/H (16,67 L/S) , H = 15,23 MCA, POTÊNCIA CALCULADA = 6,77 CV, POTÊNCIA COMERCIAL = 10 CV, 380 V. ESCOPO DE FORNECIMENTO: BOMBA + BASE + CORREIA/POLIAS + VÁLVULA DE ALÍVIO DE AR + MOTOR, CONFORME PROPOSTA FINANCEIRA APRESENTADA. | G62: UN | H62: 2 | I62: 23200 | J62: 26216 | K62: 52432 | L62: 0.0033 | M62: 0.9
B63: 1.4 | C63: SERVIÇO | D63: CODEVASF | E63: COMPOSIÇÃO | F63: INSTALAÇÃO DE CANTEIRO DE OBRAS | G63: UN | H63: 1 | I63: 40981.2 | J63: 51021.59 | K63: 51021.59 | L63: 0.0032 | M63: 0.9
B64: 2.13.4 | C64: INSUMO | D64: SINAPI | E64: 41932 | F64: TUBO COLETOR DE ESGOTO PVC, JEI, DN 300 MM (NBR 7362) | G64: M | H64: 276 | I64: 161,36 | J64: 182.34 | K64: 50325.84 | L64: 0.0031 | M64: 0.9
B65: 4.4.4 | C65: SERVIÇO | D65: SINAPI | E65: 72799 | F65: PAVIMENTO EM PARALELEPIPEDO SOBRE COLCHAO DE AREIA REJUNTADO COM ARGAMASSA DE CIMENTO E AREIA NO TRAÇO 1:3 (PEDRAS PEQUENAS 30 A 35 PECAS POR M2) | G65: M² | H65: 471.69 | I65: 78,11 | J65: 97.25 | K65: 45871.85 | L65: 0.0029 | M65: 0.9
B66: 7.2.18 | C66: SERVIÇO | D66: SINAPI | E66: 87481 | F66: ALVENARIA DE VEDAÇÃO DE BLOCOS CERÂMICOS FURADOS NA VERTICAL DE 19X19X39CM (ESPESSURA 19CM) DE PAREDES COM ÁREA LÍQUIDA MAIOR OU IGUAL A 6M² SEM VÃOS E ARGAMASSA DE ASSENTAMENTO COM PREPARO EM BETONEIRA. AF_06/2014 | G66: M² | H66: 648 | I66: 55,48 | J66: 69.07 | K66: 44757.36 | L66: 0.0028 | M66: 0.9
B67: 2.10.3 | C67: SERVIÇO | D67: SINAPI | E67: 94045 | F67: ESCORAMENTO DE VALA, TIPO PONTALETEAMENTO, COM PROFUNDIDADE DE 1,5 A 3,0 M, LARGURA MENOR QUE 1,5 M, EM LOCAL COM NÍVEL BAIXO DE INTERFERÊNCIA. AF_06/2016 | G67: M² | H67: 2982.6 | I67: 10,91 | J67: 13.58 | K67: 40503.71 | L67: 0.0025 | M67: 0.9
B68: 2.9.7 | C68: SERVIÇO | D68: SINAPI | E68: 74220/1 | F68: TAPUME DE CHAPA DE MADEIRA COMPENSADA, E= 6MM, COM PINTURA A CAL E REAPROVEITAMENTO DE 2X | G68: M² | H68: 582.66 | I68: 55,51 | J68: 69.11 | K68: 40267.63 | L68: 0.0025 | M68: 0.9
B69: 2.1.1 | C69: SERVIÇO | D69: SINAPI | E69: 85323 | F69: LOCACAO E NIVELAMENTO DE EMISSARIO/REDE COLETORA COM AUXILIO DE EQUIPAMENTO TOPOGRAFICO | G69: M | H69: 22083 | I69: 1,46 | J69: 1.82 | K69: 40191.06 | L69: 0.0025 | M69: 0.9
B70: 2.7.2 | C70: SERVIÇO | D70: ORSE | E70: 20 | F70: DEMOLIÇÃO DE PAVIMENTAÇÃO EM PARALELEPÍPEDO OU PRÉ-MOLDADOS DE CONCRETO C/ RE APROVEITAMENTO | G70: M² | H70: 4406.8 | I70: 7.11 | J70: 8.85 | K70: 39000.18 | L70: 0.0024 | M70: 0.9
B71: 4.3.16 | C71: SERVIÇO | D71: SINAPI | E71: 74202/1 | F71: LAJE PRE-MOLDADA P/FORRO, SOBRECARGA 100KG/M2, VAOS ATE 3,50M/E=8CM, C/LAJOTAS E CAP.C/CONC FCK=20MPA, 3CM, INTER-EIXO 38CM, C/ESCORAMENTO (REAPR.3X) E FERRAGEM NEGATIVA | G71: M² | H71: 462 | I71: 67,75 | J71: 84.35 | K71: 38969.7 | L71: 0.0024 | M71: 0.9
B72: 2.2.1 | C72: SERVIÇO | D72: ORSE | E72: 11676 | F72: CADASTRO DE REDES DE ESGOTO | G72: M | H72: 22083 | I72: 1.38 | J72: 1.72 | K72: 37982.76 | L72: 0.0024 | M72: 0.9
B73: 7.6.3 | C73: INSUMO | D73: IDEAL SAN | E73: COTAÇÃO | F73: CAIXA SEPARADORA DE AREIA COM COMPARTIMENTO DE SEDIMENTAÇÃO E DE DISTRIBUIÇÃO, MODELO BIODIG CAD.FT 800, FABRICADA EM PRFV - EXCLUSIVAMENTE PELA FIBRA TÉCNICA, INCLUINDO PONTO DE DESCARTE DO MATERIAL SEDIMENTADO COM REGISTRO TIPO GAVETA COM VOLANTE FORNECIMENTO, TRANSPORTE, MONTAGEM NO LOCAL E TESTE. | G73: UN | H73: 3 | I73: 10800 | J73: 12204 | K73: 36612 | L73: 0.0023 | M73: 0.9
B74: 2.5.2 | C74: SERVIÇO | D74: SINAPI | E74: 98421 | F74: (COMPOSIÇÃO REPRESENTATIVA) POÇO DE VISITA CIRCULAR PARA ESGOTO, EM CONCRETO PRÉ-MOLDADO, DIÂMETRO INTERNO = 1,0 M, PROFUNDIDADE DE 1,50 A 2,00 M, INCLUINDO TAMPÃO DE FERRO FUNDIDO, DIÂMETRO DE 60 CM. AF_04/2018 | G74: UN | H74: 20 | I74: 1.466,47 | J74: 1825.76 | K74: 36515.2 | L74: 0.0023 | M74: 0.9
B75: 2.3.4 | C75: SERVIÇO | D75: SINAPI | E75: 72915 | F75: ESCAVACAO MECANICA DE VALA EM MATERIAL DE 2A. CATEGORIA ATE 2 M DE PROFUNDIDADE COM UTILIZACAO DE ESCAVADEIRA HIDRAULICA | G75: M³ | H75: 2610.57 | I75: 10,94 | J75: 13.62 | K75: 35555.96 | L75: 0.0022 | M75: 0.9
B76: 2.9.6 | C76: SERVIÇO | D76: ORSE | E76: 4518 | F76: TELA DE NYLON PARA PROTEÇÃO DE FACHADA | G76: M² | H76: 1294.8 | I76: 20.7 | J76: 25.77 | K76: 33367 | L76: 0.0021 | M76: 0.9
B77: 2.7.1 | C77: SERVIÇO | D77: SINAPI | E77: 92970 | F77: DEMOLIÇÃO DE PAVIMENTAÇÃO ASFÁLTICA COM UTILIZAÇÃO DE MARTELO PERFURADOR, ESPESSURA ATÉ 15 CM, EXCLUSIVE CARGA E TRANSPORTE | G77: M² | H77: 1635.4 | I77: 15,76 | J77: 19.62 | K77: 32086.55 | L77: 0.002 | M77: 0.9
B78: 4.1.13 | C78: SERVIÇO | D78: SINAPI | E78: 92873 | F78: LANÇAMENTO COM USO DE BALDES, ADENSAMENTO E ACABAMENTO DE CONCRETO EM ESTRUTURAS. AF_12/2015 | G78: M³ | H78: 155.05 | I78: 160,89 | J78: 200.31 | K78: 31058.07 | L78: 0.0019 | M78: 0.9
B79: 2.7.3 | C79: SERVIÇO | D79: SINAPI | E79: 72898 | F79: CARGA E DESCARGA MECANIZADAS DE ENTULHO EM CAMINHAO BASCULANTE 6 M3 | G79: M³ | H79: 5862.75 | I79: 4,04 | J79: 5.03 | K79: =J79*H79 -> 29489.63 | L79: 0.0018 | M79: 0.9
B80: 3.7.2 | C80: SERVIÇO | D80: ORSE | E80: 18 | F80: DEMOLIÇÃO DE PISO CERÂMICO OU LADRILHO | G80: M² | H80: 2341.35 | I80: 9.4 | J80: 11.7 | K80: 27393.8 | L80: 0.0017 | M80: 0.9
B81: 7.5.4 | C81: SERVIÇO | D81: SINAPI | E81: 98510 | F81: PLANTIO DE ÁRVORE ORNAMENTAL COM ALTURA DE MUDA MENOR OU IGUAL A 2,00 M. AF_05/2018 | G81: UN | H81: 375 | I81: 57,47 | J81: 71.55 | K81: 26831.25 | L81: =K81/K$236 -> 0.0017 | M81: 0.9 | N81: 115.96
B82: 7.6.2 | C82: INSUMO | D82: IDEAL SAN | E82: COTAÇÃO | F82: CONJUNTO DE PRÉ-TRATAMENTO, CONSTITUÍDO POR UM MEDIDOR DE VAZÃO TIPO CALHA PARSHALL W=3" FABRICADA EM PRFV COM ESCALA METRICA PARA MEDIÇÃO DA VAZÃO NA ESTRUTURA DA UNIDADE; STOP-LOG E ANTEPAROS PARA MANOBRAS DOS CANAIS DE SEDIMENTAÇÃO DE AREIA. | G82: UN | H82: 3 | I82: 7900 | J82: 8927 | K82: 26781 | L82: 0.0017 | M82: 0.9
B83: 2.12.3 | C83: SERVIÇO | D83: CODEVASF | E83: COMPOSIÇÃO | F83: DESOBSTRUÇÃO E LIMPEZA MANUAL DO COLETOR DE ESGOTOS ATÉ 200MM | G83: M | H83: 1950 | I83: 10.2 | J83: 12.7 | K83: 24765 | L83: 0.0015 | M83: =L83+M82 -> 0.9
B84: 2.10.1 | C84: SERVIÇO | D84: SINAPI | E84: 94057 | F84: ESCORAMENTO DE VALA, TIPO DESCONTÍNUO, COM PROFUNDIDADE DE 1,5 M A 3,0 M, LARGURA MENOR QUE 1,5 M, EM LOCAL COM NÍVEL BAIXO DE INTERFERÊNCIA. AF_06/2016 | G84: M² | H84: 994.2 | I84: 19,61 | J84: 24.41 | K84: 24268.42 | L84: 0.0015 | M84: 0.9
B85: 7.2.20 | C85: SERVIÇO | D85: SINAPI | E85: 96920 | F85: ARGAMASSA TRAÇO 1:3 (CIMENTO E AREIA), PREPARO MECANICO , INCLUSO ADITIVO IMPERMEABILIZANTE | G85: M³ | H85: 42.15 | I85: 459,28 | J85: 571.8 | K85: 24101.37 | L85: 0.0015 | M85: 0.9
B86: 2.8.6 | C86: SERVIÇO | D86: SINAPI | E86: 83675 | F86: TUBO CONCRETO SIMPLES DN 200 MM PARA DRENAGEM - FORNECIMENTO E INSTALACAO, INCLUSIVE ESCAVACAO MANUAL 1M3/M. | G86: M | H86: 220 | I86: 87,71 | J86: 109.2 | K86: 24024 | L86: 0.0015 | M86: 0.9
B87: 4.1.19 | C87: SERVIÇO | D87: SINAPI | E87: 73932/1 | F87: GRADE DE FERRO EM BARRA CHATA 3/16" | G87: M² | H87: 66.3 | I87: 283,59 | J87: 353.07 | K87: 23408.54 | L87: 0.0015 | M87: 0.9
B88: 2.13.3 | C88: INSUMO | D88: SINAPI | E88: 41931 | F88: TUBO COLETOR DE ESGOTO PVC, JEI, DN 250 MM (NBR 7362) | G88: M | H88: 204 | I88: 99,57 | J88: 112.51 | K88: 22952.04 | L88: 0.0014 | M88: 0.9
B89: 2.3.9 | C89: SERVIÇO | D89: ORSE | E89: 2508 | F89: CARGA MECÂNICA DE MATERIAL DE 3ª CATEGORIA | G89: M³ | H89: 5758.67 | I89: 3.18 | J89: 3.96 | K89: 22804.33 | L89: 0.0014 | M89: 0.9
B90: 7.1.3 | C90: SERVIÇO | D90: SINAPI | E90: 97912 | F90: TRANSPORTE COM CAMINHÃO BASCULANTE DE 6 M3, EM VIA URBANA EM LEITO NATURAL (UNIDADE: M3XKM). AF_01/2018 | G90: M³XKM | H90: 7400.76 | I90: 2,29 | J90: 2.85 | K90: 21092.17 | L90: 0.0013 | M90: 0.9
B91: 2.6.1 | C91: SERVIÇO | D91: SINAPI | E91: 90734 | F91: ASSENTAMENTO DE TUBO DE PVC PARA REDE COLETORA DE ESGOTO DE PAREDE MACIÇA, DN 150 MM, JUNTA ELÁSTICA, INSTALADO EM LOCAL COM NÍVEL BAIXO DE INTERFERÊNCIAS (NÃO INCLUI FORNECIMENTO). AF_06/2015 | G91: M | H91: 4584 | I91: 3,37 | J91: 4.2 | K91: 19252.8 | L91: 0.0012 | M91: 0.9
B92: 4.3.9 | C92: SERVIÇO | D92: SINAPI | E92: 88489 | F92: APLICAÇÃO MANUAL DE PINTURA COM TINTA LÁTEX ACRÍLICA EM PAREDES, DUAS DEMÃOS. AF_06/2014 | G92: M² | H92: 1348.56 | I92: 10,27 | J92: 12.79 | K92: 17248.08 | L92: 0.0011 | M92: 0.9 | N92: 9
B93: 1.2 | C93: SERVIÇO | D93: CODEVASF | E93: COMPOSIÇÃO | F93: MOBILIZAÇÃO DE EQUIPAMENTOS, MATERIAIS E PESSOAL | G93: UN | H93: 2 | I93: 6894.17 | J93: 8583.24 | K93: 17166.48 | L93: 0.0011 | M93: 0.9
B94: 4.3.11 | C94: SERVIÇO | D94: SINAPI | E94: 68054 | F94: PORTAO DE FERRO EM CHAPA GALVANIZADA PLANA 14 GSG | G94: M² | H94: 58.84 | I94: 232,57 | J94: 289.55 | K94: 17037.12 | L94: 0.0011 | M94: 0.9 | N94: 331.26
B95: 2.8.4 | C95: SERVIÇO | D95: SINAPI | E95: 74253/1 | F95: RAMAL PREDIAL EM TUBO PEAD 20MM - FORNECIMENTO, INSTALAÇÃO, ESCAVAÇÃO E REATERRO | G95: M | H95: 600 | I95: 22,80 | J95: 28.39 | K95: 17034 | L95: 0.0011 | M95: 0.9
B96: 3.7.3 | C96: SERVIÇO | D96: ORSE | E96: 3258 | F96: DEMOLIÇÃO DE PISO EM LAJOTA HEXAGONAL | G96: M² | H96: 1560.9 | I96: 8.66 | J96: 10.78 | K96: 16826.5 | L96: 0.0011 | M96: 0.9
B97: 2.8.5 | C97: SERVIÇO | D97: SEINFRA | E97: C2918 | F97: RAMAL PREDIAL DE ESGOTO EM PVC 100mm, S/ PAVIMENTO | G97: M | H97: 300 | I97: 42.99 | J97: 53.52 | K97: 16056 | L97: 0.001 | M97: 0.9
B98: 10.1.3 | C98: SERVIÇO | D98: CODEVASF | E98: COMPOSIÇÃO | F98: ELABORAÇÃO DO PROJETO HIDRÁULICO E RELATÓRIOS | G98: UN | H98: 1 | I98: 12889.2 | J98: 16047.05 | K98: 16047.05 | L98: 0.001 | M98: 0.9
B99: 4.3.8 | C99: SERVIÇO | D99: SINAPI | E99: 87529 | F99: MASSA ÚNICA, PARA RECEBIMENTO DE PINTURA, EM ARGAMASSA TRAÇO 1:2:8, PREPARO MECÂNICO COM BETONEIRA 400L, APLICADA MANUALMENTE EM FACES INTERNAS DE PAREDES, ESPESSURA DE 20MM, COM EXECUÇÃO DE TALISCAS. AF_06/2014 | G99: M² | H99: 424.56 | I99: 28,55 | J99: 35.54 | K99: 15088.86 | L99: 0.0009 | M99: 0.9 | N99: 41.19
B100: 10.1.1 | C100: SERVIÇO | D100: CODEVASF | E100: COMPOSIÇÃO | F100: ELABORAÇÃO DO PROJETO ESTRUTURAL | G100: UN | H100: 1 | I100: 12115.2 | J100: 15083.42 | K100: 15083.42 | L100: 0.0009 | M100: 0.9
B101: 7.1.1 | C101: SERVIÇO | D101: SINAPI | E101: 73672 | F101: DESMATAMENTO E LIMPEZA MECANIZADA DE TERRENO COM ARVORES ATE Ø 15CM, UTILIZANDO TRATOR DE ESTEIRAS | G101: M² | H101: 33000 | I101: 0,36 | J101: 0.45 | K101: 14850 | L101: 0.0009 | M101: 0.9
B102: 4.3.7 | C102: SERVIÇO | D102: SINAPI | E102: 87503 | F102: ALVENARIA DE VEDAÇÃO DE BLOCOS CERÂMICOS FURADOS NA HORIZONTAL DE 9X19X19CM (ESPESSURA 9CM) DE PAREDES COM ÁREA LÍQUIDA MAIOR OU IGUAL A 6M² SEM VÃOS E ARGAMASSA DE ASSENTAMENTO COM PREPARO EM BETONEIRA. AF_06/2014 | G102: M² | H102: 212.31 | I102: 55,23 | J102: 68.76 | K102: 14598.44 | L102: 0.0009 | M102: 0.9
B103: 5.3.19 | C103: SERVIÇO | D103: SEINFRA | E103: C3499 | F103: MONTAGEM DE TUBOS, CONEXÕES E PÇS, ELEVATÓRIA C/ VAZÃO DE 20,01 À 40 l/s | G103: UN | H103: 1 | I103: 10664.55 | J103: 13277.36 | K103: 13277.36 | L103: 0.0008 | M103: 0.9
B104: 3.7.7 | C104: SERVIÇO | D104: SINAPI | E104: 72897 | F104: CARGA MANUAL DE ENTULHO EM CAMINHAO BASCULANTE 6 M3 | G104: M³ | H104: 477.03 | I104: 22,27 | J104: 27.73 | K104: 13228.04 | L104: 0.0008 | M104: 0.9 | N104: 19.67
B105: 9.5.1 | C105: INSUMO | D105: CODEVASF | E105: ELE09 | F105: FORNECIMENTO DOS MATERIAIS PARA EXTENSÃO DE REDE BT PARA PARA A EEE-04 | G105: KM | H105: 0.3 | I105: 35900.42 | J105: 40567.47 | K105: 12170.24 | L105: 0.0008 | M105: 0.9
B106: 10.2.1 | C106: SERVIÇO | D106: CODEVASF | E106: COMPOSIÇÃO | F106: SONDAGEM A TRADO (4") | G106: M | H106: 195 | I106: 49.34 | J106: 61.43 | K106: 11978.85 | L106: 0.0007 | M106: 0.9
B107: 10.1.2 | C107: SERVIÇO | D107: CODEVASF | E107: COMPOSIÇÃO | F107: ELABORAÇÃO DO PROJETO ELÉTRICO | G107: UN | H107: 1 | I107: 9379.2 | J107: 11677.1 | K107: 11677.1 | L107: 0.0007 | M107: 0.9
B108: 4.1.7 | C108: SERVIÇO | D108: SINAPI | E108: 93382 | F108: REATERRO MANUAL DE VALAS COM COMPACTAÇÃO MECANIZADA. AF_04/2016 | G108: M³ | H108: 302.36 | I108: 30,60 | J108: 38.1 | K108: 11519.92 | L108: 0.0007 | M108: 0.9
B109: 2.4.2 | C109: SERVIÇO | D109: SINAPI | E109: 93368 | F109: REATERRO MECANIZADO DE VALA COM ESCAVADEIRA HIDRÁULICA (CAPACIDADE DA CAÇAMBA: 0,8 M³ / POTÊNCIA: 111 HP), LARGURA ATÉ 1,5 M, PROFUNDIDADE DE 1,5 A 3,0 M, COM SOLO (SEM SUBSTITUIÇÃO) DE 1ª CATEGORIA EM LOCAIS COM BAIXO NÍVEL DE INTERFERÊNCIA. AF_04/2016 | G109: M³ | H109: 618.13 | I109: 13,81 | J109: 17.19 | K109: 10625.65 | L109: 0.0007 | M109: 0.9
B110: 2.5.4 | C110: SERVIÇO | D110: SINAPI | E110: 98423 | F110: (COMPOSIÇÃO REPRESENTATIVA) POÇO DE VISITA CIRCULAR PARA ESGOTO, EM CONCRETO PRÉ-MOLDADO, DIÂMETRO INTERNO = 1,0 M, PROFUNDIDADE DE 2,50 A 3,00 M, INCLUINDO TAMPÃO DE FERRO FUNDIDO, DIÂMETRO DE 60 CM. AF_04/2018 | G110: UN | H110: 5 | I110: 1.695,30 | J110: 2110.65 | K110: 10553.25 | L110: 0.0007 | M110: 0.9
B111: 2.13.2 | C111: INSUMO | D111: SINAPI | E111: 41930 | F111: TUBO COLETOR DE ESGOTO PVC, JEI, DN 200 MM (NBR 7362) | G111: M | H111: 144 | I111: 58,74 | J111: 66.38 | K111: 9558.72 | L111: 0.0006 | M111: 0.9
B112: 9.1.2 | C112: SERVIÇO | D112: CODEVASF | E112: ELE02 | F112: SERVIÇO PARA INSTALAÇÃO DOS MATERIAIS ELÉTRICOS DE UMA EEE | G112: UN | H112: 2 | I112: 3505.68 | J112: 4364.57 | K112: 8729.14 | L112: 0.0005 | M112: 0.9
B113: 7.1.4 | C113: SERVIÇO | D113: SINAPI | E113: 83344 | F113: ESPALHAMENTO DE MATERIAL EM BOTA FORA, COM UTILIZACAO DE TRATOR DE ESTEIRAS DE 165 HP | G113: M³ | H113: 7400.76 | I113: 0,94 | J113: 1.17 | K113: 8658.89 | L113: 0.0005 | M113: 0.9 | N113: 1.57
B114: 3.8.4 | C114: SERVIÇO | D114: CODEVASF | E114: COMPOSIÇÃO | F114: RECUPERAÇÃO EM CONTENÇÃO DE DESNÍVEL DE CALÇADA EM ALVENARIA DE BLOCOS CERÂMICOS 8 FUROS ESP. 10CM, REVESTIDA EM CIMENTADO 1:3 ESPESSURA 2CM | G114: M² | H114: 72 | I114: 94.9 | J114: 118.15 | K114: 8506.8 | L114: 0.0005 | M114: 0.9
B115: 4.4.2 | C115: SERVIÇO | D115: ORSE | E115: 4713 | F115: CONCERTINA EM AÇO GALVANIZADO, ESPIRAL DE Ø = 450MM, 3 CLIPES P/ ESPIRAL, LÂM INA DE 30MM E FIO INTERNO DE 2,50MM, INCLUISIVE INSTALAÇÃO | G115: M | H115: 210 | I115: 32 | J115: 39.84 | K115: 8366.4 | L115: 0.0005 | M115: 0.9
B116: 4.3.14 | C116: SERVIÇO | D116: SINAPI | E116: 94998 | F116: EXECUÇÃO DE PASSEIO (CALÇADA) OU PISO DE CONCRETO COM CONCRETO MOLDADO IN LOCO, FEITO EM OBRA, ACABAMENTO CONVENCIONAL, ESPESSURA 12 CM, ARMADO. AF_07/2016 | G116: M² | H116: 75.75 | I116: 85,70 | J116: 106.7 | K116: 8082.53 | L116: 0.0005 | M116: 0.9
B117: 2.5.3 | C117: SERVIÇO | D117: SINAPI | E117: 98422 | F117: (COMPOSIÇÃO REPRESENTATIVA) POÇO DE VISITA CIRCULAR PARA ESGOTO, EM CONCRETO PRÉ-MOLDADO, DIÂMETRO INTERNO = 1,0 M, PROFUNDIDADE DE 2,00 A 2,50 M, INCLUINDO TAMPÃO DE FERRO FUNDIDO, DIÂMETRO DE 60 CM. AF_04/2018 | G117: UN | H117: 4 | I117: 1.615,96 | J117: 2011.87 | K117: 8047.48 | L117: 0.0005 | M117: 0.9
B118: 10.1.4 | C118: SERVIÇO | D118: CODEVASF | E118: COMPOSIÇÃO | F118: ELABORAÇÃO DE PLANILHAS ORÇAMENTÁRIAS | G118: UN | H118: 1 | I118: 6426.4 | J118: 8000.87 | K118: 8000.87 | L118: 0.0005 | M118: 0.9
B119: 4.5.13 | C119: INSUMO | D119: SEINFRA | E119: I8745 | F119: VÁLVULA RETENÇÃO PORTA ÚNICA C/FLANGES DN 150 P/ESGOTO | G119: UN | H119: 4 | I119: 1756.65 | J119: 1985.01 | K119: 7940.04 | L119: 0.0005 | M119: 0.9
B120: 4.3.17 | C120: SERVIÇO | D120: SINAPI | E120: 73661 | F120: FORNECIMENTO E INSTALACAO DE TALHA E TROLEY MANUAL DE 1 TONELADA | G120: UN | H120: 3 | I120: 2.118,79 | J120: 2637.89 | K120: 7913.67 | L120: 0.0005 | M120: 0.9
B121: 4.5.10 | C121: INSUMO | D121: SEINFRA | E121: I4473 | F121: TUBO FoFo C/ FLANGES DN 150 PN10 - L=3000 | G121: UN | H121: 4 | I121: 1691.46 | J121: 1911.35 | K121: 7645.4 | L121: 0.0005 | M121: 0.9
B122: 7.2.19 | C122: SERVIÇO | D122: ORSE | E122: 3310 | F122: CHAPISCO EM PAREDE COM ARGAMASSA TRAÇO T1 - 1:3 (CIMENTO / AREIA) - REVISADO 08/2015 | G122: M² | H122: 1296 | I122: 4.61 | J122: 5.74 | K122: 7439.04 | L122: 0.0005 | M122: 0.9
B123: 3.10.2 | C123: INSUMO | D123: SINAPI | E123: 303 | F123: ANEL BORRACHA, PARA TUBO PVC, REDE COLETOR ESGOTO, DN 100 MM (NBR 7362) | G123: UN | H123: 2602 | I123: 2,41 | J123: 2.72 | K123: 7077.44 | L123: 0.0004 | M123: 0.9
B124: 2.6.2 | C124: SERVIÇO | D124: SINAPI | E124: 90735 | F124: ASSENTAMENTO DE TUBO DE PVC PARA REDE COLETORA DE ESGOTO DE PAREDE MACIÇA, DN 200 MM, JUNTA ELÁSTICA, INSTALADO EM LOCAL COM NÍVEL BAIXO DE INTERFERÊNCIAS (NÃO INCLUI FORNECIMENTO). AF_06/2015 | G124: M | H124: 1410 | I124: 4,01 | J124: 4.99 | K124: 7035.9 | L124: 0.0004 | M124: 0.9
B125: 5.5.13 | C125: INSUMO | D125: SEINFRA | E125: I8746 | F125: VÁLVULA RETENÇÃO PORTA ÚNICA C/FLANGES DN 200 P/ESGOTO | G125: UN | H125: 2 | I125: 3095.4 | J125: 3497.8 | K125: 6995.6 | L125: 0.0004 | M125: 0.9
B126: 6.2.19 | C126: SERVIÇO | D126: SEINFRA | E126: C3498 | F126: MONTAGEM DE TUBOS, CONEXÕES E PÇS, ELEVATÓRIA C/ VAZÃO DE 10,01 À 20 l/s | G126: UN | H126: 1 | I126: 5429.28 | J126: 6759.45 | K126: 6759.45 | L126: 0.0004 | M126: 0.9
B127: 5.5.8 | C127: INSUMO | D127: SEINFRA | E127: I4487 | F127: TUBO FoFo C/ FLANGES DN 200 PN10 - L=4500 | G127: UN | H127: 2 | I127: 2785.09 | J127: 3147.15 | K127: 6294.3 | L127: 0.0004 | M127: 0.9
B128: 7.5.2 | C128: SERVIÇO | D128: SEINFRA | E128: C2904 | F128: PORTÃO DE TUBO DE AÇO GALVANIZADO DE 2" (4X2)m, INCL.. PILARES DE SUSTENTAÇÃO | G128: UN | H128: 2 | I128: 2426.84 | J128: 3021.42 | K128: 6042.84 | L128: 0.0004 | M128: 0.9
B129: 7.3.9 | C129: SERVIÇO | D129: CODEVASF | E129: COMPOSIÇÃO | F129: CAMADA DRENANTE DE AREIA GROSSA PARA LEITO DE SECAGEM | G129: M³ | H129: 63.72 | I129: 74.27 | J129: 92.47 | K129: 5892.19 | L129: 0.0004 | M129: 0.9
B130: 4.1.1 | C130: SERVIÇO | D130: SINAPI | E130: 73859/2 | F130: CAPINA E LIMPEZA MANUAL DE TERRENO | G130: M² | H130: 3750 | I130: 1,26 | J130: 1.57 | K130: 5887.5 | L130: 0.0004 | M130: 0.9 | N130: 0.9
B131: 1.1 | C131: SERVIÇO | D131: SINAPI | E131: 74209/1 | F131: FORNECIMENTO, MONTAGEM, MANUTENÇÃO E INSTALAÇÃO DE PLACA DE IDENTIFICAÇÃO DE OBRA COM 2MX3M, CONFORME MODELO APRESENTADO PELA FISCALIZAÇÃO. | G131: M² | H131: 12.96 | I131: 325,97 | J131: 405.83 | K131: 5259.56 | L131: 0.0003 | M131: 0.9
B132: 10.2.3 | C132: SERVIÇO | D132: CODEVASF | E132: COMPOSIÇÃO | F132: SONDAGEM À PERCUSSÃO COM SPT | G132: M | H132: 80 | I132: 51.81 | J132: 64.5 | K132: 5160 | L132: 0.0003 | M132: 0.9
B133: 6.4.8 | C133: INSUMO | D133: SEINFRA | E133: I4476 | F133: TUBO FoFo C/ FLANGES DN 150 PN10 - L=4500 | G133: UN | H133: 2 | I133: 2263.36 | J133: 2557.6 | K133: 5115.2 | L133: 0.0003 | M133: 0.9
B134: 7.3.8 | C134: SERVIÇO | D134: CODEVASF | E134: COMPOSIÇÃO | F134: CAMADA DRENANTE DE BRITA Nº 2 PARA LEITO DE SECAGEM | G134: M³ | H134: 63.72 | I134: 63.69 | J134: 79.29 | K134: 5052.36 | L134: 0.0003 | M134: 0.9
B135: 3.8.6 | C135: SERVIÇO | D135: SINAPI | E135: 94273 | F135: ASSENTAMENTO DE GUIA (MEIO-FIO) EM TRECHO RETO, CONFECCIONADA EM CONCRETO PRÉ-FABRICADO, DIMENSÕES 100X15X13X30 CM (COMPRIMENTO X BASE INFERIOR X BASE SUPERIOR X ALTURA), PARA VIAS URBANAS (USO VIÁRIO). AF_06/2016 | G135: M | H135: 118 | I135: 33,34 | J135: 41.51 | K135: 4898.18 | L135: 0.0003 | M135: 0.9 | N135: 33.52
B136: 5.5.10 | C136: INSUMO | D136: SEINFRA | E136: I4484 | F136: TUBO FoFo C/ FLANGES DN 200 PN10 - L=3000 | G136: UN | H136: 2 | I136: 2157.9 | J136: 2438.43 | K136: 4876.86 | L136: 0.0003 | M136: 0.9
B137: 9.1.3 | C137: SERVIÇO | D137: ORSE | E137: 11137 | F137: ENTRADA DE ENERGIA ELÉTRICA TRIFÁSICA DEMANDA ENTRE 19 E 26,6 KW | G137: UN | H137: 3 | I137: 1298.28 | J137: 1616.36 | K137: 4849.08 | L137: 0.0003 | M137: 0.9
B138: 9.3.2 | C138: SERVIÇO | D138: CODEVASF | E138: ELE07 | F138: SERVIÇO PARA INSTALAÇÃO DOS MATERIAIS ELÉTRICOS DA ETE SBPD E SBCE | G138: UN | H138: 1 | I138: 3820.68 | J138: 4756.75 | K138: 4756.75 | L138: 0.0003 | M138: 0.9
B139: 4.5.8 | C139: INSUMO | D139: SEINFRA | E139: I4475 | F139: TUBO FoFo C/ FLANGES DN 150 PN10 - L=4000 | G139: UN | H139: 2 | I139: 2031.87 | J139: 2296.01 | K139: 4592.02 | L139: 0.0003 | M139: 0.9
B140: 2.13.12 | C140: INSUMO | D140: SINAPI | E140: 319 | F140: ANEL BORRACHA, PARA TUBO PVC DEFOFO, DN 200 MM (NBR 7665) | G140: UN | H140: 211 | I140: 19,04 | J140: 21.52 | K140: 4540.72 | L140: 0.0003 | M140: 0.9
B141: 2.5.5 | C141: SERVIÇO | D141: SINAPI | E141: 98424 | F141: (COMPOSIÇÃO REPRESENTATIVA) POÇO DE VISITA CIRCULAR PARA ESGOTO, EM CONCRETO PRÉ-MOLDADO, DIÂMETRO INTERNO = 1,0 M, PROFUNDIDADE DE 3,00 A 3,50 M, INCLUINDO TAMPÃO DE FERRO FUNDIDO, DIÂMETRO DE 60 CM. AF_04/2018 | G141: UN | H141: 2 | I141: 1.774,64 | J141: 2209.43 | K141: 4418.86 | L141: 0.0003 | M141: 0.9
B142: 7.6.7 | C142: INSUMO | D142: SINAPI | E142: 7258 | F142: TIJOLO CERAMICO MACICO *5 X 10 X 20* CM | G142: UN | H142: 13792 | I142: 0,28 | J142: 0.32 | K142: 4413.44 | L142: 0.0003 | M142: 0.9
B143: 9.2.2 | C143: SERVIÇO | D143: CODEVASF | E143: ELE05 | F143: SERVIÇO PARA INSTALAÇÃO DOS MATERIAIS ELÉTRICOS DA EEE-02 | G143: UN | H143: 1 | I143: 3505.68 | J143: 4364.57 | K143: =J143*H143 -> 4364.57 | L143: 0.0003 | M143: 0.9
B144: 4.1.20 | C144: SERVIÇO | D144: SINAPI | E144: 73665 | F144: ESCADA TIPO MARINHEIRO EM ACO CA-50 9,52MM INCLUSO PINTURA COM FUNDO ANTICORROSIVO TIPO ZARCAO | G144: M | H144: 55.26 | I144: 60,94 | J144: 75.87 | K144: 4192.58 | L144: 0.0003 | M144: 0.9
B145: 2.12.2 | C145: SERVIÇO | D145: CODEVASF | E145: COMPOSIÇÃO | F145: DESOBSTRUÇÃO E LIMPEZA MANUAL DE POÇO DE VISITA DN - 1,2M E PROFUNDIDADE ATÉ 4,0M | G145: UN | H145: 50 | I145: 67.09 | J145: 83.53 | K145: 4176.5 | L145: =K145/K$236 -> 0.0003 | M145: 0.9
B146: 4.3.18 | C146: SERVIÇO | D146: SINAPI | E146: 83514 | F146: FORNECIMENTO DE PERFIL SIMPLES "I" OU "H" 8 A 12" INCLUSIVE PERDAS | G146: KG | H146: 490.5 | I146: 6,78 | J146: 8.44 | K146: 4139.82 | L146: 0.0003 | M146: 0.9
B147: 2.13.7 | C147: INSUMO | D147: SINAPI | E147: 305 | F147: ANEL BORRACHA, PARA TUBO PVC, REDE COLETOR ESGOTO, DN 150 MM (NBR 7362) | G147: UN | H147: 582 | I147: 6,29 | J147: 7.11 | K147: 4138.02 | L147: 0.0003 | M147: =L147+M146 -> 0.9
B148: 2.8.3 | C148: SERVIÇO | D148: SINAPI | E148: 96396 | F148: EXECUÇÃO E COMPACTAÇÃO DE BASE E OU SUB BASE COM BRITA GRADUADA SIMPLES - EXCLUSIVE CARGA E TRANSPORTE. AF_09/2017 | G148: M³ | H148: 32.71 | I148: 99,69 | J148: 124.11 | K148: 4059.64 | L148: 0.0003 | M148: 0.9
B149: 4.5.5 | C149: INSUMO | D149: ORSE | E149: 6343 | F149: REGISTRO GAVETA FOFO, C/ FLANGES, CUNHA BORRACHA, CORPO CURTO E CABEÇOTE, TIP O EURO 23, PN16, DIAM = 150MM | G149: UN | H149: 6 | I149: 589.22 | J149: 665.82 | K149: 3994.92 | L149: 0.0003 | M149: 0.9
B150: 2.3.3 | C150: SERVIÇO | D150: SINAPI | E150: 90092 | F150: ESCAVAÇÃO MECANIZADA DE VALA COM PROF. MAIOR QUE 1,5 M E ATÉ 3,0 M(MÉDIA ENTRE MONTANTE E JUSANTE/UMA COMPOSIÇÃO POR TRECHO), COM ESCAVADEIRA HIDRÁULICA (0,8 M3/111 HP), LARG. MENOR QUE 1,5 M, EM SOLO DE 1A CATEGORIA, LOCAIS COM BAIXO NÍVEL DE INTERFERÊNCIA. AF_01/2015 | G150: M³ | H150: 618.13 | I150: 5,18 | J150: 6.45 | K150: 3986.94 | L150: 0.0002 | M150: 0.9
B151: 7.2.2 | C151: SERVIÇO | D151: SINAPI | E151: 79480 | F151: ESCAVACAO MECANICA CAMPO ABERTO EM SOLO EXCETO ROCHA ATE 2,00M PROFUNDIDADE | G151: M³ | H151: 1348.31 | I151: 2,35 | J151: 2.93 | K151: 3950.55 | L151: 0.0002 | M151: 0.9
B152: 4.5.9 | C152: INSUMO | D152: SEINFRA | E152: I3426 | F152: CURVA FoFo 90 FF DN 150 PN10 | G152: UN | H152: 10 | I152: 335.13 | J152: 378.7 | K152: 3787 | L152: 0.0002 | M152: 0.9
B153: 4.3.12 | C153: SERVIÇO | D153: ORSE | E153: 6320 | F153: LASTRO DE CONCRETO, FCK=15 MPA, LANÇADO E ADENSADO | G153: M³ | H153: 7.8 | I153: 389.09 | J153: 484.42 | K153: 3778.48 | L153: 0.0002 | M153: 0.9 | N153: 494.97
B154: 9.4.2 | C154: SERVIÇO | D154: CODEVASF | E154: ELE08 | F154: SERVIÇO PARA INSTALAÇÃO DOS MATERIAIS ELÉTRICOS DA ETE SBFD | G154: UN | H154: 1 | I154: 2973.44 | J154: 3701.93 | K154: 3701.93 | L154: 0.0002 | M154: 0.9
B155: 4.5.21 | C155: INSUMO | D155: ORSE | E155: 6439 | F155: VENTOSA TRÍPLICE FUNÇÃO, PN 25, DIAM = 50MM | G155: UN | H155: 3 | I155: 1075.67 | J155: 1215.51 | K155: 3646.53 | L155: 0.0002 | M155: 0.9
B156: 4.3.2 | C156: SERVIÇO | D156: SINAPI | E156: 94964 | F156: CONCRETO FCK = 20MPA, TRAÇO 1:2,7:3 (CIMENTO/ AREIA MÉDIA/ BRITA 1) - PREPARO MECÂNICO COM BETONEIRA 400 L. AF_07/2016 | G156: M³ | H156: 9.69 | I156: 301,28 | J156: 375.09 | K156: 3634.62 | L156: 0.0002 | M156: 0.9
B157: 5.5.5 | C157: INSUMO | D157: ORSE | E157: 5649 | F157: REGISTRO GAVETA FOFO, C/ FLANGES, CUNHA BORRACHA, CORPO CURTO E CABEÇOTE, PN 10, TIPO EURO 23, D= 300MM | G157: UN | H157: 1 | I157: 3074.82 | J157: 3474.55 | K157: 3474.55 | L157: 0.0002 | M157: 0.9
B158: 7.1.5 | C158: SERVIÇO | D158: ORSE | E158: 2548 | F158: LOCAÇÃO DE SERVIÇOS DE TERRAPLENAGEM DE OBRAS CIVIS | G158: M² | H158: 2206.62 | I158: 1.21 | J158: 1.51 | K158: 3332 | L158: 0.0002 | M158: 0.9
B159: 9.5.3 | C159: SERVIÇO | D159: ORSE | E159: ELE11 | F159: SERVIÇO PARA EXECUÇÃO DA EXTENSÃO DE REDE BT PARA EEE-04 | G159: UN | H159: 1 | I159: 2642.24 | J159: 3289.59 | K159: 3289.59 | L159: 0.0002 | M159: 0.9
B160: 9.1.4 | C160: SERVIÇO | D160: CODEVASF | E160: ELE03 | F160: COMISSIONAMENTO E STARTUP PARA CADA EEE | G160: UN | H160: 2 | I160: 1278.96 | J160: 1592.31 | K160: 3184.62 | L160: 0.0002 | M160: 0.9
B161: 4.1.21 | C161: SERVIÇO | D161: SINAPI | E161: 95468 | F161: PINTURA ESMALTE BRILHANTE (2 DEMAOS) SOBRE SUPERFICIE METALICA, INCLUSIVE PROTECAO COM ZARCAO (1 DEMAO) | G161: M² | H161: 67.24 | I161: 36,16 | J161: 45.02 | K161: 3027.14 | L161: 0.0002 | M161: 0.9 | N161: 19.27
B162: 4.5.18 | C162: INSUMO | D162: SEINFRA | E162: I4470 | F162: TUBO FoFo C/ FLANGES DN 150 PN10 - L=1500 | G162: UN | H162: 2 | I162: 1215.25 | J162: 1373.23 | K162: 2746.46 | L162: 0.0002 | M162: 0.9
B163: 5.5.9 | C163: INSUMO | D163: SEINFRA | E163: I3427 | F163: CURVA FoFo 90 FF DN 200 PN10 | G163: UN | H163: 5 | I163: 476.7 | J163: 538.67 | K163: 2693.35 | L163: 0.0002 | M163: 0.9
B164: 4.5.24 | C164: INSUMO | D164: SEINFRA | E164: I4658 | F164: TUBO FoFo C/FLANGE E PONTA DN 150 PN10 - L=2500 | G164: UN | H164: 2 | I164: 1178.03 | J164: 1331.17 | K164: 2662.34 | L164: 0.0002 | M164: 0.9
B165: 7.2.6 | C165: SERVIÇO | D165: ORSE | E165: 7086 | F165: ATERRO MECANIZADO COM TRATOR DE ESTEIRA, INCLUSIVE COMPACTAÇÃO (MÃO DE OBRA, CAMINHÃO PIPA, E ROLO) | G165: M³ | H165: 655.94 | I165: 3.22 | J165: 4.01 | K165: 2630.32 | L165: 0.0002 | M165: 0.9
B166: 4.3.19 | C166: SERVIÇO | D166: SEINFRA | E166: C3497 | F166: MONTAGEM DE TUBOS, CONEXÕES E PÇS, ELEVATÓRIA C/ VAZÃO DE 5,01 À 10 l/s | G166: UN | H166: 1 | I166: 2098.87 | J166: 2613.09 | K166: 2613.09 | L166: 0.0002 | M166: 0.9
B167: 4.5.27 | C167: INSUMO | D167: SEINFRA | E167: I4646 | F167: TUBO FoFo C/FLANGE E PONTA DN 100 PN10 - L=2000 | G167: UN | H167: 3 | I167: 752.79 | J167: 850.65 | K167: 2551.95 | L167: 0.0002 | M167: 0.9
B168: 4.3.13 | C168: SERVIÇO | D168: SINAPI | E168: 98679 | F168: PISO CIMENTADO, TRAÇO 1:3 (CIMENTO E AREIA), ACABAMENTO LISO, ESPESSURA 2,0 CM, PREPARO MECÂNICO DA ARGAMASSA. AF_06/2018 | G168: M² | H168: 78 | I168: 25,73 | J168: 32.03 | K168: 2498.34 | L168: 0.0002 | M168: 0.9
B169: 4.5.14 | C169: INSUMO | D169: SEINFRA | E169: I3796 | F169: EXTREMIDADE FLANGE E PONTA DN 150 PN10 | G169: UN | H169: 8 | I169: 272.99 | J169: 308.48 | K169: 2467.84 | L169: 0.0002 | M169: 0.9
B170: 5.5.14 | C170: INSUMO | D170: SEINFRA | E170: I3797 | F170: EXTREMIDADE FLANGE E PONTA DN 200 PN10 | G170: UN | H170: 4 | I170: 517.19 | J170: 584.42 | K170: 2337.68 | L170: 0.0001 | M170: 0.9
B171: 4.5.4 | C171: INSUMO | D171: SEINFRA | E171: I6667 | F171: TUBO FoFo C/FLANGE E PONTA DN 150 PN10 L=500 | G171: UN | H171: 4 | I171: 505.97 | J171: 571.75 | K171: 2287 | L171: 0.0001 | M171: 0.9
B172: 5.5.4 | C172: INSUMO | D172: SEINFRA | E172: I6670 | F172: TUBO FoFo C/FLANGE E PONTA DN 300 PN10 L=500 | G172: UN | H172: 2 | I172: 1011.28 | J172: 1142.75 | K172: 2285.5 | L172: 0.0001 | M172: 0.9
B173: 2.11.1 | C173: SERVIÇO | D173: SINAPI | E173: 73891/1 | F173: ESGOTAMENTO COM MOTO-BOMBA AUTOESCOVANTE | G173: H | H173: 322 | I173: 5,58 | J173: 6.95 | K173: 2237.9 | L173: 0.0001 | M173: 0.9
B174: 10.2.5 | C174: SERVIÇO | D174: CODEVASF | E174: COMPOSIÇÃO | F174: DESLOCAMENTO E INSTALAÇÃO DE EQUIPAMENTO ACIMA DE 500 METROS | G174: UN | H174: 2 | I174: 886.52 | J174: 1103.72 | K174: 2207.44 | L174: 0.0001 | M174: 0.9
B175: 4.1.18 | C175: SERVIÇO | D175: SEINFRA | E175: C0823 | F175: COMPORTA EM FIBRA, CALHA EM ALUMÍNIO | G175: M² | H175: 4.09 | I175: 413.24 | J175: 514.48 | K175: 2104.22 | L175: 0.0001 | M175: 0.9
B176: 2.9.1 | C176: SERVIÇO | D176: SINAPI | E176: 74219/2 | F176: PASSADICOS COM TABUAS DE MADEIRA PARA VEICULOS | G176: M² | H176: 35 | I176: 48,25 | J176: 60.07 | K176: 2102.45 | L176: 0.0001 | M176: 0.9
B177: 4.5.17 | C177: INSUMO | D177: SEINFRA | E177: I3877 | F177: JUNÇÃO 45 FoFo FFF DN 150 x 150 PN10 | G177: UN | H177: 2 | I177: 926.97 | J177: 1047.48 | K177: 2094.96 | L177: 0.0001 | M177: 0.9
B178: 2.13.11 | C178: INSUMO | D178: SINAPI | E178: 318 | F178: ANEL BORRACHA, PARA TUBO PVC DEFOFO, DN 150 MM (NBR 7665) | G178: UN | H178: 182 | I178: 10,08 | J178: 11.39 | K178: 2072.98 | L178: 0.0001 | M178: 0.9
B179: 2.3.5 | C179: SERVIÇO | D179: SINAPI | E179: 72917 | F179: ESCAVACAO MECANICA DE VALA EM MATERIAL 2A. CATEGORIA DE 2,01 ATE 4,00 M DE PROFUNDIDADE COM UTILIZACAO DE ESCAVADEIRA HIDRAULICA | G179: M³ | H179: 133 | I179: 12,50 | J179: 15.56 | K179: 2069.48 | L179: 0.0001 | M179: 0.9
B180: 10.2.4 | C180: SERVIÇO | D180: CODEVASF | E180: COMPOSIÇÃO | F180: DESLOCAMENTO E INSTALAÇÃO DE EQUIPAMENTO 0 A 200 METROS | G180: UN | H180: 4 | I180: 409.13 | J180: 509.37 | K180: 2037.48 | L180: 0.0001 | M180: 0.9
B181: 2.9.2 | C181: SERVIÇO | D181: SINAPI | E181: 74219/1 | F181: PASSADICOS COM TABUAS DE MADEIRA PARA PEDESTRES | G181: M² | H181: 27 | I181: 59,85 | J181: 74.51 | K181: 2011.77 | L181: 0.0001 | M181: 0.9
B182: 4.5.11 | C182: INSUMO | D182: SEINFRA | E182: I7605 | F182: REDUÇÃO EXCÊNTRICA C/ FLANGES DN 150 x 80 PN10 | G182: UN | H182: 4 | I182: 440.98 | J182: 498.31 | K182: 1993.24 | L182: 0.0001 | M182: 0.9
B183: 4.5.7 | C183: INSUMO | D183: SEINFRA | E183: I3477 | F183: CURVA DE PÉ 90 FF DN 150 PN10 | G183: UN | H183: 4 | I183: 440.35 | J183: 497.6 | K183: 1990.4 | L183: 0.0001 | M183: 0.9
B184: 4.5.3 | C184: INSUMO | D184: SEINFRA | E184: I3893 | F184: JUNTA GIBAULT DN 150 | G184: UN | H184: 6 | I184: 291.72 | J184: 329.64 | K184: 1977.84 | L184: 0.0001 | M184: 0.9
B185: 4.3.10 | C185: SERVIÇO | D185: SINAPI | E185: 88488 | F185: APLICAÇÃO MANUAL DE PINTURA COM TINTA LÁTEX ACRÍLICA EM TETO, DUAS DEMÃOS. AF_06/2014 | G185: M² | H185: 134.37 | I185: 11,70 | J185: 14.57 | K185: 1957.77 | L185: 0.0001 | M185: 0.9
B186: 5.5.12 | C186: INSUMO | D186: SEINFRA | E186: I4086 | F186: REDUÇÃO FoFo FF DN 200 x 100 PN10 | G186: UN | H186: 2 | I186: 845.72 | J186: 955.66 | K186: 1911.32 | L186: 0.0001 | M186: 0.9
B187: 2.6.4 | C187: SERVIÇO | D187: SINAPI | E187: 90737 | F187: ASSENTAMENTO DE TUBO DE PVC PARA REDE COLETORA DE ESGOTO DE PAREDE MACIÇA, DN 300 MM, JUNTA ELÁSTICA, INSTALADO EM LOCAL COM NÍVEL BAIXO DE INTERFERÊNCIAS (NÃO INCLUI FORNECIMENTO). AF_06/2015 | G187: M | H187: 276 | I187: 5,24 | J187: 6.52 | K187: 1799.52 | L187: 0.0001 | M187: 0.9
B188: 5.5.19 | C188: INSUMO | D188: SEINFRA | E188: I4481 | F188: TUBO FoFo C/ FLANGES DN 200 PN10 - L=1500 | G188: UN | H188: 1 | I188: 1510.9 | J188: 1707.32 | K188: 1707.32 | L188: 0.0001 | M188: 0.9
B189: 5.5.11 | C189: INSUMO | D189: SEINFRA | E189: I4070 | F189: REDUÇÃO EXCÊNTRICA C/ FLANGES DN 200 x 100 PN10 | G189: UN | H189: 2 | I189: 751.16 | J189: 848.81 | K189: 1697.62 | L189: 0.0001 | M189: 0.9
B190: 5.5.25 | C190: INSUMO | D190: SEINFRA | E190: I4669 | F190: TUBO FoFo C/FLANGE E PONTA DN 200 PN10 - L=2500 | G190: UN | H190: 1 | I190: 1490.93 | J190: 1684.75 | K190: 1684.75 | L190: 0.0001 | M190: 0.9
B191: 4.3.15 | C191: SERVIÇO | D191: SINAPI | E191: 95465 | F191: COBOGO CERAMICO (ELEMENTO VAZADO), 9X20X20CM, ASSENTADO COM ARGAMASSA TRACO 1:4 DE CIMENTO E AREIA | G191: M² | H191: 11.52 | I191: 115,34 | J191: 143.6 | K191: 1654.27 | L191: 0.0001 | M191: 0.9
B192: 4.5.12 | C192: INSUMO | D192: SEINFRA | E192: I4083 | F192: REDUÇÃO FoFo FF DN 150 x 75 PN10 | G192: UN | H192: 4 | I192: 359.91 | J192: 406.7 | K192: 1626.8 | L192: 0.0001 | M192: 0.9
B193: 4.1.4 | C193: SERVIÇO | D193: SINAPI | E193: 83338 | F193: ESCAVACAO MECANICA, A CEU ABERTO, EM MATERIAL DE 1A CATEGORIA, COM ESCAVADEIRA HIDRAULICA, CAPACIDADE DE 0,78 M3 | G193: M³ | H193: 498.86 | I193: 2,59 | J193: 3.22 | K193: 1606.33 | L193: 0.0001 | M193: 0.9
B194: 9.2.4 | C194: SERVIÇO | D194: CODEVASF | E194: ELE06 | F194: COMISSIONAMENTO E STARTUP PARA EEE-02 | G194: UN | H194: 1 | I194: 1278.96 | J194: 1592.31 | K194: 1592.31 | L194: 0.0001 | M194: 0.9
B195: 4.5.22 | C195: INSUMO | D195: SEINFRA | E195: I4655 | F195: TUBO FoFo C/FLANGE E PONTA DN 150 PN10 - L=1000 | G195: UN | H195: 2 | I195: 695.25 | J195: 785.63 | K195: 1571.26 | L195: 0.0001 | M195: 0.9
B196: 4.1.8 | C196: SERVIÇO | D196: ORSE | E196: 4986 | F196: CARGA MECÂNICA DE MATERIAL DE 1ª CATEGORIA | G196: M³ | H196: 1716.86 | I196: 0.72 | J196: 0.9 | K196: 1545.17 | L196: 0.0001 | M196: 0.9
B197: 9.5.2 | C197: SERVIÇO | D197: CODEVASF | E197: ELE10 | F197: SERVIÇO PARA PROJETO DA EXTENSÃO DE REDE BT PARA EEE-04 | G197: UN | H197: 1 | I197: 1172.4 | J197: 1459.64 | K197: 1459.64 | L197: 0.0001 | M197: 0.9
B198: 4.5.25 | C198: INSUMO | D198: SEINFRA | E198: I3648 | F198: TE FoFo FF DN 150 x 100 PN10 | G198: UN | H198: 2 | I198: 614.32 | J198: 694.18 | K198: 1388.36 | L198: 0.0001 | M198: 0.9
B199: 4.1.2 | C199: SERVIÇO | D199: SEINFRA | E199: C1630 | F199: LOCAÇÃO DA OBRA - EXECUÇÃO DE GABARITO | G199: M² | H199: 229.23 | I199: 4.58 | J199: 5.7 | K199: 1306.61 | L199: 0.0001 | M199: 0.9
B200: 4.5.19 | C200: INSUMO | D200: SEINFRA | E200: I3646 | F200: TE FoFo FF DN 150 x 50 PN10 | G200: UN | H200: 2 | I200: 577.53 | J200: 652.61 | K200: 1305.22 | L200: 0.0001 | M200: 0.9
B201: 4.5.2 | C201: INSUMO | D201: SEINFRA | E201: I7266 | F201: TUBO FoFo PB JE K-9 P/ ESGOTO DN 150 | G201: M | H201: 4 | I201: 287.64 | J201: 325.03 | K201: 1300.12 | L201: 0.0001 | M201: 0.9
B202: 5.5.2 | C202: INSUMO | D202: SEINFRA | E202: I7269 | F202: TUBO FoFo PB JE K-9 P/ ESGOTO DN 300 | G202: M | H202: 2 | I202: 569.36 | J202: 643.38 | K202: 1286.76 | L202: 0.0001 | M202: 0.9
B203: 4.5.15 | C203: INSUMO | D203: SEINFRA | E203: I3962 | F203: TUBO FoFo C/ FLANGES DN 150 PN10 - L=250 | G203: UN | H203: 4 | I203: 282.76 | J203: 319.52 | K203: 1278.08 | L203: 0.0001 | M203: 0.9
B204: 5.5.27 | C204: INSUMO | D204: ORSE | E204: 5647 | F204: REGISTRO GAVETA FOFO, C/ FLANGES, CUNHA BORRACHA, CORPO CURTO E CABEÇOTE, PN 10, TIPO EURO 23, D= 200MM | G204: UN | H204: 1 | I204: 1120.75 | J204: 1266.45 | K204: 1266.45 | L204: 0.0001 | M204: 0.9
B205: 2.7.4 | C205: SERVIÇO | D205: SINAPI | E205: 72900 | F205: TRANSPORTE DE ENTULHO COM CAMINHAO BASCULANTE 6 M3, RODOVIA PAVIMENTADA, DMT 0,5 A 1,0 KM | G205: M³ | H205: 162.75 | I205: 6,12 | J205: 7.62 | K205: 1240.16 | L205: 0.0001 | M205: 0.9
... 32 more rows

Sheet CPU (hidden)
A1: ITEM | B1: REF. | C1: CÓDIGO | D1: DESCRIÇÃO | E1: UNID. | F1: COEF. | G1: P.UNIT. | H1: P. TOTAL
A2: 1.1 | B2: SINAPI | C2: 74209/1 | D2: FORNECIMENTO, MONTAGEM, MANUTENÇÃO E INSTALAÇÃO DE PLACA DE IDENTIFICAÇÃO DE OBRA COM 2MX3M, CONFORME MODELO APRESENTADO PELA FISCALIZAÇÃO. | E2: M² | F2: 12.96
D3: SARRAFO DE MADEIRA NAO APARELHADA *2,5 X 7* CM, MACARANDUBA, ANGELIM OU EQUIVALENTE DA REGIAO | E3: M | F3: 1,0000000 | G3: 5,43 | H3: =F3*G3 -> 5.43
D4: PECA DE MADEIRA NATIVA / REGIONAL 7,5 X 7,5CM (3X3) NAO APARELHADA (P/FORMA) | E4: M | F4: 4,0000000 | G4: 6,40 | H4: =F4*G4 -> 25.6
D5: PLACA DE OBRA (PARA CONSTRUCAO CIVIL) EM CHAPA GALVANIZADA *N. 22*, DE *2,0 X 1,125* M | E5: M2 | F5: 1,0000000 | G5: 176.12 | H5: 176.12
D6: PREGO DE ACO POLIDO COM CABECA 18 X 30 (2 3/4 X 10) | E6: KG | F6: 0,1100000 | G6: 11,39 | H6: 1.2529
D7: CARPINTEIRO DE FORMAS COM ENCARGOS COMPLEMENTARES | E7: H | F7: 1,0000000 | G7: 19,45 | H7: 19.45
D8: SERVENTE COM ENCARGOS COMPLEMENTARES | E8: H | F8: 2,0000000 | G8: 15,85 | H8: 31.7
D9: CONCRETO MAGRO PARA LASTRO, TRAÇO 1:4,5:4,5 (CIMENTO/ AREIA MÉDIA/ BRITA 1) - PREPARO MECÂNICO COM BETONEIRA 400 L. AF_07/2016 | E9: M3 | F9: 0,0100000 | G9: 254,54 | H9: 2.5454
D10: TOTAL GERAL S/ BDI | H10: =SUM(H3:H9) -> 262.1 | I10: 262.1
A12: 1.2 | B12: CODEVASF | C12: COMPOSIÇÃO | D12: MOBILIZAÇÃO DE EQUIPAMENTOS, MATERIAIS E PESSOAL | E12: UN | F12: 2
D13: MOTORISTA DE CAMINHAO | E13: H | F13: 16 | G13: 27,77 | H13: =G13*F13 -> 444.32
D14: CAMINHÃO BASCULANTE 6 M³ TOCO, PESO BRUTO TOTAL 16.000 KG, CARGA ÚTIL MÁXIMA 11.130 KG, DISTÂNCIA ENTRE EIXOS 5,36 M, POTÊNCIA 185 CV, INCLUSIVE CAÇAMBA METÁLICA - CHP DIURNO. AF_06/2014 | E14: CHP | F14: 8 | G14: 100 | H14: =G14*F14 -> 800
D15: CAMINHÃO TRUCADO (C/ TERCEIRO EIXO) ELETRÔNICO - POTÊNCIA 231CV - PBT = 22000KG - DIST. ENTRE EIXOS 5170 MM - INCLUI CARROCERIA FIXA ABERTA DE MADEIRA - CHP DIURNO. AF_06/2015 | E15: CHP | F15: 8 | G15: 105 | H15: 840
D16: RETROESCAVADEIRA SOBRE RODAS COM CARREGADEIRA, TRAÇÃO 4X4, POTÊNCIA LÍQ. 72 HP, CAÇAMBA CARREG. CAP. MÍN. 0,79 M³, CAÇAMBA RETRO CAP. 0,18 M³, PESO OPERACIONAL MÍN. 7.140 KG, PROFUNDIDADE ESCAVAÇÃO MÁX. 4,50 M - CHI DIURNO. AF_06/2014 | E16: CHI | F16: 8 | G16: 54.57 | H16: 436.56
D17: VEÍCULO PICK-UP CABINE DUPLA 4X4 (163 CV), COM MOTORISTA | E17: MÊS | F17: 0.5 | G17: 6044.97 | H17: 3022.49
G18: SUB-TOTAL | H18: =SUM(H13:H17) -> 5543.37 | I18: 5543.37
A20: 1.3 | B20: CODEVASF | C20: COMPOSIÇÃO | D20: DESMOBILIZAÇÃO DE EQUIPAMENTOS, MATERIAIS E PESSOAL | E20: UN | F20: 1
D21: MOTORISTA DE CAMINHAO | E21: H | F21: 16 | G21: 27,77 | H21: =G21*F21 -> 444.32
D22: CAMINHÃO BASCULANTE 6 M³ TOCO, PESO BRUTO TOTAL 16.000 KG, CARGA ÚTIL MÁXIMA 11.130 KG, DISTÂNCIA ENTRE EIXOS 5,36 M, POTÊNCIA 185 CV, INCLUSIVE CAÇAMBA METÁLICA - CHP DIURNO. AF_06/2014 | E22: CHP | F22: 8 | G22: 100 | H22: =G22*F22 -> 800
D23: CAMINHÃO TRUCADO (C/ TERCEIRO EIXO) ELETRÔNICO - POTÊNCIA 231CV - PBT = 22000KG - DIST. ENTRE EIXOS 5170 MM - INCLUI CARROCERIA FIXA ABERTA DE MADEIRA - CHP DIURNO. AF_06/2015 | E23: CHP | F23: 8 | G23: 105 | H23: 840
D24: RETROESCAVADEIRA SOBRE RODAS COM CARREGADEIRA, TRAÇÃO 4X4, POTÊNCIA LÍQ. 72 HP, CAÇAMBA CARREG. CAP. MÍN. 0,79 M³, CAÇAMBA RETRO CAP. 0,18 M³, PESO OPERACIONAL MÍN. 7.140 KG, PROFUNDIDADE ESCAVAÇÃO MÁX. 4,50 M - CHI DIURNO. AF_06/2014 | E24: CHI | F24: 8 | G24: 54.57 | H24: 436.56
D25: VEÍCULO PICK-UP CABINE DUPLA 4X4 (163 CV), COM MOTORISTA | E25: MÊS | F25: 0.5 | G25: 6044.97 | H25: 3022.49
G26: SUB-TOTAL | H26: =SUM(H21:H25) -> 5543.37 | I26: 5543.37
A28: 1.4 | B28: CODEVASF | C28: COMPOSIÇÃO | D28: INSTALAÇÃO DE CANTEIRO DE OBRAS | E28: UN | F28: 1
D29: MURO EM ALVENARIA BLOCO CERÂMICO, E= 0,09M, C/ ALV DE PEDRA GRANÍTICA, 0,35 X 0,60M, COLUNAS (9X20CM) E CINTAMENTO (9X15CM) SUPERIOR E INFERIOR CONCRETO AR MADO FCK = 15,0 MPA CADA 3,00M, CHAPISCO E REBOCO | E29: M² | F29: 400 | G29: 140.56 | H29: =G29*F29 -> 56224
D30: PORTAO DE FERRO EM CHAPA GALVANIZADA PLANA 14 GSG | E30: M² | F30: 8 | G30: 236.59 | H30: 1892.72
D31: EXECUÇÃO DE ESCRITÓRIO EM CANTEIRO DE OBRA EM ALVENARIA, NÃO INCLUSO MOBILIÁRIO E EQUIPAMENTOS. AF_02/2016 | E31: M² | F31: 48 | G31: 786.38 | H31: 37746.24
D32: EXECUÇÃO DE ALMOXARIFADO EM CANTEIRO DE OBRA EM CHAPA DE MADEIRA COMPENSADA, INCLUSO PRATELEIRAS. AF_02/2016 | E32: M² | F32: 32 | G32: 539.26 | H32: 17256.32
D33: EXECUÇÃO DE REFEITÓRIO EM CANTEIRO DE OBRA EM ALVENARIA, NÃO INCLUSO MOBILIÁRIO E EQUIPAMENTOS. AF_02/2016 | E33: M² | F33: 32 | G33: 400.08 | H33: 12802.56
D34: EXECUÇÃO DE SANITÁRIO E VESTIÁRIO EM CANTEIRO DE OBRA EM ALVENARIA, NÃO INCLUSO MOBILIÁRIO. AF_02/2016 | E34: M² | F34: 22 | G34: 725.79 | H34: 15967.38
D35: EXECUÇÃO DE RESERVATÓRIO ELEVADO DE ÁGUA (2000 LITROS) EM CANTEIRO DE OBRA, APOIADO EM ESTRUTURA DE MADEIRA. AF_02/2016 | E35: UN | F35: 1 | G35: 6017.47 | H35: 6017.47
G36: SUB-TOTAL | H36: =SUM(H29:H35) -> 147906.69
A38: 1.5 | B38: CODEVASF | C38: COMPOSIÇÃO | D38: ADMINISTRAÇÃO LOCAL E MANUTENÇÃO DE CANTEIRO DE OBRAS | E38: UN | F38: 1
D39: ENGENHEIRO CIVIL DE OBRA JUNIOR (MENSALISTA) | E39: MES | F39: 0.5 | G39: 14.018,98 | H39: =G39*F39 -> 7009.49
D40: ENCARREGADO GERAL DE OBRAS (MENSALISTA) | E40: MES | F40: 1 | G40: 5.794,81 | H40: 5794.81
D41: TECNICO EM SEGURANCA DO TRABALHO (MENSALISTA) | E41: MES | F41: 1 | G41: 3.479,68 | H41: 3479.68
D42: AUXILIAR DE ESCRITORIO (MENSALISTA) | E42: MES | F42: 1 | G42: 2.573,36 | H42: 2573.36
D43: VIGIA NOTURNO, HORA EFETIVAMENTE TRABALHADA DE 22 H AS 5 H (COM ADICIONAL NOTURNO) | E43: H | F43: 154 | G43: 14,24 | H43: 2192.96
D44: VIGIA DIURNO | E44: H | F44: 88 | G44: 11,55 | H44: 1016.4
D45: MEDICAMENTOS PRIMEIROS SOCORROS | E45: MÊS | F45: 1 | G45: 28.67 | H45: 28.67
D46: MATERIAL DE LIMPEZA | E46: MÊS | F46: 1 | G46: 75.53 | H46: 75.53
D47: KIT BÁSICO DE EPI - FARDAMENTO, BOTA DE COURO, CAPACETE, LUVA RASPA, ÓCULOS, MÁSCARA FILTRO PAPEL, FILTRO SOLAR FPS30 (CUSTO MENSAL) | E47: UN | F47: 2 | G47: 124.18 | H47: 248.36
D48: ENERGIA ELETRICA COMERCIAL, BAIXA TENSAO, RELATIVA AO CONSUMO DE ATE 100 KWH, INCLUINDO ICMS, PIS/PASEP E COFINS | E48: KW/H | F48: 500 | G48: 0,52 | H48: 260
D49: TARIFA "A" ENTRE 0 E 20M³ FORNECIMENTO D'AGUA | E49: M³ | F49: 10 | G49: 9,83 | H49: 98.3
D50: MATERIAL DE ESCRITÓRIO | E50: MÊS | F50: 1 | G50: 30 | H50: 30
D51: INTERNET | E51: UNxMÊS | F51: 1 | G51: 130 | H51: 130
G52: SUB-TOTAL | H52: =SUM(H39:H51) -> 22937.56
A54: 1.6 | B54: CODEVASF | C54: COMPOSIÇÃO | D54: VEÍCULO PICK-UP CABINE DUPLA 4X4 (163 CV) | E54: MÊS | F54: 24
D55: VEÍCULO PICK-UP CABINE DUPLA 4X4 (163 CV), COM MOTORISTA | E55: MÊS | F55: 0.5 | G55: 9523.23 | H55: =G55*F55 -> 4761.62
G56: SUB-TOTAL | H56: =SUM(H55) -> 4761.62
A57: 2.1.1 | B57: SINAPI | C57: 85323 | D57: LOCACAO E NIVELAMENTO DE EMISSARIO/REDE COLETORA COM AUXILIO DE EQUIPAMENTO TOPOGRAFICO | E57: M | F57: 22083
D58: LOCACAO DE TEODOLITO ELETRONICO, PRECISAO ANGULAR DE 5 A 7 SEGUNDOS, INCLUINDO TRIPE | E58: H | F58: 0,0300000 | G58: 2,27 | H58: =G58*F58 -> 0.07
D59: LOCACAO DE NIVEL OPTICO, COM PRECISAO DE 0,7 MM, AUMENTO DE 32X | E59: H | F59: 0,0300000 | G59: 2,27 | H59: 0.07
D60: AUXILIAR DE TOPÓGRAFO COM ENCARGOS COMPLEMENTARES | E60: H | F60: 0,0600000 | G60: 11,87 | H60: 0.71
D61: TOPOGRAFO COM ENCARGOS COMPLEMENTARES | E61: H | F61: 0,0300000 | G61: 21,06 | H61: 0.63
G62: SUB-TOTAL | H62: =SUM(H58:H61) -> 1.48
A63: 2.2.1 | B63: ORSE | C63: 11676 | D63: CADASTRO DE REDES DE ESGOTO | E63: M | F63: 22083
D64: Auxiliar topografia - T4 - Segundo grau completo - DNIT - Mês de ref.: 05/18 | E64: h | F64: 0.036 | G64: 9.24 | H64: =G64*F64 -> 0.33264
D65: Topografo - T2 - Fonte DNIT - Mês de ref.: 05/18 | E65: h | F65: 0.012 | G65: 15.41 | H65: =G65*F65 -> 0.18492
D66: Pick-up, capacidade 1,2 t | E66: h | F66: 0.012 | G66: 10.54 | H66: 0.12648
D67: Nível ótico de precisão | E67: H | F67: 0.012 | G67: 5.58 | H67: 0.06696
D68: TEODOLITO | E68: H | F68: 0.012 | G68: 5.58 | H68: 0.06696
G69: SUB-TOTAL | H69: =SUM(H64:H68) -> 0.77796
A70: 2.2.2 | B70: ORSE | C70: 2830 | D70: LIMPEZA E TESTE DE REDES DE ESGOTOS SANITÁRIOS | E70: M | F70: 28583
C71: 00054/ORSE | D71: Encarregado de turma - Fonte DNIT - Mês de ref.: 05/18 | E71: h | F71: 0.003 | G71: 14.15 | H71: =G71*F71 -> 0.04245
C72: 02696/SINAPI | D72: Encanador ou bombeiro hidraulico | E72: h | F72: 0.03 | G72: 6.25 | H72: 0.1875
C73: 06111/SINAPI | D73: Servente de obras | E73: h | F73: 0.06 | G73: 4.34 | H73: 0.2604
C74: 02459/ORSE | D74: Caminhao tanque 6000 l (m. benz - ATEGO 1418/42 - 136,0 hp ou equivalente) | E74: h | F74: 0.009 | G74: 63 | H74: 0.567
C75: 10549/ORSE | D75: Encargos Complementares - Servente | E75: h | F75: 0.06 | G75: 2.57 | H75: 0.1542
C76: 10554/ORSE | D76: Encargos Complementares - Encanador | E76: h | F76: 0.03 | G76: 2.51 | H76: 0.0753
D77: Almoço (Participação do empregador) | E77: un | F77: 0.0092 | G77: 10 | H77: 0.092
C78: 12893/SINAPI | D78: Bota de seguranca com biqueira de aco e colarinho acolchoado | E78: par | F78: 0 | G78: 38.97 | H78: 0
C79: 02459/ORSE | D79: Caminhao tanque 6000 l (m. benz - ATEGO 1418/42 - 136,0 hp ou equivalente) | E79: h | F79: 0.009 | G79: 63 | H79: 0.567
C80: 12894/SINAPI | D80: Capa para chuva em pvc com forro de poliester, com capuz (amarela ou azul) | E80: un | F80: 0 | G80: 10.55 | H80: 0
C81: 12895/SINAPI | D81: Capacete de seguranca aba frontal com suspensao de polietileno, sem jugular (classe b) | E81: un | F81: 0 | G81: 8.12 | H81: 0
C82: 02711/SINAPI | D82: Carrinho de mao de aco capacidade 50 a 60 l, pneu com camara | E82: un | F82: 0 | G82: 129 | H82: 0
C83: 10492/ORSE | D83: Cesta Básica | E83: un | F83: 0.0004 | G83: 130 | H83: 0.052
C84: 02696/SINAPI | D84: Encanador ou bombeiro hidraulico | E84: h | F84: 0.03 | G84: 13.39 | H84: 0.4017
C85: 00054/ORSE | D85: Encarregado de turma - Fonte DNIT - Mês de ref.: 05/18 | E85: h | F85: 0.003 | G85: 30.32 | H85: 0.09096
C86: 10517/ORSE | D86: Exames admissionais/demissionais (checkup) | E86: cj | F86: 0 | G86: 326 | H86: 0
C87: 00941/ORSE | D87: Fardamento | E87: un | F87: 0.0001 | G87: 68.59 | H87: 0.006859
C88: 10592/ORSE | D88: Lima chata 1 1/2" | E88: un | F88: 0 | G88: 8.83 | H88: 0
C89: 12892/SINAPI | D89: Luva raspa de couro, cano curto (punho *7* cm) | E89: par | F89: 0.0002 | G89: 7.3 | H89: 0.00146
C90: 04729/ORSE | D90: Marreta 1 kg com cabo | E90: un | F90: 0 | G90: 15.8 | H90: 0
C91: 01651/ORSE | D91: Óculos branco proteção | E91: pr | F91: 0 | G91: 5.5 | H91: 0
C92: 10788/ORSE | D92: Pá quadrada | E92: un | F92: 0 | G92: 17.29 | H92: 0
C93: 10593/ORSE | D93: Praio simples 30cm | E93: un | F93: 0 | G93: 46.89 | H93: 0
C94: 10596/ORSE | D94: Protetor auricular | E94: un | F94: 0.0004 | G94: 3.2 | H94: 0.00128
C95: 10599/ORSE | D95: Protetor solar fps 30 com 120ml | E95: un | F95: 0.0002 | G95: 17.74 | H95: 0.003548
C96: 10761/ORSE | D96: Refeição - café da manhã ( café com leite e dois pães com manteiga) | E96: un | F96: 0.0092 | G96: 2.5 | H96: 0.023
C97: 10362/ORSE | D97: Seguro de vida e acidente em grupo | E97: un | F97: 0.0004 | G97: 5.65 | H97: 0.00226
C98: 06111/SINAPI | D98: Servente de obras | E98: h | F98: 0.06 | G98: 9.3 | H98: 0.558
C99: 04728/ORSE | D99: Talhadeira chata 10" | E99: un | F99: 0 | G99: 9.45 | H99: 0
C100: 11256/ORSE | D100: Tarracha para tubos PVC de 1 1/2" | E100: un | F100: 0 | G100: 41.3 | H100: 0
C101: 11257/ORSE | D101: Tarracha para tubos PVC de 1 1/4" | E101: un | F101: 0 | G101: 31.36 | H101: 0
C102: 11255/ORSE | D102: Tarracha para tubos PVC de 1" | E102: un | F102: 0 | G102: 21.96 | H102: 0
C103: 11253/ORSE | D103: Tarracha para tubos PVC de 1/2" | E103: un | F103: 0 | G103: 16.25 | H103: 0
C104: 11254/ORSE | D104: Tarracha para tubos PVC de 3/4" | E104: un | F104: 0 | G104: 18.8 | H104: 0
C105: 02378/ORSE | D105: Vale transporte | E105: un | F105: 0.0076 | G105: 3.5 | H105: 0.0266
G106: SUB-TOTAL | H106: =SUM(H71:H105) -> 3.113517
A107: 2.3.1 | B107: SINAPI | C107: 93358 | D107: ESCAVAÇÃO MANUAL DE VALA COM PROFUNDIDADE MENOR OU IGUAL A 1,30 M. AF_03/2016 | E107: M³ | F107: 2456.2
D108: SERVENTE COM ENCARGOS COMPLEMENTARES | E108: H | F108: 3,9560000 | G108: 15,85 | H108: =G108*F108 -> 62.7026
G109: SUB-TOTAL | H109: =SUM(H108) -> 62.7026
A110: 2.3.2 | B110: SINAPI | C110: 90105 | D110: ESCAVAÇÃO MECANIZADA DE VALA COM PROFUNDIDADE ATÉ 1,5 M (MÉDIA ENTRE MONTANTE E JUSANTE/UMA COMPOSIÇÃO POR TRECHO) COM RETROESCAVADEIRA (CAPACIDADE DA CAÇAMBA DA RETRO: 0,26 M³ / POTÊNCIA: 88 HP), LARGURA MENOR QUE 0,8 M, EM SOLO DE 1A CATEGORIA, LOCAISCOM BAIXO NÍVEL DE INTERFERÊNCIA. AF_01/2015 | E110: M³ | F110: 10033.52
D111: RETROESCAVADEIRA SOBRE RODAS COM CARREGADEIRA, TRAÇÃO 4X4, POTÊNCIA LÍQ. 88 HP, CAÇAMBA CARREG. CAP. MÍN. 1 M3, CAÇAMBA RETRO CAP. 0,26 M3, PESO OPERACIONAL MÍN. 6.674 KG, PROFUNDIDADE ESCAVAÇÃO MÁX. 4,37 M - CHP DIURNO. AF_06/2014 | E111: CHP | F111: 0,0355000 | G111: 114,98 | H111: =G111*F111 -> 4.08179
D112: RETROESCAVADEIRA SOBRE RODAS COM CARREGADEIRA, TRAÇÃO 4X4, POTÊNCIA LÍQ. 88 HP, CAÇAMBA CARREG. CAP. MÍN. 1 M3, CAÇAMBA RETRO CAP. 0,26 M3, PESO OPERACIONAL MÍN. 6.674 KG, PROFUNDIDADE ESCAVAÇÃO MÁX. 4,37 M - CHI DIURNO. AF_06/2014 | E112: CHI | F112: 0,0429000 | G112: 55,33 | H112: 2.373657
D113: SERVENTE COM ENCARGOS COMPLEMENTARES | E113: H | F113: 0,0784000 | G113: 15,85 | H113: 1.24264
G114: SUB-TOTAL | H114: =SUM(H111:H113) -> 7.698087
A115: 2.3.3 | B115: SINAPI | C115: 90092 | D115: ESCAVAÇÃO MECANIZADA DE VALA COM PROF. MAIOR QUE 1,5 M E ATÉ 3,0 M(MÉDIA ENTRE MONTANTE E JUSANTE/UMA COMPOSIÇÃO POR TRECHO), COM ESCAVADEIRA HIDRÁULICA (0,8 M³/111 HP), LARG. MENOR QUE 1,5 M, EM SOLO DE 1A CATEGORIA, LOCAIS COM BAIXO NÍVEL DE INTERFERÊNCIA. AF_01/2015 | E115: M³ | F115: 618.13
D116: ESCAVADEIRA HIDRÁULICA SOBRE ESTEIRAS, CAÇAMBA 0,80 M3, PESO OPERACIONAL 17 T, POTENCIA BRUTA 111 HP - CHP DIURNO. AF_06/2014 | E116: CHP | F116: 0,0206000 | G116: 146,53 | H116: =G116*F116 -> 3.018518
D117: ESCAVADEIRA HIDRÁULICA SOBRE ESTEIRAS, CAÇAMBA 0,80 M3, PESO OPERACIONAL 17 T, POTENCIA BRUTA 111 HP - CHI DIURNO. AF_06/2014 | E117: CHI | F117: 0,0224000 | G117: 66,72 | H117: 1.494528
D118: SERVENTE COM ENCARGOS COMPLEMENTARES | E118: H | F118: 0,0431000 | G118: 15,85 | H118: 0.683135
G119: SUB-TOTAL | H119: =SUM(H116:H118) -> 5.196181
A120: 2.3.4 | B120: SINAPI | C120: 72915 | D120: ESCAVACAO MECANICA DE VALA EM MATERIAL DE 2A. CATEGORIA ATE 2 M DE PROFUNDIDADE COM UTILIZACAO DE ESCAVADEIRA HIDRAULICA | E120: M³ | F120: 2610.57
D121: SERVENTE COM ENCARGOS COMPLEMENTARES | E121: H | F121: 0,1250000 | G121: 15,85 | H121: =G121*F121 -> 1.98125
D122: ESCAVADEIRA HIDRÁULICA SOBRE ESTEIRAS, CAÇAMBA 0,80 M3, PESO OPERACIONAL 17,8 T, POTÊNCIA LÍQUIDA 110 HP - CHP DIURNO. AF_10/2014 | E122: CHP | F122: 0,0625000 | G122: 143,45 | H122: 8.965625
G123: SUB-TOTAL | H123: =SUM(H121:H122) -> 10.946875
A124: 2.3.5 | B124: SINAPI | C124: 72917 | D124: ESCAVACAO MECANICA DE VALA EM MATERIAL 2A. CATEGORIA DE 2,01 ATE 4,00 M DE PROFUNDIDADE COM UTILIZACAO DE ESCAVADEIRA HIDRAULICA | E124: M³ | F124: 829.46
D125: SERVENTE COM ENCARGOS COMPLEMENTARES | E125: H | F125: 0,1428000 | G125: 15,85 | H125: =G125*F125 -> 2.26338
D126: ESCAVADEIRA HIDRÁULICA SOBRE ESTEIRAS, CAÇAMBA 0,80 M3, PESO OPERACIONAL 17,8 T, POTÊNCIA LÍQUIDA 110 HP - CHP DIURNO. AF_10/2014 | E126: CHP | F126: 0,0714000 | G126: 143,45 | H126: 10.24233
G127: SUB-TOTAL | H127: =SUM(H125:H126) -> 12.50571
A128: 2.3.6 | B128: ORSE | C128: 4357 | D128: ESCAVAÇÃO COM PERFURATRIZ EM MATERIAL DE 2ª CATEGORIA | E128: M³ | F128: 2108.94
C129: 02463/ORSE | D129: Compressor 250 pcm (atlas copco - xa-120dd - 94,0 hp ou equivalente) | E129: h | F129: 0.053 | G129: 12.15 | H129: =G129*F129 -> 0.64395
C130: 02479/ORSE | D130: Perfuratriz (atlas copco -rh 571 5l) | E130: h | F130: 0.16 | G130: 2.61 | H130: 0.4176
C131: 06111/SINAPI | D131: Servente de obras | E131: h | F131: 6.5 | G131: 4.34 | H131: 28.21
C132: 10549/ORSE | D132: Encargos Complementares - Servente | E132: h | F132: 6.5 | G132: 2.57 | H132: 16.705
C133: 00158/ORSE | D133: Almoço (Participação do empregador) | E133: un | F133: 0.6617 | G133: 10 | H133: 6.617
C134: 12893/SINAPI | D134: Bota de seguranca com biqueira de aco e colarinho acolchoado | E134: par | F134: 0.0052 | G134: 38.97 | H134: 0.202644
C135: 12894/SINAPI | D135: Capa para chuva em pvc com forro de poliester, com capuz (amarela ou azul) | E135: un | F135: 0.0013 | G135: 10.55 | H135: 0.013715
C136: 12895/SINAPI | D136: Capacete de seguranca aba frontal com suspensao de polietileno, sem jugular (classe b) | E136: un | F136: 0.0039 | G136: 8.12 | H136: 0.031668
C137: 02711/SINAPI | D137: Carrinho de mao de aco capacidade 50 a 60 l, pneu com camara | E137: un | F137: 0.0013 | G137: 129 | H137: 0.1677
C138: 10492/ORSE | D138: Cesta Básica | E138: un | F138: 0.0292 | G138: 130 | H138: 3.796
C139: 02463/ORSE | D139: Compressor 250 pcm (atlas copco - xa-120dd - 94,0 hp ou equivalente) | E139: h | F139: 0.053 | G139: 12.15 | H139: 0.64395
C140: 10517/ORSE | D140: Exames admissionais/demissionais (checkup) | E140: cj | F140: 0.0026 | G140: 326 | H140: 0.8476
C141: 00941/ORSE | D141: Fardamento | E141: un | F141: 0.0098 | G141: 68.59 | H141: 0.672182
C142: 12892/SINAPI | D142: Luva raspa de couro, cano curto (punho *7* cm) | E142: par | F142: 0.015 | G142: 7.3 | H142: 0.1095
C143: 04729/ORSE | D143: Marreta 1 kg com cabo | E143: un | F143: 0.0006 | G143: 15.8 | H143: 0.00948
C144: 01651/ORSE | D144: Óculos branco proteção | E144: pr | F144: 0.0052 | G144: 5.5 | H144: 0.0286
C145: 10788/ORSE | D145: Pá quadrada | E145: un | F145: 0.0013 | G145: 17.29 | H145: 0.022477
C146: 02479/ORSE | D146: Perfuratriz (atlas copco -rh 571 5l) | E146: h | F146: 0.16 | G146: 2.61 | H146: 0.4176
C147: 10596/ORSE | D147: Protetor auricular | E147: un | F147: 0.0292 | G147: 3.2 | H147: 0.09344
C148: 10599/ORSE | D148: Protetor solar fps 30 com 120ml | E148: un | F148: 0.0117 | G148: 17.74 | H148: 0.207558
C149: 10761/ORSE | D149: Refeição - café da manhã ( café com leite e dois pães com manteiga) | E149: un | F149: 0.6617 | G149: 2.5 | H149: 1.65425
C150: 10362/ORSE | D150: Seguro de vida e acidente em grupo | E150: un | F150: 0.0292 | G150: 5.65 | H150: 0.16498
C151: 06111/SINAPI | D151: Servente de obras | E151: h | F151: 6.5 | G151: 9.3 | H151: 60.45
C152: 04728/ORSE | D152: Talhadeira chata 10" | E152: un | F152: 0.002 | G152: 9.45 | H152: 0.0189
C153: 02378/ORSE | D153: Vale transporte | E153: un | F153: 0.6116 | G153: 3.5 | H153: 2.1406
G154: SUB-TOTAL | H154: =SUM(H129:H153) -> 124.286394
A155: 2.3.7 | B155: ORSE | C155: 4503 | D155: ESCAVAÇÃO MANUAL DE VALA OU CAVA EM MATERIAL DE 3ª CATEGORIA, PROFUNDIDADE AT É 4,00 M, COM USO DE EXPLOSIVOS E PERFURAÇÃO MECÂNICA | E155: M³ | F155: 1157.21
C156: 01045/ORSE | D156: Explosivo gelatinoso dinamite 40% (comprimento = 8" / diâmetro da seção = 1") | E156: kg | F156: 0.2 | G156: 8.35 | H156: =G156*F156 -> 
C157: 02463/ORSE | D157: Compressor 250 pcm (atlas copco - xa-120dd - 94,0 hp ou equivalente) | E157: h | F157: 0.0634 | G157: 11.68
C158: 02479/ORSE | D158: Perfuratriz (atlas copco -rh 571 5l) | E158: h | F158: 0.19 | G158: 2.43
C159: 02759/SINAPI | D159: Espoleta simples n 8. | E159: un | F159: 3 | G159: 4.06
C160: 02762/SINAPI | D160: Estopim simples | E160: m | F160: 3 | G160: 5.07
C161: 06111/SINAPI | D161: Servente de obras | E161: h | F161: 16.5 | G161: 4.42
C162: 04500/ORSE | D162: Série de brocas integrais - Série 11 | E162: Cj | F162: 0.0019 | G162: 4,252.77
C163: 10549/ORSE | D163: Encargos Complementares - Servente | E163: h | F163: 16.5 | G163: 2.61
C164: 00158/ORSE | D164: Almoço (Participação do empregador) | E164: un | F164: 16797 | G164: 10.00
C165: 12893/SINAPI | D165: Bota de seguranca com biqueira de aco e colarinho acolchoado | E165: par | F165: 0.0132 | G165: 38.88
C166: 04163/ORSE | D166: Broca em aço 400 x 35 mm, série 11 | E166: un | F166: 0.0019 | G166: 365.52
C167: 04165/ORSE | D167: Broca em aço 800 x 34 mm, série 11 | E167: un | F167: 0.0019 | G167: 382.42
C168: 04166/ORSE | D168: Broca em aço 1600 x 33 mm, série 11 | E168: un | F168: 0.0019 | G168: 366.96
C169: 04167/ORSE | D169: Broca em aço 2400 x 32 mm, série 11 | E169: un | F169: 0.0019 | G169: 570.80
C170: 04168/ORSE | D170: Broca em aço 3200 x 31 mm, série 11 | E170: un | F170: 0.0019 | G170: 761.97
C171: 04169/ORSE | D171: Broca em aço 4000 x 30 mm, série 11 | E171: un | F171: 0.0019 | G171: 888.47
C172: 04170/ORSE | D172: Broca em aço 4800 x 29 mm, série 11 | E172: un | F172: 0.0019 | G172: 916.63
C173: 12894/SINAPI | D173: Capa para chuva em pvc com forro de poliester, com capuz (amarela ou azul) | E173: un | F173: 0.0033 | G173: 10.53
C174: 12895/SINAPI | D174: Capacete de seguranca aba frontal com suspensao de polietileno, sem jugular (classe b) | E174: un | F174: 0.0099 | G174: 8.10
C175: 02711/SINAPI | D175: Carrinho de mao de aco capacidade 50 a 60 l, pneu com camara | E175: un | F175: 0.0033 | G175: 130.00
C176: 10492/ORSE | D176: Cesta Básica | E176: un | F176: 0.0742 | G176: 130.00
C177: 02463/ORSE | D177: Compressor 250 pcm (atlas copco - xa-120dd - 94,0 hp ou equivalente) | E177: h | F177: 0.0634 | G177: 11.68
C178: 02759/SINAPI | D178: Espoleta simples n 8. | E178: un | F178: 3 | G178: 4.06
C179: 02762/SINAPI | D179: Estopim simples | E179: m | F179: 3 | G179: 5.07
C180: 10517/ORSE | D180: Exames admissionais/demissionais (checkup) | E180: cj | F180: 0.0066 | G180: 326.00
C181: 01045/ORSE | D181: Explosivo gelatinoso dinamite 40% (comprimento = 8" / diâmetro da seção = 1") | E181: kg | F181: 0.2 | G181: 8.35
C182: 00941/ORSE | D182: Fardamento | E182: un | F182: 0.0248 | G182: 76.00
C183: 12892/SINAPI | D183: Luva raspa de couro, cano curto (punho *7* cm) | E183: par | F183: 0.038 | G183: 7.29
C184: 04729/ORSE | D184: Marreta 1 kg com cabo | E184: un | F184: 0.0016 | G184: 15.80
C185: 01651/ORSE | D185: Óculos branco proteção | E185: pr | F185: 0.0132 | G185: 5.70
C186: 10788/ORSE | D186: Pá quadrada | E186: un | F186: 0.0033 | G186: 17.29
C187: 02479/ORSE | D187: Perfuratriz (atlas copco -rh 571 5l) | E187: h | F187: 0.19 | G187: 2.43
C188: 10596/ORSE | D188: Protetor auricular | E188: un | F188: 0.0742 | G188: 3.20
C189: 10599/ORSE | D189: Protetor solar fps 30 com 120ml | E189: un | F189: 0.0297 | G189: 35.90
C190: 10761/ORSE | D190: Refeição - café da manhã ( café com leite e dois pães com manteiga) | E190: un | F190: 16797 | G190: 2.50
C191: 10362/ORSE | D191: Seguro de vida e acidente em grupo | E191: un | F191: 0.0742 | G191: 5.65
C192: 06111/SINAPI | D192: Servente de obras | E192: h | F192: 16.5 | G192: 9.49
C193: 04728/ORSE | D193: Talhadeira chata 10" | E193: un | F193: 0.005 | G193: 9.45
C194: 02378/ORSE | D194: Vale transporte | E194: un | F194: 15526 | G194: 3.50
G195: SUB-TOTAL
A196: 2.3.8 | B196: SINAPI | C196: 94111 | D196: LASTRO DE VALA COM PREPARO DE FUNDO, LARGURA MENOR QUE 1,5 M, COM CAMADA DE AREIA, LANÇAMENTO MECANIZADO, EM LOCAL COM NÍVEL BAIXO DE INTERFERÊNCIA. AF_06/2016 | E196: M³ | F196: 1812.72
D197: AREIA MEDIA - POSTO JAZIDA/FORNECEDOR (RETIRADO NA JAZIDA, SEM TRANSPORTE) | E197: M3 | F197: 1,1000000 | G197: 55,00 | H197: 60,50
D198: RETROESCAVADEIRA SOBRE RODAS COM CARREGADEIRA, TRAÇÃO 4X4, POTÊNCIA LÍQ. 88 HP, CAÇAMBA CARREG. CAP. MÍN. 1 M3, CAÇAMBA RETRO CAP. 0,26 M3, PESO OPERACIONAL MÍN. 6.674 KG, PROFUNDIDADE ESCAVAÇÃO MÁX. 4,37 M - CHP DIURNO. AF_06/2014 | E198: CHP | F198: 0,1060000 | G198: 114,98 | H198: 12,18
D199: RETROESCAVADEIRA SOBRE RODAS COM CARREGADEIRA, TRAÇÃO 4X4, POTÊNCIA LÍQ. 88 HP, CAÇAMBA CARREG. CAP. MÍN. 1 M3, CAÇAMBA RETRO CAP. 0,26 M3, PESO OPERACIONAL MÍN. 6.674 KG, PROFUNDIDADE ESCAVAÇÃO MÁX. 4,37 M - CHI DIURNO. AF_06/2014 | E199: CHI | F199: 0,5300000 | G199: 55,33 | H199: 29,32
D200: PEDREIRO COM ENCARGOS COMPLEMENTARES | E200: H | F200: 0,7630000 | G200: 19,57 | H200: 14,93
D201: SERVENTE COM ENCARGOS COMPLEMENTARES | E201: H | F201: 1,1440000 | G201: 15,85 | H201: 18,13
D202: COMPACTADOR DE SOLOS DE PERCUSSÃO (SOQUETE) COM MOTOR A GASOLINA 4 TEMPOS, POTÊNCIA 4 CV - CHP DIURNO. AF_08/2015 | E202: CHP | F202: 0,0690000 | G202: 37,70 | H202: 2,60
D203: COMPACTADOR DE SOLOS DE PERCUSSÃO (SOQUETE) COM MOTOR A GASOLINA 4 TEMPOS, POTÊNCIA 4 CV - CHI DIURNO. AF_08/2015 | E203: CHI | F203: 0,0640000 | G203: 34,23 | H203: 2,19
A205: 2.3.9 | B205: ORSE | C205: 2508 | D205: CARGA MECÂNICA DE MATERIAL DE 3ª CATEGORIA | E205: M³ | F205: 5758.67
C206: 02477/ORSE | D206: Pá - carregadeira de esteira 1,53m3 (cat - 953 - 130,0 hp) | E206: h | F206: 1 | G206: 156.46 | H206: 156.46
... 1207 more rows

Sheet COMPOSIÇÕES
C1: COMPLEMENTAÇÃO DAS OBRAS E DOS SERVIÇOS NECESSÁRIOS A IMPLANTAÇÃO DO SISTEMA DE ESGOTAMENTO SANITÁRIO DO MUNICÍPIO DE FLORESTA, NO ESTADO DE PERNAMBUCO, NA ÁREA DE ATUAÇÃO DA 3ª SUPERINTENDÊNCIA REGIONAL DA CODEVASF.
A2: COMPOSIÇÕES DE PREÇOS UNITÁRIOS
A3: ITEM | B3: REF. | C3: CÓDIGO | D3: DESCRIÇÃO | E3: UNID. | F3: COEF. | G3: P.UNIT. | H3: P. TOTAL
A4: 1.1 | B4: SINAPI | C4: 74209/1 | D4: FORNECIMENTO, MONTAGEM, MANUTENÇÃO E INSTALAÇÃO DE PLACA DE IDENTIFICAÇÃO DE OBRA COM 2MX3M, CONFORME MODELO APRESENTADO PELA FISCALIZAÇÃO. | E4: M² | F4: 12.96
D5: SARRAFO DE MADEIRA NAO APARELHADA *2,5 X 7* CM, MACARANDUBA, ANGELIM OU EQUIVALENTE DA REGIAO | E5: M | F5: 1,0000000 | G5: 5,43 | H5: =F5*G5 -> 5.43
D6: PECA DE MADEIRA NATIVA / REGIONAL 7,5 X 7,5CM (3X3) NAO APARELHADA (P/FORMA) | E6: M | F6: 4,0000000 | G6: 6,40 | H6: =F6*G6 -> 25.6
D7: PLACA DE OBRA (PARA CONSTRUCAO CIVIL) EM CHAPA GALVANIZADA *N. 22*, DE *2,0 X 1,125* M | E7: M2 | F7: 1,0000000 | G7: 176.12 | H7: 176.12
D8: PREGO DE ACO POLIDO COM CABECA 18 X 30 (2 3/4 X 10) | E8: KG | F8: 0,1100000 | G8: 11,39 | H8: 1.253
D9: CARPINTEIRO DE FORMAS COM ENCARGOS COMPLEMENTARES | E9: H | F9: 1,0000000 | G9: 19,45 | H9: 19.45
D10: SERVENTE COM ENCARGOS COMPLEMENTARES | E10: H | F10: 2,0000000 | G10: 15,85 | H10: 31.7
D11: CONCRETO MAGRO PARA LASTRO, TRAÇO 1:4,5:4,5 (CIMENTO/ AREIA MÉDIA/ BRITA 1) - PREPARO MECÂNICO COM BETONEIRA 400 L. AF_07/2016 | E11: M3 | F11: 0,0100000 | G11: 254,54 | H11: 2.545
D12: TOTAL GERAL S/ BDI | H12: =SUM(H5:H11) -> 262.1
A13: 1.2 | B13: CODEVASF | C13: COMPOSIÇÃO | D13: MOBILIZAÇÃO DE EQUIPAMENTOS, MATERIAIS E PESSOAL | E13: UN | F13: 2
D14: MOTORISTA DE CAMINHAO | E14: H | F14: 16 | G14: 27,77 | H14: =G14*F14 -> 444.32
D15: CAMINHÃO BASCULANTE 6 M³ TOCO, PESO BRUTO TOTAL 16.000 KG, CARGA ÚTIL MÁXIMA 11.130 KG, DISTÂNCIA ENTRE EIXOS 5,36 M, POTÊNCIA 185 CV, INCLUSIVE CAÇAMBA METÁLICA - CHP DIURNO. AF_06/2014 | E15: CHP | F15: 7 | G15: 90 | H15: =G15*F15 -> 630
D16: CAMINHÃO TRUCADO (C/ TERCEIRO EIXO) ELETRÔNICO - POTÊNCIA 231CV - PBT = 22000KG - DIST. ENTRE EIXOS 5170 MM - INCLUI CARROCERIA FIXA ABERTA DE MADEIRA - CHP DIURNO. AF_06/2015 | E16: CHP | F16: 7 | G16: 94 | H16: 658
D17: RETROESCAVADEIRA SOBRE RODAS COM CARREGADEIRA, TRAÇÃO 4X4, POTÊNCIA LÍQ. 72 HP, CAÇAMBA CARREG. CAP. MÍN. 0,79 M³, CAÇAMBA RETRO CAP. 0,18 M³, PESO OPERACIONAL MÍN. 7.140 KG, PROFUNDIDADE ESCAVAÇÃO MÁX. 4,50 M - CHI DIURNO. AF_06/2014 | E17: CHI | F17: 7 | G17: 52.926 | H17: 370.482
D18: VEÍCULO PICK-UP CABINE DUPLA 4X4 (163 CV), COM MOTORISTA | E18: MÊS | F18: 0.38 | G18: 9054.12 | H18: 3440.566
D19: TOTAL GERAL S/ BDI | H19: =SUM(H14:H18) -> 5543.37
A20: 1.3 | B20: CODEVASF | C20: COMPOSIÇÃO | D20: DESMOBILIZAÇÃO DE EQUIPAMENTOS, MATERIAIS E PESSOAL | E20: UN | F20: 1
D21: MOTORISTA DE CAMINHAO | E21: H | F21: 16 | G21: 27,77 | H21: =G21*F21 -> 444.32
D22: CAMINHÃO BASCULANTE 6 M³ TOCO, PESO BRUTO TOTAL 16.000 KG, CARGA ÚTIL MÁXIMA 11.130 KG, DISTÂNCIA ENTRE EIXOS 5,36 M, POTÊNCIA 185 CV, INCLUSIVE CAÇAMBA METÁLICA - CHP DIURNO. AF_06/2014 | E22: CHP | F22: 7 | G22: 90 | H22: =G22*F22 -> 630
D23: CAMINHÃO TRUCADO (C/ TERCEIRO EIXO) ELETRÔNICO - POTÊNCIA 231CV - PBT = 22000KG - DIST. ENTRE EIXOS 5170 MM - INCLUI CARROCERIA FIXA ABERTA DE MADEIRA - CHP DIURNO. AF_06/2015 | E23: CHP | F23: 7 | G23: 94 | H23: 658
D24: RETROESCAVADEIRA SOBRE RODAS COM CARREGADEIRA, TRAÇÃO 4X4, POTÊNCIA LÍQ. 72 HP, CAÇAMBA CARREG. CAP. MÍN. 0,79 M³, CAÇAMBA RETRO CAP. 0,18 M³, PESO OPERACIONAL MÍN. 7.140 KG, PROFUNDIDADE ESCAVAÇÃO MÁX. 4,50 M - CHI DIURNO. AF_06/2014 | E24: CHI | F24: 7 | G24: 52.926 | H24: 370.48
D25: VEÍCULO PICK-UP CABINE DUPLA 4X4 (163 CV), COM MOTORISTA | E25: MÊS | F25: 0.38 | G25: 9054.12 | H25: 3440.57
D26: TOTAL GERAL S/ BDI | H26: =SUM(H21:H25) -> 5543.37
A27: 1.4 | B27: CODEVASF | C27: COMPOSIÇÃO | D27: INSTALAÇÃO DE CANTEIRO DE OBRAS | E27: UN | F27: 1
D28: EXECUÇÃO DE ESCRITÓRIO EM CANTEIRO DE OBRA EM ALVENARIA, NÃO INCLUSO MOBILIÁRIO E EQUIPAMENTOS. AF_02/2016 | E28: M² | F28: 24 | G28: 600 | H28: =G28*F28 -> 14400
D29: EXECUÇÃO DE ALMOXARIFADO EM CANTEIRO DE OBRA EM CHAPA DE MADEIRA COMPENSADA, INCLUSO PRATELEIRAS. AF_02/2016 | E29: M² | F29: 12 | G29: 500 | H29: 6000
D30: EXECUÇÃO DE REFEITÓRIO EM CANTEIRO DE OBRA EM ALVENARIA, NÃO INCLUSO MOBILIÁRIO E EQUIPAMENTOS. AF_02/2016 | E30: M² | F30: 18 | G30: 358.424 | H30: 6451.63
D31: EXECUÇÃO DE SANITÁRIO E VESTIÁRIO EM CANTEIRO DE OBRA EM ALVENARIA, NÃO INCLUSO MOBILIÁRIO. AF_02/2016 | E31: M² | F31: 6 | G31: 600 | H31: 3600
D32: EXECUÇÃO DE RESERVATÓRIO ELEVADO DE ÁGUA (1000 LITROS) EM CANTEIRO DE OBRA, APOIADO EM ESTRUTURA DE MADEIRA. AF_02/2016 | E32: UN | F32: 1 | G32: 2500 | H32: 2500
D33: TOTAL GERAL S/ BDI | H33: =SUM(H28:H32) -> 32951.63
A34: 1.5 | B34: CODEVASF | C34: COMPOSIÇÃO | D34: ADMINISTRAÇÃO LOCAL E MANUTENÇÃO DE CANTEIRO DE OBRAS | E34: UN | F34: 1
D35: ENGENHEIRO CIVIL DE OBRA JUNIOR (MENSALISTA) | E35: MES | F35: 0.2 | G35: 14018.974 | H35: =F35*G35 -> 2803.79
D36: ENCARREGADO GERAL DE OBRAS (MENSALISTA) | E36: MES | F36: 0.71 | G36: 5.999,47 | H36: =F36*G36 -> 4259.62
D37: TÉCNICO DE SEGURANÇA | E37: MÊS | F37: 0.5 | G37: 3215.04 | H37: 1607.52
D38: VIGIA NOTURNO, HORA EFETIVAMENTE TRABALHADA DE 22 H AS 5 H (COM ADICIONAL NOTURNO) | E38: H | F38: 124 | G38: 14,24 | H38: 1765.76
D39: VIGIA DIURNO | E39: H | F39: 88 | G39: 11.55 | H39: 1016.4
D40: MEDICAMENTOS PRIMEIROS SOCORROS | E40: MÊS | F40: 1 | G40: 29.75 | H40: 29.75
D41: MATERIAL DE LIMPEZA | E41: MÊS | F41: 1 | G41: 75.33 | H41: 75.33
D42: KIT BÁSICO DE EPI - FARDAMENTO, BOTA DE COURO, CAPACETE, LUVA RASPA, ÓCULOS, MÁSCARA FILTRO PAPEL, FILTRO SOLAR FPS30 (CUSTO MENSAL) | E42: UN | F42: 2 | G42: 90 | H42: 180
D43: ENERGIA ELETRICA COMERCIAL, BAIXA TENSAO, RELATIVA AO CONSUMO DE ATE 100 KWH, INCLUINDO ICMS, PIS/PASEP E COFINS | E43: KW/H | F43: 300 | G43: 0,52 | H43: 156
D44: TARIFA "A" ENTRE 0 E 20M3 FORNECIMENTO D'AGUA | E44: M³ | F44: 2 | G44: 9,83 | H44: 19.66
D45: MATERIAL DE ESCRITÓRIO | E45: MÊS | F45: 1 | G45: 27.895 | H45: 27.9
D46: INTERNET | E46: UNxMÊS | F46: 1 | G46: 135 | H46: 135
G47: SUB-TOTAL | H47: =SUM(H35:H46)+0.0025 -> 12076.73
D48: SERVIÇOS / EQUIPAMENTOS
A49: TIPO | B49: REFER. | C49: CÓDIGO | D49: DISCRIMINAÇÃO | E49: UNID. | F49: QUANT. | G49: P.UNIT. | H49: P.TOTAL
G51: SUB-TOTAL | H51: 0
E52: TOTAL DO SERVIÇO - R$ | F52: MESES: | G52: 24 | H52: =H47*G52+0.06 -> 289841.58
A54: 1.6 | B54: CODEVASF | C54: COMPOSIÇÃO | D54: VEÍCULO PICK-UP CABINE DUPLA 4X4 (163 CV) | E54: MÊS | F54: 24
D55: VEÍCULO PICK-UP CABINE DUPLA 4X4 (163 CV), COM MOTORISTA | E55: MÊS | F55: 0.5 | G55: 9054.12 | H55: =G55*F55 -> 4527.06
D56: TOTAL GERAL S/ BDI | H56: =SUM(H55) -> 4527.06
A57: 2.1.1 | B57: SINAPI | C57: 85323 | D57: LOCACAO E NIVELAMENTO DE EMISSARIO/REDE COLETORA COM AUXILIO DE EQUIPAMENTO TOPOGRAFICO | E57: M | F57: 22083
D58: LOCACAO DE TEODOLITO ELETRONICO, PRECISAO ANGULAR DE 5 A 7 SEGUNDOS, INCLUINDO TRIPE | E58: H | F58: 0,0300000 | G58: 2.8 | H58: =G58*F58 -> 0.08
D59: LOCACAO DE NIVEL OPTICO, COM PRECISAO DE 0,7 MM, AUMENTO DE 32X | E59: H | F59: 0,0300000 | G59: 2.8 | H59: 0.08
D60: AUXILIAR DE TOPÓGRAFO COM ENCARGOS COMPLEMENTARES | E60: H | F60: 0.05 | G60: 11,87 | H60: 0.59
D61: TOPOGRAFO COM ENCARGOS COMPLEMENTARES | E61: H | F61: 0.02 | G61: 21,06 | H61: 0.42
D62: TOTAL GERAL S/ BDI | H62: =SUM(H58:H61) -> 1.17
A63: 2.2.1 | B63: ORSE | C63: 11676 | D63: CADASTRO DE REDES DE ESGOTO | E63: M | F63: 22083
D64: Auxiliar topografia - T4 - Segundo grau completo - DNIT - Mês de ref.: 05/18 | E64: h | F64: 0.04 | G64: 9.24 | H64: =G64*F64 -> 0.3696
D65: Topografo - T2 - Fonte DNIT - Mês de ref.: 05/18 | E65: h | F65: 0.03 | G65: 15.41 | H65: =G65*F65 -> 0.4623
D66: Pick-up, capacidade 1,2 t | E66: h | F66: 0.01 | G66: 10.54 | H66: 0.1054
D67: Nível ótico de precisão | E67: H | F67: 0.03 | G67: 2.8 | H67: 0.084
D68: TEODOLITO | E68: H | F68: 0.03 | G68: 2.8 | H68: 0.084
D69: TOTAL GERAL S/ BDI | H69: =SUM(H64:H68) -> 1.11
A70: 2.2.2 | B70: ORSE | C70: 2830 | D70: LIMPEZA E TESTE DE REDES DE ESGOTOS SANITÁRIOS | E70: M | F70: 28583
C71: 06111/SINAPI | D71: Servente de obras | E71: h | F71: 0.04 | G71: 15.85 | H71: =G71*F71 -> 0.634
C72: 02696/SINAPI | D72: Encanador ou bombeiro hidraulico | E72: h | F72: 0.025 | G72: 13.39 | H72: 0.33475
C73: 00054/ORSE | D73: Encarregado de turma - Fonte DNIT - Mês de ref.: 05/18 | E73: h | F73: 0.003 | G73: 30.32 | H73: 0.09096
C74: 02459/ORSE | D74: Caminhao tanque 6000 l (m. benz - ATEGO 1418/42 - 136,0 hp ou equivalente) | E74: h | F74: 0.009 | G74: 45 | H74: =G74*F74 -> 0.405
C75: 04728/ORSE | D75: Talhadeira chata 10" | E75: un | F75: 0 | G75: 7 | H75: 0
C76: 11256/ORSE | D76: Tarracha para tubos PVC de 1 1/2" | E76: un | F76: 0 | G76: 30 | H76: 0
C77: 11257/ORSE | D77: Tarracha para tubos PVC de 1 1/4" | E77: un | F77: 0 | G77: 31.36 | H77: 0
C78: 11255/ORSE | D78: Tarracha para tubos PVC de 1" | E78: un | F78: 0 | G78: 21.96 | H78: 0
C79: 11253/ORSE | D79: Tarracha para tubos PVC de 1/2" | E79: un | F79: 0 | G79: 16.25 | H79: 0
C80: 11254/ORSE | D80: Tarracha para tubos PVC de 3/4" | E80: un | F80: 0 | G80: 18.8 | H80: 0
D81: TOTAL GERAL S/ BDI | H81: =SUM(H71:H80) -> 1.46
A82: 2.3.1 | B82: SINAPI | C82: 93358 | D82: ESCAVAÇÃO MANUAL DE VALA COM PROFUNDIDADE MENOR OU IGUAL A 1,30 M. AF_03/2016 | E82: M³ | F82: 2456.2
D83: SERVENTE COM ENCARGOS COMPLEMENTARES | E83: H | F83: 3.1802 | G83: 15,85 | H83: =G83*F83 -> 50.40617
D84: TOTAL GERAL S/ BDI | H84: =SUM(H83) -> 50.41
A85: 2.3.2 | B85: SINAPI | C85: 90105 | D85: ESCAVAÇÃO MECANIZADA DE VALA COM PROFUNDIDADE ATÉ 1,5 M (MÉDIA ENTRE MONTANTE E JUSANTE/UMA COMPOSIÇÃO POR TRECHO) COM RETROESCAVADEIRA (CAPACIDADE DA CAÇAMBA DA RETRO: 0,26 M³ / POTÊNCIA: 88 HP), LARGURA MENOR QUE 0,8 M, EM SOLO DE 1A CATEGORIA, LOCAISCOM BAIXO NÍVEL DE INTERFERÊNCIA. AF_01/2015 | E85: M³ | F85: 10033.52
D86: RETROESCAVADEIRA SOBRE RODAS COM CARREGADEIRA, TRAÇÃO 4X4, POTÊNCIA LÍQ. 88 HP, CAÇAMBA CARREG. CAP. MÍN. 1 M3, CAÇAMBA RETRO CAP. 0,26 M3, PESO OPERACIONAL MÍN. 6.674 KG, PROFUNDIDADE ESCAVAÇÃO MÁX. 4,37 M - CHP DIURNO. AF_06/2014 | E86: CHP | F86: 0.03 | G86: 114,98 | H86: =G86*F86 -> 3.4494
D87: RETROESCAVADEIRA SOBRE RODAS COM CARREGADEIRA, TRAÇÃO 4X4, POTÊNCIA LÍQ. 88 HP, CAÇAMBA CARREG. CAP. MÍN. 1 M3, CAÇAMBA RETRO CAP. 0,26 M3, PESO OPERACIONAL MÍN. 6.674 KG, PROFUNDIDADE ESCAVAÇÃO MÁX. 4,37 M - CHI DIURNO. AF_06/2014 | E87: CHI | F87: 0.0338 | G87: 55,33 | H87: 1.870154
D88: SERVENTE COM ENCARGOS COMPLEMENTARES | E88: H | F88: 0.054 | G88: 15,85 | H88: 0.8559
D89: TOTAL GERAL S/ BDI | H89: =SUM(H86:H88) -> 6.18
A90: 2.3.3 | B90: SINAPI | C90: 90092 | D90: ESCAVAÇÃO MECANIZADA DE VALA COM PROF. MAIOR QUE 1,5 M E ATÉ 3,0 M(MÉDIA ENTRE MONTANTE E JUSANTE/UMA COMPOSIÇÃO POR TRECHO), COM ESCAVADEIRA HIDRÁULICA (0,8 M³/111 HP), LARG. MENOR QUE 1,5 M, EM SOLO DE 1A CATEGORIA, LOCAIS COM BAIXO NÍVEL DE INTERFERÊNCIA. AF_01/2015 | E90: M³ | F90: 618.13
D91: ESCAVADEIRA HIDRÁULICA SOBRE ESTEIRAS, CAÇAMBA 0,80 M3, PESO OPERACIONAL 17 T, POTENCIA BRUTA 111 HP - CHP DIURNO. AF_06/2014 | E91: CHP | F91: 0.018 | G91: 146,53 | H91: =G91*F91 -> 2.63754
D92: ESCAVADEIRA HIDRÁULICA SOBRE ESTEIRAS, CAÇAMBA 0,80 M3, PESO OPERACIONAL 17 T, POTENCIA BRUTA 111 HP - CHI DIURNO. AF_06/2014 | E92: CHI | F92: 0.0175 | G92: 66,72 | H92: 1.1676
D93: SERVENTE COM ENCARGOS COMPLEMENTARES | E93: H | F93: 0.0228 | G93: 15,85 | H93: 0.36138
D94: TOTAL GERAL S/ BDI | H94: =SUM(H91:H93) -> 4.17
A95: 2.3.4 | B95: SINAPI | C95: 72915 | D95: ESCAVACAO MECANICA DE VALA EM MATERIAL DE 2A. CATEGORIA ATE 2 M DE PROFUNDIDADE COM UTILIZACAO DE ESCAVADEIRA HIDRAULICA | E95: M³ | F95: 2610.57
D96: SERVENTE COM ENCARGOS COMPLEMENTARES | E96: H | F96: 0.1145 | G96: 15,85 | H96: =G96*F96 -> 1.814825
D97: ESCAVADEIRA HIDRÁULICA SOBRE ESTEIRAS, CAÇAMBA 0,80 M3, PESO OPERACIONAL 17,8 T, POTÊNCIA LÍQUIDA 110 HP - CHP DIURNO. AF_10/2014 | E97: CHP | F97: 0.0487 | G97: 143,45 | H97: 6.986015
D98: TOTAL GERAL S/ BDI | H98: =SUM(H96:H97) -> 8.8
A99: 2.3.5 | B99: SINAPI | C99: 72917 | D99: ESCAVACAO MECANICA DE VALA EM MATERIAL 2A. CATEGORIA DE 2,01 ATE 4,00 M DE PROFUNDIDADE COM UTILIZACAO DE ESCAVADEIRA HIDRAULICA | E99: M³ | F99: 829.46
D100: SERVENTE COM ENCARGOS COMPLEMENTARES | E100: H | F100: 0.13 | G100: 15,85 | H100: =G100*F100 -> 2.0605
D101: ESCAVADEIRA HIDRÁULICA SOBRE ESTEIRAS, CAÇAMBA 0,80 M3, PESO OPERACIONAL 17,8 T, POTÊNCIA LÍQUIDA 110 HP - CHP DIURNO. AF_10/2014 | E101: CHP | F101: 0.0557 | G101: 143,45 | H101: 7.990165
D102: TOTAL GERAL S/ BDI | H102: =SUM(H100:H101) -> 10.05
A103: 2.3.6 | B103: ORSE | C103: 4357 | D103: ESCAVAÇÃO COM PERFURATRIZ EM MATERIAL DE 2ª CATEGORIA | E103: M³ | F103: 2108.94
C104: 02463/ORSE | D104: Compressor 250 pcm (atlas copco - xa-120dd - 94,0 hp ou equivalente) | E104: h | F104: 0.05 | G104: 12.15 | H104: =G104*F104 -> 0.6075
C105: 02479/ORSE | D105: Perfuratriz (atlas copco -rh 571 5l) | E105: h | F105: 0.1 | G105: 2.61 | H105: 0.261
C106: 06111/SINAPI | D106: Servente de obras | E106: h | F106: 3.85 | G106: 15.85 | H106: 61.0225
C107: 02479/ORSE | D107: Perfuratriz (atlas copco -rh 571 5l) | E107: h | F107: 0.161 | G107: 2.61 | H107: 0.42021
C108: 04728/ORSE | D108: Talhadeira chata 10" | E108: un | F108: 0.07 | G108: 9.45 | H108: 0.6615
D109: TOTAL GERAL S/ BDI | H109: =SUM(H104:H108) -> 62.97
A110: 2.3.7 | B110: ORSE | C110: 4503 | D110: ESCAVAÇÃO MANUAL DE VALA OU CAVA EM MATERIAL DE 3ª CATEGORIA, PROFUNDIDADE AT É 4,00 M, COM USO DE EXPLOSIVOS E PERFURAÇÃO MECÂNICA | E110: M³ | F110: 1157.21
C111: 01045/ORSE | D111: Explosivo gelatinoso dinamite 40% (comprimento = 8" / diâmetro da seção = 1") | E111: kg | F111: 0.2 | G111: 8.35 | H111: =G111*F111 -> 1.67
C112: 02463/ORSE | D112: Compressor 250 pcm (atlas copco - xa-120dd - 94,0 hp ou equivalente) | E112: h | F112: 0.06 | G112: 11.68 | H112: 0.7
C113: 02479/ORSE | D113: Perfuratriz (atlas copco -rh 571 5l) | E113: h | F113: 0.19 | G113: 2.43 | H113: 0.46
C114: 02759/SINAPI | D114: Espoleta simples n 8. | E114: un | F114: 3 | G114: 4.06 | H114: 12.18
C115: 02762/SINAPI | D115: Estopim simples | E115: m | F115: 3 | G115: 5.07 | H115: 15.21
C116: 06111/SINAPI | D116: Servente de obras | E116: h | F116: 8.299 | G116: 15.85 | H116: 131.54
C117: 04163/ORSE | D117: Broca em aço 400 x 35 mm, série 11 | E117: un | F117: 0 | G117: 365.52 | H117: 0
C118: 04165/ORSE | D118: Broca em aço 800 x 34 mm, série 11 | E118: un | F118: 0 | G118: 382.42 | H118: 0
C119: 04166/ORSE | D119: Broca em aço 1600 x 33 mm, série 11 | E119: un | F119: 0 | G119: 366.96 | H119: 0
C120: 04167/ORSE | D120: Broca em aço 2400 x 32 mm, série 11 | E120: un | F120: 0 | G120: 570.8 | H120: 0
C121: 04168/ORSE | D121: Broca em aço 3200 x 31 mm, série 11 | E121: un | F121: 0 | G121: 761.97 | H121: 0
C122: 04169/ORSE | D122: Broca em aço 4000 x 30 mm, série 11 | E122: un | F122: 0 | G122: 888.47 | H122: 0
C123: 04170/ORSE | D123: Broca em aço 4800 x 29 mm, série 11 | E123: un | F123: 0 | G123: 916.63 | H123: 0
C124: 12894/SINAPI | D124: Capa para chuva em pvc com forro de poliester, com capuz (amarela ou azul) | E124: un | F124: 0 | G124: 10.53 | H124: 0
C125: 02759/SINAPI | D125: Espoleta simples n 8. | E125: un | F125: 3 | G125: 4.06 | H125: 12.18
C126: 02762/SINAPI | D126: Estopim simples | E126: m | F126: 3 | G126: 5.07 | H126: 15.21
C127: 01045/ORSE | D127: Explosivo gelatinoso dinamite 40% (comprimento = 8" / diâmetro da seção = 1") | E127: kg | F127: 0.2 | G127: 8.35 | H127: 1.67
C128: 02479/ORSE | D128: Perfuratriz (atlas copco -rh 571 5l) | E128: h | F128: 0.19 | G128: 2.43 | H128: 0.46
D129: TOTAL GERAL S/ BDI | H129: =SUM(H111:H128) -> 191.28
A130: 2.3.8 | B130: SINAPI | C130: 94111 | D130: LASTRO DE VALA COM PREPARO DE FUNDO, LARGURA MENOR QUE 1,5 M, COM CAMADA DE AREIA, LANÇAMENTO MECANIZADO, EM LOCAL COM NÍVEL BAIXO DE INTERFERÊNCIA. AF_06/2016 | E130: M³ | F130: 1812.72
D131: AREIA MEDIA - POSTO JAZIDA/FORNECEDOR (RETIRADO NA JAZIDA, SEM TRANSPORTE) | E131: M3 | F131: 1.05 | G131: 55,00 | H131: =G131*F131 -> 57.75
D132: RETROESCAVADEIRA SOBRE RODAS COM CARREGADEIRA, TRAÇÃO 4X4, POTÊNCIA LÍQ. 88 HP, CAÇAMBA CARREG. CAP. MÍN. 1 M3, CAÇAMBA RETRO CAP. 0,26 M3, PESO OPERACIONAL MÍN. 6.674 KG, PROFUNDIDADE ESCAVAÇÃO MÁX. 4,37 M - CHP DIURNO. AF_06/2014 | E132: CHP | F132: 0.1 | G132: 114,98 | H132: 11.498
D133: RETROESCAVADEIRA SOBRE RODAS COM CARREGADEIRA, TRAÇÃO 4X4, POTÊNCIA LÍQ. 88 HP, CAÇAMBA CARREG. CAP. MÍN. 1 M3, CAÇAMBA RETRO CAP. 0,26 M3, PESO OPERACIONAL MÍN. 6.674 KG, PROFUNDIDADE ESCAVAÇÃO MÁX. 4,37 M - CHI DIURNO. AF_06/2014 | E133: CHI | F133: 0.3 | G133: 55,33 | H133: 16.599
D134: PEDREIRO COM ENCARGOS COMPLEMENTARES | E134: H | F134: 0.6 | G134: 19,57 | H134: 11.742
D135: SERVENTE COM ENCARGOS COMPLEMENTARES | E135: H | F135: 0.7 | G135: 15,85 | H135: 11.095
D136: COMPACTADOR DE SOLOS DE PERCUSSÃO (SOQUETE) COM MOTOR A GASOLINA 4 TEMPOS, POTÊNCIA 4 CV - CHP DIURNO. AF_08/2015 | E136: CHP | F136: 0.0545 | G136: 37,70 | H136: 2.05465
D137: COMPACTADOR DE SOLOS DE PERCUSSÃO (SOQUETE) COM MOTOR A GASOLINA 4 TEMPOS, POTÊNCIA 4 CV - CHI DIURNO. AF_08/2015 | E137: CHI | F137: 0.05 | G137: 34,23 | H137: 1.7115
D138: TOTAL GERAL S/ BDI | H138: =SUM(H131:H137) -> 112.45
A139: 2.3.9 | B139: ORSE | C139: 2508 | D139: CARGA MECÂNICA DE MATERIAL DE 3ª CATEGORIA | E139: M³ | F139: 5758.67
C140: 02477/ORSE | D140: Pá - carregadeira de esteira 1,53m3 (cat - 953 - 130,0 hp) | E140: h | F140: 0.013 | G140: 156.46 | H140: =G140*F140 -> 2.03398
C141: 06111/SINAPI | D141: Servente de obras | E141: h | F141: 0.033 | G141: 15.85 | H141: 0.52305
D142: TOTAL GERAL S/ BDI | H142: =SUM(H140:H141) -> 2.56
A143: 2.3.10 | B143: SINAPI | C143: 97914 | D143: TRANSPORTE COM CAMINHÃO BASCULANTE DE 6 M³, EM VIA URBANA PAVIMENTADA, DMT ATÉ 30 KM (UNIDADE: M³XKM). AF_01/2018 | E143: M³XKM | F143: 60364.7
D144: CAMINHÃO BASCULANTE 6 M3 TOCO, PESO BRUTO TOTAL 16.000 KG, CARGA ÚTIL MÁXIMA 11.130 KG, DISTÂNCIA ENTRE EIXOS 5,36 M, POTÊNCIA 185 CV, INCLUSIVE CAÇAMBA METÁLICA - CHP DIURNO. AF_06/2014 | E144: CHP | F144: 0.0087 | G144: 147,90 | H144: =G144*F144 -> 1.28673
D145: CAMINHÃO BASCULANTE 6 M3 TOCO, PESO BRUTO TOTAL 16.000 KG, CARGA ÚTIL MÁXIMA 11.130 KG, DISTÂNCIA ENTRE EIXOS 5,36 M, POTÊNCIA 185 CV, INCLUSIVE CAÇAMBA METÁLICA - CHI DIURNO. AF_06/2014 | E145: CHI | F145: 0.001 | G145: 44,04 | H145: 0.04404
D146: TOTAL GERAL S/ BDI | H146: =SUM(H144:H145) -> 1.33
A147: 2.4.1 | B147: SINAPI | C147: 93378 | D147: REATERRO MECANIZADO DE VALA COM RETROESCAVADEIRA (CAPACIDADE DA CAÇAMBA DA RETRO: 0,26 M³ / POTÊNCIA: 88 HP), LARGURA ATÉ 0,8 M, PROFUNDIDADE ATÉ 1,5 M, COM SOLO (SEM SUBSTITUIÇÃO) DE 1ª CATEGORIA EM LOCAIS COM BAIXO NÍVEL DE INTERFERÊNCIA. AF_04/2016 | E147: M³ | F147: 10896.39
D148: RETROESCAVADEIRA SOBRE RODAS COM CARREGADEIRA, TRAÇÃO 4X4, POTÊNCIA LÍQ. 88 HP, CAÇAMBA CARREG. CAP. MÍN. 1 M3, CAÇAMBA RETRO CAP. 0,26 M3, PESO OPERACIONAL MÍN. 6.674 KG, PROFUNDIDADE ESCAVAÇÃO MÁX. 4,37 M - CHP DIURNO. AF_06/2014 | E148: CHP | F148: 0.03 | G148: 114,98 | H148: =G148*F148 -> 3.4494
D149: RETROESCAVADEIRA SOBRE RODAS COM CARREGADEIRA, TRAÇÃO 4X4, POTÊNCIA LÍQ. 88 HP, CAÇAMBA CARREG. CAP. MÍN. 1 M3, CAÇAMBA RETRO CAP. 0,26 M3, PESO OPERACIONAL MÍN. 6.674 KG, PROFUNDIDADE ESCAVAÇÃO MÁX. 4,37 M - CHI DIURNO. AF_06/2014 | E149: CHI | F149: 0.04 | G149: 55,33 | H149: 2.2132
D150: SERVENTE COM ENCARGOS COMPLEMENTARES | E150: H | F150: 0.03 | G150: 15,85 | H150: 0.4755
D151: COMPACTADOR DE SOLOS DE PERCUSSÃO (SOQUETE) COM MOTOR A GASOLINA 4 TEMPOS, POTÊNCIA 4 CV - CHP DIURNO. AF_08/2015 | E151: CHP | F151: 0.2 | G151: 37,70 | H151: 7.54
D152: COMPACTADOR DE SOLOS DE PERCUSSÃO (SOQUETE) COM MOTOR A GASOLINA 4 TEMPOS, POTÊNCIA 4 CV - CHI DIURNO. AF_08/2015 | E152: CHI | F152: 0.1234 | G152: 34,23 | H152: 4.223982
D153: UMIDIFICAÇÃO DE MATERIAL PARA VALAS COM CAMINHÃO PIPA 10000L. AF_11/2016 | E153: M3 | F153: 1,0000000 | G153: 1,29 | H153: 1.29
D154: TOTAL GERAL S/ BDI | H154: =SUM(H148:H153) -> 19.19
A155: 2.4.2 | B155: SINAPI | C155: 93368 | D155: REATERRO MECANIZADO DE VALA COM ESCAVADEIRA HIDRÁULICA (CAPACIDADE DA CAÇAMBA: 0,8 M³ / POTÊNCIA: 111 HP), LARGURA ATÉ 1,5 M, PROFUNDIDADE DE 1,5 A 3,0 M, COM SOLO (SEM SUBSTITUIÇÃO) DE 1ª CATEGORIA EM LOCAIS COM BAIXO NÍVEL DE INTERFERÊNCIA. AF_04/2016 | E155: M³ | F155: 618.13
D156: ESCAVADEIRA HIDRÁULICA SOBRE ESTEIRAS, CAÇAMBA 0,80 M3, PESO OPERACIONAL 17 T, POTENCIA BRUTA 111 HP - CHP DIURNO. AF_06/2014 | E156: CHP | F156: 0.02 | G156: 146,53 | H156: =G156*F156 -> 2.9306
D157: ESCAVADEIRA HIDRÁULICA SOBRE ESTEIRAS, CAÇAMBA 0,80 M3, PESO OPERACIONAL 17 T, POTENCIA BRUTA 111 HP - CHI DIURNO. AF_06/2014 | E157: CHI | F157: 0.04 | G157: 66,72 | H157: 2.6688
D158: SERVENTE COM ENCARGOS COMPLEMENTARES | E158: H | F158: 0.03 | G158: 15,85 | H158: 0.4755
D159: COMPACTADOR DE SOLOS DE PERCUSSÃO (SOQUETE) COM MOTOR A GASOLINA 4 TEMPOS, POTÊNCIA 4 CV - CHP DIURNO. AF_08/2015 | E159: CHP | F159: 0.0445 | G159: 37,70 | H159: 1.67765
D160: COMPACTADOR DE SOLOS DE PERCUSSÃO (SOQUETE) COM MOTOR A GASOLINA 4 TEMPOS, POTÊNCIA 4 CV - CHI DIURNO. AF_08/2015 | E160: CHI | F160: 0.06 | G160: 34,23 | H160: 2.0538
D161: UMIDIFICAÇÃO DE MATERIAL PARA VALAS COM CAMINHÃO PIPA 10000L. AF_11/2016 | E161: M3 | F161: 1,0000000 | G161: 1,29 | H161: 1.29
D162: TOTAL GERAL S/ BDI | H162: =SUM(H156:H161) -> 11.1
A163: 2.4.3 | B163: SINAPI | C163: 94315 | D163: ATERRO MECANIZADO DE VALA COM RETROESCAVADEIRA (CAPACIDADE DA CAÇAMBA DA RETRO: 0,26 M³ / POTÊNCIA: 88 HP), LARGURA ATÉ 0,8 M, PROFUNDIDADE ATÉ 1,5 M, COM SOLO ARGILO-ARENOSO. AF_05/2016 | E163: M³ | F163: 2284.23
D164: RETROESCAVADEIRA SOBRE RODAS COM CARREGADEIRA, TRAÇÃO 4X4, POTÊNCIA LÍQ. 88 HP, CAÇAMBA CARREG. CAP. MÍN. 1 M3, CAÇAMBA RETRO CAP. 0,26 M3, PESO OPERACIONAL MÍN. 6.674 KG, PROFUNDIDADE ESCAVAÇÃO MÁX. 4,37 M - CHP DIURNO. AF_06/2014 | E164: CHP | F164: 0.02 | G164: 114,98 | H164: =G164*F164 -> 2.2996
D165: RETROESCAVADEIRA SOBRE RODAS COM CARREGADEIRA, TRAÇÃO 4X4, POTÊNCIA LÍQ. 88 HP, CAÇAMBA CARREG. CAP. MÍN. 1 M3, CAÇAMBA RETRO CAP. 0,26 M3, PESO OPERACIONAL MÍN. 6.674 KG, PROFUNDIDADE ESCAVAÇÃO MÁX. 4,37 M - CHI DIURNO. AF_06/2014 | E165: CHI | F165: 0.03 | G165: 55,33 | H165: 1.6599
D166: CAMINHÃO PIPA 10.000 L TRUCADO, PESO BRUTO TOTAL 23.000 KG, CARGA ÚTIL MÁXIMA 15.935 KG, DISTÂNCIA ENTRE EIXOS 4,8 M, POTÊNCIA 230 CV, INCLUSIVE TANQUE DE AÇO PARA TRANSPORTE DE ÁGUA - CHP DIURNO. AF_06/2014 | E166: CHP | F166: 0,0060000 | G166: 171,23 | H166: 1.02738
D167: CAMINHÃO PIPA 10.000 L TRUCADO, PESO BRUTO TOTAL 23.000 KG, CARGA ÚTIL MÁXIMA 15.935 KG, DISTÂNCIA ENTRE EIXOS 4,8 M, POTÊNCIA 230 CV, INCLUSIVE TANQUE DE AÇO PARA TRANSPORTE DE ÁGUA - CHI DIURNO. AF_06/2014 | E167: CHI | F167: 0.003 | G167: 46,48 | H167: 0.13944
D168: ARGILA, ARGILA VERMELHA OU ARGILA ARENOSA (RETIRADA NA JAZIDA, SEM TRANSPORTE) | E168: M3 | F168: 1.2 | G168: 12,25 | H168: 14.7
D169: SERVENTE COM ENCARGOS COMPLEMENTARES | E169: H | F169: 0,0520000 | G169: 15,85 | H169: 0.8242
D170: COMPACTADOR DE SOLOS DE PERCUSSÃO (SOQUETE) COM MOTOR A GASOLINA 4 TEMPOS, POTÊNCIA 4 CV - CHP DIURNO. AF_08/2015 | E170: CHP | F170: 0.254 | G170: 37,70 | H170: 9.5758
D171: COMPACTADOR DE SOLOS DE PERCUSSÃO (SOQUETE) COM MOTOR A GASOLINA 4 TEMPOS, POTÊNCIA 4 CV - CHI DIURNO. AF_08/2015 | E171: CHI | F171: 0.15 | G171: 34,23 | H171: 5.1345
D172: TOTAL GERAL S/ BDI | H172: =SUM(H164:H171) -> 35.36
A173: 2.4.4 | B173: SINAPI | C173: 94305 | D173: ATERRO MECANIZADO DE VALA COM ESCAVADEIRA HIDRÁULICA (CAPACIDADE DA CAÇAMBA: 0,8 M³ / POTÊNCIA: 111 HP), LARGURA ATÉ 1,5 M, PROFUNDIDADE DE 1,5 A 3,0 M, COM SOLO ARGILO-ARENOSO. AF_05/2016 | E173: M³ | F173: 0
D174: ESCAVADEIRA HIDRÁULICA SOBRE ESTEIRAS, CAÇAMBA 0,80 M3, PESO OPERACIONAL 17 T, POTENCIA BRUTA 111 HP - CHP DIURNO. AF_06/2014 | E174: CHP | F174: 0.0145 | G174: 146,53 | H174: =G174*F174 -> 2.124685
D175: ESCAVADEIRA HIDRÁULICA SOBRE ESTEIRAS, CAÇAMBA 0,80 M3, PESO OPERACIONAL 17 T, POTENCIA BRUTA 111 HP - CHI DIURNO. AF_06/2014 | E175: CHI | F175: 0.02999 | G175: 66,72 | H175: 2.0009328
D176: CAMINHÃO PIPA 10.000 L TRUCADO, PESO BRUTO TOTAL 23.000 KG, CARGA ÚTIL MÁXIMA 15.935 KG, DISTÂNCIA ENTRE EIXOS 4,8 M, POTÊNCIA 230 CV, INCLUSIVE TANQUE DE AÇO PARA TRANSPORTE DE ÁGUA - CHP DIURNO. AF_06/2014 | E176: CHP | F176: 0.006 | G176: 171,23 | H176: 1.02738
D177: CAMINHÃO PIPA 10.000 L TRUCADO, PESO BRUTO TOTAL 23.000 KG, CARGA ÚTIL MÁXIMA 15.935 KG, DISTÂNCIA ENTRE EIXOS 4,8 M, POTÊNCIA 230 CV, INCLUSIVE TANQUE DE AÇO PARA TRANSPORTE DE ÁGUA - CHI DIURNO. AF_06/2014 | E177: CHI | F177: 0,0030000 | G177: 46,48 | H177: 0.13944
D178: ARGILA, ARGILA VERMELHA OU ARGILA ARENOSA (RETIRADA NA JAZIDA, SEM TRANSPORTE) | E178: M3 | F178: 1.25 | G178: 12,25 | H178: 15.3125
D179: SERVENTE COM ENCARGOS COMPLEMENTARES | E179: H | F179: 0.03 | G179: 15,85 | H179: 0.4755
D180: COMPACTADOR DE SOLOS DE PERCUSSÃO (SOQUETE) COM MOTOR A GASOLINA 4 TEMPOS, POTÊNCIA 4 CV - CHP DIURNO. AF_08/2015 | E180: CHP | F180: 0.04 | G180: 37,70 | H180: 1.508
D181: COMPACTADOR DE SOLOS DE PERCUSSÃO (SOQUETE) COM MOTOR A GASOLINA 4 TEMPOS, POTÊNCIA 4 CV - CHI DIURNO. AF_08/2015 | E181: CHI | F181: 0.024 | G181: 34,23 | H181: 0.82152
D182: TOTAL GERAL S/ BDI | H182: =SUM(H174:H181) -> 23.41
A183: 2.4.5 | B183: SINAPI | C183: 94307 | D183: ATERRO MECANIZADO DE VALA COM ESCAVADEIRA HIDRÁULICA (CAPACIDADE DA CAÇAMBA: 0,8 M³ / POTÊNCIA: 111 HP), LARGURA ATÉ 1,5 M, PROFUNDIDADE DE 3,0 A 4,5 M, COM SOLO ARGILO-ARENOSO. AF_05/2016 | E183: M³ | F183: 5.86
D184: ESCAVADEIRA HIDRÁULICA SOBRE ESTEIRAS, CAÇAMBA 0,80 M3, PESO OPERACIONAL 17 T, POTENCIA BRUTA 111 HP - CHP DIURNO. AF_06/2014 | E184: CHP | F184: 0.0151 | G184: 146,53 | H184: =G184*F184 -> 2.212603
D185: ESCAVADEIRA HIDRÁULICA SOBRE ESTEIRAS, CAÇAMBA 0,80 M3, PESO OPERACIONAL 17 T, POTENCIA BRUTA 111 HP - CHI DIURNO. AF_06/2014 | E185: CHI | F185: 0.02 | G185: 66,72 | H185: 1.3344
D186: CAMINHÃO PIPA 10.000 L TRUCADO, PESO BRUTO TOTAL 23.000 KG, CARGA ÚTIL MÁXIMA 15.935 KG, DISTÂNCIA ENTRE EIXOS 4,8 M, POTÊNCIA 230 CV, INCLUSIVE TANQUE DE AÇO PARA TRANSPORTE DE ÁGUA - CHP DIURNO. AF_06/2014 | E186: CHP | F186: 0.004 | G186: 171,23 | H186: 0.68492
D187: CAMINHÃO PIPA 10.000 L TRUCADO, PESO BRUTO TOTAL 23.000 KG, CARGA ÚTIL MÁXIMA 15.935 KG, DISTÂNCIA ENTRE EIXOS 4,8 M, POTÊNCIA 230 CV, INCLUSIVE TANQUE DE AÇO PARA TRANSPORTE DE ÁGUA - CHI DIURNO. AF_06/2014 | E187: CHI | F187: 0.002 | G187: 46,48 | H187: 0.09296
D188: ARGILA, ARGILA VERMELHA OU ARGILA ARENOSA (RETIRADA NA JAZIDA, SEM TRANSPORTE) | E188: M3 | F188: 1,2500000 | G188: 12,25 | H188: 15.3125
D189: SERVENTE COM ENCARGOS COMPLEMENTARES | E189: H | F189: 0.02 | G189: 15,85 | H189: 0.317
D190: COMPACTADOR DE SOLOS DE PERCUSSÃO (SOQUETE) COM MOTOR A GASOLINA 4 TEMPOS, POTÊNCIA 4 CV - CHP DIURNO. AF_08/2015 | E190: CHP | F190: 0.008 | G190: 37,70 | H190: 0.3016
D191: COMPACTADOR DE SOLOS DE PERCUSSÃO (SOQUETE) COM MOTOR A GASOLINA 4 TEMPOS, POTÊNCIA 4 CV - CHI DIURNO. AF_08/2015 | E191: CHI | F191: 0.006 | G191: 34,23 | H191: 0.20538
D192: TOTAL GERAL S/ BDI | H192: =SUM(H184:H191) -> 20.46
A193: 2.5.1 | B193: SINAPI | C193: 98420 | D193: (COMPOSIÇÃO REPRESENTATIVA) POÇO DE VISITA CIRCULAR PARA ESGOTO, EM CONCRETO PRÉ-MOLDADO, DIÂMETRO INTERNO = 1,0 M, PROFUNDIDADE ATÉ 1,50 M, INCLUINDO TAMPÃO DE FERRO FUNDIDO, DIÂMETRO DE 60 CM. AF_04/2018 | E193: UN | F193: 35
D194: TAMPA CIRCULAR PARA ESGOTO E DRENAGEM, EM FERRO FUNDIDO, DIÂMETRO INTERNO = 0,6 M. AF_05/2018 | E194: UN | F194: 1,0000000 | G194: 400 | H194: =G194*F194 -> 400
D195: BASE PARA POÇO DE VISITA CIRCULAR PARA ESGOTO, EM CONCRETO PRÉ-MOLDADO, DIÂMETRO INTERNO = 1 M, PROFUNDIDADE = 1,45 M, EXCLUINDO TAMPÃO. AF_05/2018_P | E195: UN | F195: 1,0000000 | G195: 658.95 | H195: 658.95
D196: TOTAL GERAL S/ BDI | H196: =SUM(H194:H195) -> 1058.95
A197: 2.5.2 | B197: SINAPI | C197: 98421 | D197: (COMPOSIÇÃO REPRESENTATIVA) POÇO DE VISITA CIRCULAR PARA ESGOTO, EM CONCRETO PRÉ-MOLDADO, DIÂMETRO INTERNO = 1,0 M, PROFUNDIDADE DE 1,50 A 2,00 M, INCLUINDO TAMPÃO DE FERRO FUNDIDO, DIÂMETRO DE 60 CM. AF_04/2018 | E197: UN | F197: 20
D198: ACRÉSCIMO PARA POÇO DE VISITA CIRCULAR PARA ESGOTO, EM CONCRETO PRÉ-MOLDADO, DIÂMETRO INTERNO = 1 M. AF_05/2018 | E198: M | F198: 0,5000000 | G198: 240.38 | H198: =G198*F198 -> 120.19
D199: TAMPA CIRCULAR PARA ESGOTO E DRENAGEM, EM FERRO FUNDIDO, DIÂMETRO INTERNO = 0,6 M. AF_05/2018 | E199: UN | F199: 1,0000000 | G199: 400 | H199: 400
D200: BASE PARA POÇO DE VISITA CIRCULAR PARA ESGOTO, EM CONCRETO PRÉ-MOLDADO, DIÂMETRO INTERNO = 1 M, PROFUNDIDADE = 1,45 M, EXCLUINDO TAMPÃO. AF_05/2018_P | E200: UN | F200: 1,0000000 | G200: 658.95 | H200: 658.95
D201: TOTAL GERAL S/ BDI | H201: =SUM(H198:H200) -> 1179.14
A202: 2.5.3 | B202: SINAPI | C202: 98422 | D202: (COMPOSIÇÃO REPRESENTATIVA) POÇO DE VISITA CIRCULAR PARA ESGOTO, EM CONCRETO PRÉ-MOLDADO, DIÂMETRO INTERNO = 1,0 M, PROFUNDIDADE DE 2,00 A 2,50 M, INCLUINDO TAMPÃO DE FERRO FUNDIDO, DIÂMETRO DE 60 CM. AF_04/2018 | E202: UN | F202: 4
... 2181 more rows

Sheet Cronograma
J1: COMPANHIA DE DESENVOLVIMENTO DOS VALES DO SÃO FRANCISCO E DO PARNAÍBA 3ª Superintendência Regional
A2: COMPLEMENTAÇÃO DAS OBRAS E DOS SERVIÇOS NECESSÁRIOS A IMPLANTAÇÃO DO SISTEMA DE ESGOTAMENTO SANITÁRIO DO MUNICÍPIO DE FLORESTA, NO ESTADO DE PERNAMBUCO, NA ÁREA DE ATUAÇÃO DA 3ª SUPERINTENDÊNCIA REGIONAL DA CODEVASF.
A3: CRONOGRAMA FÍSICO-FINANCEIRO
A4: ITEM | B4: DESCRIÇÃO | D4: M E S E S | AB4: TOTAL
D5: 1º | E5: 2º | F5: 3º | G5: 4º | H5: 5º | I5: 6º | J5: 7º | K5: 8º | L5: 9º | M5: 10º | N5: 11º | O5: 12º | P5: 13º | Q5: 14º | R5: 15º | S5: 16º | T5: 17º | U5: 18º | V5: 19º | W5: 20º | X5: 21º | Y5: 22º | Z5: 23º | AA5: 24º
A6: 1 | B6: INSTALAÇÕES PRELIMINARES E CANTEIRO DE OBRAS | C6: ='PLANILHA ORÇAMENTARIA'!K10 -> 540412.33 | D6: =$C6*D7 -> 32424.74 | E6: =$C6*E7 -> 21616.49 | F6: 21616.49 | G6: 21616.49 | H6: 21616.49 | I6: 21616.49 | J6: 21616.49 | K6: 21616.49 | L6: 21616.49 | M6: 21616.49 | N6: 21616.49 | O6: 21616.49 | P6: 21616.49 | Q6: 21616.49 | R6: 21616.49 | S6: 21616.49 | T6: 21616.49 | U6: 21616.49 | V6: 21616.49 | W6: 21616.49 | X6: 21616.49 | Y6: 21616.49 | Z6: 21616.49 | AA6: 32424.74 | AB6: =SUM(D6:AA6) -> 540412.26
D7: 0.06 | E7: 0.04 | F7: 0.04 | G7: 0.04 | H7: 0.04 | I7: 0.04 | J7: 0.04 | K7: 0.04 | L7: 0.04 | M7: 0.04 | N7: 0.04 | O7: 0.04 | P7: 0.04 | Q7: 0.04 | R7: 0.04 | S7: 0.04 | T7: 0.04 | U7: 0.04 | V7: 0.04 | W7: 0.04 | X7: 0.04 | Y7: 0.04 | Z7: 0.04 | AA7: 0.06 | AB7: =AB6/C6 -> 1
A9: 2 | B9: REDE COLETORA; LINHA DE RECALQUE (EEE-01, EEE-02 e EEE-04); EMISSÁRIO FINAL (ETE-01, ETE-02) | C9: ='PLANILHA ORÇAMENTARIA'!K17 -> 2108106.53 | H9: =$C9*H10 -> 105405.33 | I9: 105405.33 | J9: 105405.33 | K9: 105405.33 | L9: 105405.33 | M9: 105405.33 | N9: 105405.33 | O9: 105405.33 | P9: 105405.33 | Q9: 105405.33 | R9: 105405.33 | S9: 105405.33 | T9: 105405.33 | U9: 105405.33 | V9: 105405.33 | W9: 105405.33 | X9: 105405.33 | Y9: 105405.33 | Z9: 105405.33 | AA9: 105405.33 | AB9: =SUM(D9:AA9) -> 2108106.6
H10: 0.05 | I10: 0.05 | J10: 0.05 | K10: 0.05 | L10: 0.05 | M10: 0.05 | N10: 0.05 | O10: 0.05 | P10: 0.05 | Q10: 0.05 | R10: 0.05 | S10: 0.05 | T10: 0.05 | U10: 0.05 | V10: 0.05 | W10: 0.05 | X10: 0.05 | Y10: 0.05 | Z10: 0.05 | AA10: 0.05 | AB10: =AB9/C9 -> 1
A12: 3 | B12: REDE CONDOMINIAL | C12: ='PLANILHA ORÇAMENTARIA'!K98 -> 2350774.27 | H12: =$C12*H13 -> 117538.71 | I12: =$C12*I13 -> 117538.71 | J12: =$C12*J13 -> 117538.71 | K12: =$C12*K13 -> 117538.71 | L12: =$C12*L13 -> 117538.71 | M12: =$C12*M13 -> 117538.71 | N12: =$C12*N13 -> 117538.71 | O12: =$C12*O13 -> 117538.71 | P12: =$C12*P13 -> 117538.71 | Q12: =$C12*Q13 -> 117538.71 | R12: =$C12*R13 -> 117538.71 | S12: =$C12*S13 -> 117538.71 | T12: =$C12*T13 -> 117538.71 | U12: =$C12*U13 -> 117538.71 | V12: =$C12*V13 -> 117538.71 | W12: =$C12*W13 -> 117538.71 | X12: =$C12*X13 -> 117538.71 | Y12: =$C12*Y13 -> 117538.71 | Z12: =$C12*Z13 -> 117538.71 | AA12: =$C12*AA13 -> 117538.71 | AB12: =SUM(D12:AA12) -> 2350774.2
H13: 0.05 | I13: 0.05 | J13: 0.05 | K13: 0.05 | L13: 0.05 | M13: 0.05 | N13: 0.05 | O13: 0.05 | P13: 0.05 | Q13: 0.05 | R13: 0.05 | S13: 0.05 | T13: 0.05 | U13: 0.05 | V13: 0.05 | W13: 0.05 | X13: 0.05 | Y13: 0.05 | Z13: 0.05 | AA13: 0.05 | AB13: =AB12/C12 -> 1
A15: 4 | B15: ESTAÇÃO ELEVATÓRIA DE ESGOTO - EEE-01 | C15: ='PLANILHA ORÇAMENTARIA'!K145 -> 209628.36 | E15: =$C15*E16 -> 41925.67 | F15: =$C15*F16 -> 62888.51 | G15: =$C15*G16 -> 62888.51 | H15: =$C15*H16 -> 20962.84 | I15: =$C15*I16 -> 20962.84 | AB15: =SUM(D15:AA15) -> 209628.37
E16: 0.2 | F16: 0.3 | G16: 0.3 | H16: 0.1 | I16: 0.1 | AB16: =AB15/C15 -> 1
A18: 5 | B18: ESTAÇÃO ELEVATÓRIA DE ESGOTO - EEE-02 | C18: ='PLANILHA ORÇAMENTARIA'!K225 -> 316043.32 | E18: =$C18*E19 -> 63208.66 | F18: =$C18*F19 -> 94813 | G18: =$C18*G19 -> 94813 | H18: =$C18*H19 -> 31604.33 | I18: =$C18*I19 -> 31604.33 | AB18: =SUM(D18:AA18) -> 316043.32
E19: 0.2 | F19: 0.3 | G19: 0.3 | H19: 0.1 | I19: 0.1 | AB19: =AB18/C18 -> 1
A21: 6 | B21: ESTAÇÃO ELEVATÓRIA DE ESGOTO - EEE-04 | C21: ='PLANILHA ORÇAMENTARIA'!K306 -> 225409.13 | T21: =$C21*T22 -> 45081.83 | U21: =$C21*U22 -> 45081.83 | V21: =$C21*V22 -> 45081.83 | W21: =$C21*W22 -> 45081.83 | X21: =$C21*X22 -> 45081.83 | AB21: =SUM(D21:AA21) -> 225409.15
T22: 0.2 | U22: 0.2 | V22: 0.2 | W22: 0.2 | X22: 0.2 | AB22: =AB21/C21 -> 1
A24: 7 | B24: ESTAÇÃO DE TRATAMENTO DE ESGOTOS (SBFD) | C24: ='PLANILHA ORÇAMENTARIA'!K386 -> 2279742.55 | J24: =$C24*J25 -> 227974.26 | K24: =$C24*K25 -> 227974.26 | L24: =$C24*L25 -> 182379.4 | M24: =$C24*M25 -> 182379.4 | N24: =$C24*N25 -> 182379.4 | O24: =$C24*O25 -> 182379.4 | P24: =$C24*P25 -> 182379.4 | Q24: =$C24*Q25 -> 182379.4 | R24: =$C24*R25 -> 182379.4 | S24: =$C24*S25 -> 182379.4 | T24: =$C24*T25 -> 182379.4 | U24: =$C24*U25 -> 182379.4 | AB24: =SUM(D24:AA24) -> 2279742.52
J25: 0.1 | K25: 0.1 | L25: 0.08 | M25: 0.08 | N25: 0.08 | O25: 0.08 | P25: 0.08 | Q25: 0.08 | R25: 0.08 | S25: 0.08 | T25: 0.08 | U25: 0.08 | AB25: =AB24/C24 -> 1
A27: 8 | B27: ESTAÇÃO DE TRATAMENTO DE ESGOTOS (SBPD E SBCE) | C27: ='PLANILHA ORÇAMENTARIA'!K445 -> 4402845.81 | D27: =$C27*D28 -> 1100711.45 | E27: =$C27*E28 -> 1100711.45 | F27: =$C27*F28 -> 1100711.45 | G27: =$C27*G28 -> 1100711.45 | AB27: =SUM(D27:AA27) -> 4402845.8
D28: 0.25 | E28: 0.25 | F28: 0.25 | G28: 0.25 | AB28: =AB27/C27 -> 1
A30: 9 | B30: INSTALAÇÕES ELÉTRICAS (EEE-01, EEE-02, EEE-04, ETE-01, ETE-02) | C30: ='PLANILHA ORÇAMENTARIA'!K477 -> 355747.11 | I30: =$C30*I31 -> 14229.88 | J30: =$C30*J31 -> 21344.83 | K30: =$C30*K31 -> 21344.83 | L30: =$C30*L31 -> 21344.83 | M30: =$C30*M31 -> 21344.83 | N30: =$C30*N31 -> 21344.83 | O30: =$C30*O31 -> 21344.83 | P30: =$C30*P31 -> 21344.83 | Q30: =$C30*Q31 -> 21344.83 | R30: =$C30*R31 -> 21344.83 | S30: =$C30*S31 -> 21344.83 | T30: =$C30*T31 -> 21344.83 | U30: =$C30*U31 -> 21344.83 | V30: =$C30*V31 -> 21344.83 | W30: =$C30*W31 -> 21344.83 | X30: =$C30*X31 -> 21344.83 | Y30: =$C30*Y31 -> 21344.83 | AB30: =SUM(D30:AA30) -> 355747.16
I31: 0.04 | J31: 0.06 | K31: 0.06 | L31: 0.06 | M31: 0.06 | N31: 0.06 | O31: 0.06 | P31: 0.06 | Q31: 0.06 | R31: 0.06 | S31: 0.06 | T31: 0.06 | U31: 0.06 | V31: 0.06 | W31: 0.06 | X31: 0.06 | Y31: 0.06 | AB31: =AB30/C30 -> 1
A33: 10 | B33: ELABORAÇÃO DOS PROJETOS EXECUTIVOS HIDRÁULICO, ELÉTRICO, ESTRUTURAL E SONDAGENS | C33: ='PLANILHA ORÇAMENTARIA'!K498 -> 58639.85 | D33: =$C33*D34 -> 29319.93 | E33: =$C33*E34 -> 29319.93 | AB33: =SUM(D33:AA33) -> 58639.86
D34: 0.5 | E34: 0.5 | AB34: =AB33/C33 -> 1
B36: TOTAL MENSAL | D36: =SUM(D33,D30,D27,D24,D21,D18,D15,D12,D9,D6) -> 1162456.12 | E36: =SUM(E33,E30,E27,E24,E21,E18,E15,E12,E9,E6) -> 1256782.2 | F36: 1280029.45 | G36: 1280029.45 | H36: 297127.7 | I36: 311357.58 | J36: 493879.62 | K36: 493879.62 | L36: 448284.76 | M36: 448284.76 | N36: 448284.76 | O36: 448284.76 | P36: 448284.76 | Q36: 448284.76 | R36: 448284.76 | S36: 448284.76 | T36: 493366.59 | U36: 493366.59 | V36: 310987.19 | W36: 310987.19 | X36: 310987.19 | Y36: 265905.36 | Z36: 244560.53 | AA36: 255368.78 | AB36: =SUM(D36:AA36)+0.02 -> 12847349.26
B37: TOTAL ACUMULADO | C37: =SUM(D36:AA36)+0.02 -> 12847349.26 | D37: =D36 -> 1162456.12 | E37: =D37+E36 -> 2419238.32 | F37: =E37+F36 -> 3699267.77 | G37: 4979297.22 | H37: 5276424.92 | I37: 5587782.5 | J37: 6081662.12 | K37: 6575541.74 | L37: 7023826.5 | M37: 7472111.26 | N37: 7920396.02 | O37: 8368680.78 | P37: 8816965.54 | Q37: 9265250.3 | R37: 9713535.06 | S37: 10161819.82 | T37: 10655186.41 | U37: 11148553 | V37: 11459540.19 | W37: 11770527.38 | X37: 12081514.57 | Y37: 12347419.93 | Z37: 12591980.46 | AA37: =Z37+AA36+0.02 -> 12847349.26 | AB37: =AA37 -> 12847349.26
B38: PERCENTUAL MENSAL | D38: 0.0905 | E38: 0.0978 | F38: 0.0996 | G38: 0.0996 | H38: 0.0231 | I38: 0.0242 | J38: 0.0384 | K38: 0.0384 | L38: 0.0349 | M38: 0.0349 | N38: 0.0349 | O38: 0.0349 | P38: 0.0349 | Q38: 0.0349 | R38: 0.0349 | S38: 0.0349 | T38: 0.0384 | U38: 0.0384 | V38: 0.0242 | W38: 0.0242 | X38: 0.0242 | Y38: 0.0207 | Z38: 0.019 | AA38: 0.0199 | AB38: =AB37/C37 -> 1
B39: PERCENTUAL MENSAL ACUMULADO | D39: =D38 -> 0.0905 | E39: =E38+D39 -> 0.1883 | F39: =F38+E39 -> 0.2879 | G39: 0.3875 | H39: 0.4106 | I39: 0.4348 | J39: 0.4732 | K39: 0.5116 | L39: 0.5465 | M39: 0.5814 | N39: 0.6163 | O39: 0.6512 | P39: 0.6861 | Q39: 0.721 | R39: 0.7559 | S39: 0.7908 | T39: 0.8292 | U39: 0.8676 | V39: 0.8918 | W39: 0.916 | X39: 0.9402 | Y39: 0.9609 | Z39: 0.9799 | AA39: =AA38+Z39+0.0002 -> 1 | AB39: =AA39 -> 1

Sheet BDI's
C2: COMPANHIA DE DESENVOLVIMENTO DOS VALES DO SÃO FRANCISCO E DO PARNAÍBA 3ª Superintendência Regional
B6: DETALHAMENTO DO BDI - SERVIÇOS (ACÓRDÃO Nº 2622/2013 - TCU - PLENÁRIO)
B7: COMPLEMENTAÇÃO DAS OBRAS E DOS SERVIÇOS NECESSÁRIOS A IMPLANTAÇÃO DO SISTEMA DE ESGOTAMENTO SANITÁRIO DO MUNICÍPIO DE FLORESTA, NO ESTADO DE PERNAMBUCO, NA ÁREA DE ATUAÇÃO DA 3ª SUPERINTENDÊNCIA REGIONAL DA CODEVASF.
B9: Item | C9: Descrição dos Serviços | D9: % | E9: % | F9: % | G9: %
D10: LIMITE INFERIOR | E10: VALOR MÉDIO | F10: LIMITE SUPERIOR | G10: VALOR ADOTADO
B11: 1 | C11: DESPESAS ADMINISTRATIVAS (DA) | D11: 4.71 | E11: 6.81 | F11: 9.2 | G11: 4.71
B12: 1.1 | C12: Seguros + Garantias | D12: 0.28 | E12: 0.49 | F12: 0.75 | G12: 0.28
B13: 1.2 | C13: Riscos | D13: 1 | E13: 1.39 | F13: 1.74 | G13: 1
B14: 1.3 | C14: Administração Central | D14: 3.43 | E14: 4.93 | F14: 6.71 | G14: 3.43
B16: 2 | C16: TRIBUTOS (T) | D16: 8.65 | E16: 8.65 | F16: 8.65 | G16: 8.65
B17: 2.1 | C17: ISS | D17: 5 | E17: 5 | F17: 5 | G17: 5
B18: 2.2 | C18: PIS | D18: 0.65 | E18: 0.65 | F18: 0.65 | G18: 0.65
B19: 2.3 | C19: Cofins | D19: 3 | E19: 3 | F19: 3 | G19: 3
B20: 2.4 | C20: CPRB | D20: 0 | E20: 0 | F20: 0 | G20: 0
B22: 3 | C22: DESPESAS FINANCEIRAS (DF) | D22: 0.94 | E22: 0.99 | F22: 1.17 | G22: 0.94
B24: 4 | C24: LUCRO (L) | D24: 6.74 | E24: 8.04 | F24: 9.4 | G24: 7.6
B26: 5 | C26: BDI RECOMENDADO | D26: 20.76 | E26: 24.18 | F26: 26.44
B28: 6 | C28: BDI CALCULADO | G28: 24.5
B29: 7 | C29: BDI ADOTADO | G29: 24.5
B30: ACÓRDÃO Nº 2622/2013 - TCU - PLENÁRIO:
C34: COMPANHIA DE DESENVOLVIMENTO DOS VALES DO SÃO FRANCISCO E DO PARNAÍBA 3ª Superintendência Regional
B37: DETALHAMENTO DO BDI - MATERIAIS (ACÓRDÃO Nº 2622/2013 - TCU - PLENÁRIO)
B38: COMPLEMENTAÇÃO DAS OBRAS E DOS SERVIÇOS NECESSÁRIOS A IMPLANTAÇÃO DO SISTEMA DE ESGOTAMENTO SANITÁRIO DO MUNICÍPIO DE FLORESTA, NO ESTADO DE PERNAMBUCO, NA ÁREA DE ATUAÇÃO DA 3ª SUPERINTENDÊNCIA REGIONAL DA CODEVASF.
B40: Item | C40: Descrição dos Serviços | D40: % | E40: % | F40: % | G40: %
D41: LIMITE INFERIOR | E41: VALOR MÉDIO | F41: LIMITE SUPERIOR | G41: VALOR ADOTADO
B42: 1 | C42: DESPESAS ADMINISTRATIVAS (DA) | D42: 2.36 | E42: 4.78 | F42: 6.2 | G42: 2.36
B43: 1.1 | C43: Seguros + Garantias | D43: 0.3 | E43: 0.48 | F43: 0.82 | G43: 0.3
B44: 1.2 | C44: Riscos | D44: 0.56 | E44: 0.85 | F44: 0.89 | G44: 0.56
B45: 1.3 | C45: Administração Central | D45: 1.5 | E45: 3.45 | F45: 4.49 | G45: 1.5
B47: 2 | C47: TRIBUTOS (T) | D47: 3.65 | E47: 3.65 | F47: 3.65 | G47: 3.65
B48: 2.1 | C48: ISS | D48: 0 | E48: 0 | F48: 0 | G48: 0
B49: 2.2 | C49: PIS | D49: 0.65 | E49: 0.65 | F49: 0.65 | G49: 0.65
B50: 2.3 | C50: Cofins | D50: 3 | E50: 3 | F50: 3 | G50: 3
B51: 2.4 | C51: CPRB | D51: 0 | E51: 0 | F51: 0 | G51: 0
B53: 3 | C53: DESPESAS FINANCEIRAS (DF) | D53: 0.85 | E53: 0.85 | F53: 1.11 | G53: 0.85
B55: 4 | C55: LUCRO (L) | D55: 3.5 | E55: 5.11 | F55: 6.22 | G55: 5.47
B57: 5 | C57: BDI RECOMENDADO | D57: 11.1 | E57: 14.02 | F57: 16.8 | G57: -
B59: 6 | C59: BDI CALCULADO | G59: 13
B60: 7 | C60: BDI ADOTADO | G60: 13
B61: ACÓRDÃO Nº 2622/2013 - TCU - PLENÁRIO:

Sheet Leis Sociais
A1: COMPLEMENTAÇÃO DAS OBRAS E DOS SERVIÇOS NECESSÁRIOS A IMPLANTAÇÃO DO SISTEMA DE ESGOTAMENTO SANITÁRIO DO MUNICÍPIO DE FLORESTA, NO ESTADO DE PERNAMBUCO, NA ÁREA DE ATUAÇÃO DA 3ª SUPERINTENDÊNCIA REGIONAL DA CODEVASF.
A2: ENCARGOS SOCIAIS (%) - SEM DESONORAÇÃO
A4: Taxas de leis sociais e riscos do trabalho (%) | C4: HORISTA | D4: MENSALISTA
A6: A1 | B6: INSS | C6: 20 | D6: 20
A7: A2 | B7: SESI | C7: 1.5 | D7: 1.5
A8: A3 | B8: SENAI | C8: 1 | D8: 1
A9: A4 | B9: INCRA | C9: 0.2 | D9: 0.2
A10: A5 | B10: SEBRAE | C10: 0.6 | D10: 0.6
A11: A6 | B11: Salário Educação | C11: 2.5 | D11: 2.5
A12: A7 | B12: Seguro Contra Acidentes de Trabalho | C12: 3 | D12: 3
A13: A8 | B13: FGTS | C13: 8 | D13: 8
A14: A9 | B14: SECONCI | C14: 0 | D14: 0
A16: A | B16: Total dos Encargos Sociais | C16: 36.8 | D16: 36.8
A18: B1 | B18: Repouso Semanal Remunerado | C18: 18.08 | D18: -
A19: B2 | B19: Feriados | C19: 4.34 | D19: -
A20: B3 | B20: Auxílio-enfermidade | C20: 0.92 | D20: 0.7
A21: B4 | B21: 13° salário | C21: 10.94 | D21: 8.33
A22: B5 | B22: Licença-paternidade | C22: 0.07 | D22: 0.05
A23: B6 | B23: Faltas Justificadas | C23: 0.73 | D23: 0.56
A24: B7 | B24: Dias de chuva | C24: 2.28 | D24: -
A25: B8 | B25: Auxílio Acidente de Trabalho | C25: 0.11 | D25: 0.08
A26: B9 | B26: Férias Gozadas | C26: 8.9 | D26: 6.78
A27: B10 | B27: Salário Maternidade | C27: 0.03 | D27: 0.02
A29: B | B29: Total dos Encargos Sociais que recebem as incidências de A | C29: 46.4 | D29: 16.52
A31: C1 | B31: Aviso Prévio Indenizado | C31: 5.65 | D31: 4.31
A32: C2 | B32: Aviso Prévio Trabalhado | C32: 0.13 | D32: 0.1
A33: C3 | B33: Férias Indenizadas | C33: 5.08 | D33: 3.87
A34: C4 | B34: Depósito Rescisão Sem Justa Causa | C34: 5.06 | D34: 3.85
A35: C5 | B35: Indenização Adicional | C35: 0.48 | D35: 0.36
A37: C | B37: Total dos Encargos Sociais que não recebem as incidências de A | C37: 16.4 | D37: 12.49
A39: D1 | B39: Reincidência de A sobre B | C39: 17.08 | D39: 6.08
A40: D2 | B40: Reincidência de Grupo A sobre Aviso Prévio Trabalhado e Reincidência do FGTS sobre Aviso Prévio Indenizado | C40: 0.5 | D40: 0.38
A42: D | B42: Total da Reincidências | C42: 17.58 | D42: 6.46
A44: T O T A L (%) | C44: 117.18 | D44: 72.27
